Workbook

Sheet CONDITIONS
D2: LOCK_CALCULATOR v1.03 | E2: Language
E3: EN
D6: LOCK CALCULATOR
C7: GENERAL TERMS AND CONDITIONS OF THE LICENSE AGREEMENT FOR THE USE OF THE SPREADSHEET "LOCK_CALCULATOR_v1.03"
B14: 1. SUBJECT
C16: With these General Terms and Conditions (or "Agreement"), ROTHO BLAAS SRL, with registered office at I-39040 Cortaccia (BZ), Via dell'Adige 2/1 (hereinafter "RB") grants the user the non-exclusive and revocable right to use the spreadsheet (hereinafter "XLS") free of charge under the following conditions and during the term of this Agreement. In any case, RB does not guarantee the legal and design conformity of the calculations, as RB intends to provide only an indicative calculation tool to be considered as a technical-commercial service within the sales activity. XLS allows the user to perform static calculations only for the products and materials indicated in each of its sections. This Agreement expressly prohibits to use XLS to manufacture products that are not indicated. This Agreement therefore governs the relationship between the User and RB with respect to the use of this spreadsheet. By downloading and using XLS, the user accepts this Agreement and the conditions set out herein.
B18: 2. TECHNICAL-STANDARDS REFERENCES
C20: RB carried out the checks according to the Limit State method in accordance with EN 1995-1-1 Eurocode 5 - Design of timber structures and EN 1999-1-1 Eurocode 9 - Design of aluminium structures. For the mechanical resistance values and the geometry of the connectors, reference was made to ETA-19/0831.
B22: 3. RB RIGHTS AND OBLIGATIONS
C24: RB: a) makes available XLS to the User free of charge, as it is; b) does not provide the user with any technical support for using XLS; c) does not guarantee that XLS complies with the regulations in force or with the calculations design made using it. In particular, as a result of changes to the relevant provisions, such as standards, approvals, etc., the spreadsheet may become invalid in part or in full. d) while reserving the right to update, revise and develop XLS, RB does not assume any obligation towards the user to verify, correct, complete or update the spreadsheet and/or make the updates available to the user.
B26: 4. USER RIGHTS AND OBLIGATIONS
C28: The User declares to use the spreadsheet as a professional excluding any use as a consumer, and to always comply with the following obligations and prohibitions: a) obligation and responsibility to verify that XLS meets the specific needs and that it is compatible with the hardware-software-systems; b) obligation to verify, for each use, the compliance of the calculations made through XLS to the regulations in force and to the project; c) obligation to verify the legal compliance of the calculations made through the Software; d) obligation to use the latest version of XLS made available by the RB contact person, checking at each use for any updates that have occurred; e) prohibition to use XLS for products not indicated in each calculation section; f) obligation to use updated antivirus software that complies with the industry standard in force; g) obligation not to assign the licence to use XLS to third parties and/or in any other way transfer, pledge or lease, rent or share with others or sublicense the rights to use the spreadsheet; h) prohibition to modify or vary XLS in any way, including through third parties. The user commits himself to ask the RB contact person for the last version of the XLS.
B30: 5. COPYRIGHTS
C32: The copyrights on the formulations referred to in the spreadsheet and all the intellectual and industrial property rights underlying them (such as, but not limited to: trademarks, patents, trade secrets, know-how, confidential information) are and remain the exclusive property of RB. This agreement does not transfer any of the above rights to the user.
B34: 6. DURATION, WITHDRAWAL AND TERMINATION
C36: These general conditions and, consequently, the licence to use the spreadsheet, are valid from the moment of downloading it until the termination of its use. The user may withdraw from this Agreement at any time by deleting the XLS and all copies from its systems. RB may withdraw from this Agreement and deactivate the service in the event of a breach of any of the provisions governing the license of use. In the event that RB notifies its termination, the user shall remove the spreadsheet and any copies thereof from its systems.
B38: 7. RESPONSIBILITY
C40: The user is solely responsible for the use of XLS, including, but not limited to, all calculations, printouts, export data made with it and/or for entry errors, protection of data files and maintenance and in general for any use of the spreadsheet. RB does not guarantee and in no case can be held responsible for damages, losses and costs or other consequences, for any reason (warranty for defects, warranty for malfunction, product or legal responsibility, etc.) deriving from: • use of XLS, calculations made, compliance with current legislation, with the design or other User needs; • hardware and software compatibility, viruses, malfunctions, defects, errors or gaps; • failure to update the spreadsheet and/or interruption of the availability of the spreadsheet and/or termination of the agreement for any reason; • infringement of intellectual property rights of third parties. The user confirms to have understood and accepted the disclaimers and limitations of liability and claim of this Agreement. The user also confirms that the spreadsheet is available for free, that the exclusions and limitations are fundamental elements of this Agreement and that RB does not make its spreadsheet available to the user if the exclusions or limitations are deleted or modified in favour of the user.
B42: 8. REFUND
C44: The user agrees to indemnify and hold harmless RB, its subsidiaries and its or its officers, directors, employees, successors and appointees (each individually, ""Beneficiary"", collectively, the ""Beneficiaries"") for the costs incurred in relation to claims made by third parties for damages or losses deriving from the use of the spreadsheet by the user (including, but not limited to, fees and management costs incurred by RB).
B46: 9. MISCELLANEOUS
C48: These general conditions constitute the entire agreement between RB and the user regarding the subject matter and replace all previous, oral or written agreements, as well as any agreements between RB and the user.
B50: 10. LANGUAGE
C52: In the event of differences between versions of these conditions in the various languages, the English text is binding and takes precedence with respect to the translations.
B54: 11. APPLICABLE LAW AND COURT OF JURISDICTION
C56: This agreement and any relationship between the parties is governed exclusively by the Italian law. Any dispute that may arise between the parties in relation to this agreement, that cannot be resolved amicably, shall be brought before the court of Bolzano.
B58: 12. PRIVACY
C60: Refer to the privacy policy available at the link:
C61: https://www.rothoblaas.com/privacy-policy
A63: ACCEPT

Sheet LOCK-T
E2: =Translation!B17 -> PERCENTAGEM DE UTILIZAÇÃO DA LIGAÇÃO
E3: =Translation!B18 -> 6.1 Corte vertical (Fv) | F3: =H185 -> 7% | I3: =Translation!B21 -> 6.3 Axial (Fax) | J3: =H216 -> 24%
E4: =Translation!B19 -> 6.2 Corte vertical ascendente (Fup) | F4: =IF(H141="NO","-",H204) -> 22% | I4: =Translation!B22 -> 6.4 Corte lateral (Flat) | J4: =H229 -> 3%
E5: =Translation!B20 -> 7. Carga combinada | F5: =H242 -> 6%
M11: LOCK_CALCULATOR v. 1.03
D12: =Translation!B23 -> CÁLCULO LIGADOR OCULTO DE ENGATE MADEIRA-MADEIRA LOCK-T
E32: =Translation!B24 -> 1. Informações gerais
E34: =Translation!B25 -> Data | F34: =TODAY() -> 2024-07-08 | M34: PT
E35: =Translation!B26 -> Técnico comercial RothoBlaas | F35: …
E36: =Translation!B27 -> Projeto | F36: …
E37: =Translation!B28 -> Projetista | F37: … | X37: NTC 2018
X38: EC 1995-1-1
E39: =Translation!B29 -> Norma de cálculo | F39: EC 1995-1-1
E40: =Translation!B30 -> Ligação n° | F40: …
E41: =Translation!B31 -> NOTAS | F41: …
E43: =Translation!B121 -> 2. Combinações
E45: =Translation!B122 -> Classes de serviço | H45: 1 | I45: =VLOOKUP(H45,Foglio2!A17:B19,2,FALSE) -> Caracterizado por uma humidade do material em equilíbrio com o ambiente a uma temperatura de 20 ºC e uma humidade relativa do ar circundante que não excede 65%, se não por algumas semanas por ano.
E46: =Translation!B123 -> Classe de duração da carga | H46: Média duração | I46: =VLOOKUP(H46,Foglio2!A22:B26,2,FALSE) -> Cargas variáveis de edifícios, exceto as relativas a armazéns e depósitos.
E47: =Translation!B124 -> Coeficiente kmod | F47: kmod | G47: [-] | H47: =INDEX(AA181:AF184,MATCH(H45,AA181:AA184,0),MATCH(H46,AA181:AF181,0)) -> 0.8
E49: =Translation!B138 -> Produção controlada continuamente (VOC inferior a 15%) | H49: No
E50: =Translation!B139 -> Coeficiente de segurança conexão | F50: γM | G50: [-] | H50: =IF(F39=X38,1.3,IF(H49="SI",AC168,AB168)) -> 1.3
E51: =Translation!B140 -> Coeficiente de segurança alumínio | F51: γM | G51: [-] | H51: 1.25
AA53: =Translation!B4 -> Viga | AB53: Trave
E54: =Translation!B32 -> 3. Tensão de projeto | X54: dimensioni minime | AA54: =Translation!B5 -> Pilar | AB54: Pilastro
X55: =IF(H72="Trave",VLOOKUP(H111,Screws!C6:G29,5,FALSE),VLOOKUP(H97,Data!AA4:AC24,2,FALSE)+18) -> 118
E56: =Translation!B33 -> Ação de corte vertical | F56: Fv,Ed | G56: [kN] | H56: 4 | X56: =IF(H72="Trave",VLOOKUP(H97,Data!AA4:AC24,3,FALSE)+15,VLOOKUP(H111,Screws!C6:G29,5,FALSE)) -> 80
E57: =Translation!B34 -> Ação de corte per elevação | F57: Fup,Ed | G57: [kN] | H57: 1
E58: =Translation!B35 -> Ação axial | F58: Fax,Ed | G58: [kN] | H58: 2
E59: =Translation!B36 -> Ação lateral | F59: Flat,Ed | G59: [kN] | H59: 1 | AB59: =Translation!B6 -> Entalhe coluna | AG59: 0
AB60: =Translation!B7 -> Entalhe viga principal | AC60: Notch in header beam | AE60: =Translation!B6 -> Entalhe coluna | AF60: Notch in column | AG60: 1
X61: dimensioni minime senza preforo | AB61: =Translation!B8 -> Entalhe viga secundária | AC61: Notch in joist | AE61: =Translation!B8 -> Entalhe viga secundária | AF61: Notch in joist | AG61: 2
E62: =Translation!B37 -> 4. Elementos de madeira | R62: =INDEX(IF('LOCK-T'!$H$72='LOCK-T'!$AA$54,IF('LOCK-T'!$H$99=1,Foglio2!$B$1:$B$4,Foglio2!$B$49:$B$52),IF('LOCK-T'!$H$99=1,Foglio2!$B$5:$B$9,Foglio2!$B$53:$B$57)),MATCH('LOCK-T'!$H$65,Foglio2!$A$1:$A$8,0)) -> 0 | X62: =VLOOKUP(H97,Data!AA4:AC24,2,FALSE)+26 -> 126 | AB62: =Translation!B9 -> Parafusos inclinados | AC62: Inclined screw | AE62: =Translation!B9 -> Parafusos inclinados | AF62: Inclined screw | AG62: 3
X63: =VLOOKUP(H97,Data!AA4:AC24,3,FALSE) -> 290 | AB63: LOCK STOP | AC63: LOCK STOP | AE63: LOCK STOP | AF63: LOCK STOP | AG63: 4
E65: =Translation!B107 -> Configuração para resistência lateral | H65: Entalhe viga principal | R65: trave | S65: =IF($H$72=AA53,1,0) -> 1
R66: pilastro | S66: =IF($H$72=AA54,1,0) -> 0
E67: =Translation!B38 -> 4.1 Elemento principal | F67: =Translation!B210 -> Fresagem para caixa de conectores Sf=20 mm | R67: n. connettori | S67: =H99 -> 1
R68: configurazione | S68: =VLOOKUP(H65,AB59:AG63,6,FALSE) -> 1
E69: =IF(H72=AA53,Translation!B39,Translation!B40) -> Base da viga | F69: =IF(H72=AA53,"Bh","Bs") -> Bh | G69: [mm] | H69: 180 | I69: =Translation!B207 -> !! elemento demasiado pequeno para o conector seleccionado !! | R69: evo | S69: =IF(H98=AB165,0,1) -> 1 | AB69: =IF($H$72=$AA$54,$AE$60:$AE$63,$AB$60:$AB$63) -> Entalhe viga principal
E70: =IF(H72=AA53,Translation!B41,Translation!B42) -> Altura da viga | F70: =IF(H72=AA53,"Hh","Bh") -> Hh | G70: [mm] | H70: 400 | R70: =INDEX(Foglio2!$B$5:$B$11,MATCH('LOCK-T'!$H$72,Foglio2!$A$5:$A$11,0)) -> 0 | X70: Dimensioni minime | AB70: Entalhe viga secundária
E71: =Translation!B43 -> Tipo de madeira | F71: - | G71: [-] | H71: GL24h | R71: =INDEX(Foglio2!$B$12:$B$13,MATCH('LOCK-T'!$H$98,Foglio2!$A$12:$A$13,0)) -> 0 | X71: elemento principale | AB71: Parafusos inclinados
E72: =Translation!B44 -> Orientação elemento principal | F72: - | G72: [-] | H72: Viga | X72: trave | AB72: LOCK STOP
E74: =CONCATENATE(Translation!B46," ",VLOOKUP(H74,Data!$B$4:$H$40,7,FALSE)) -> Classe de resistência para madeira EN 14080:2013 | H74: =H71 -> GL24h | I74: =IF(H72=AA54,Translation!B52,Translation!B53) -> Para os parafusos de fixação no elemento madeira com densidade característica ρk>420 kg/m3, não é necessário pré-furo. | W74: b | X74: =H117 -> 80
E75: =Translation!B47 -> Massa volúmica característica | F75: ρk | G75: [Kg/m3] | H75: =VLOOKUP($H$74,Data!$B$4:$G$36,2,FALSE) -> 385 | W75: h | X75: =H104+IF(H114=6,IF(H104=135,10,5),IF(H104=135,20,15)) -> 305
E76: =Translation!B48 -> Resistência característica à compressão paralela à fibra | F76: fc,0,k | G76: [N/mm2] | H76: =VLOOKUP($H$74,Data!$B$4:$G$36,3,FALSE) -> 24.0 | X76: pilastro
E77: =Translation!B49 -> Resistência característica à compressão perpendicular à fibra | F77: fc,90,k | G77: [N/mm2] | H77: =VLOOKUP($H$74,Data!$B$4:$G$36,4,FALSE) -> 2.5 | W77: b | X77: =IF(H99=2,H103+I103,H103)+IF(H114=7,24,17.5) -> 124
E78: =Translation!B50 -> Resistência característica ao corte para laminação de fibra | F78: fr,k | G78: [N/mm2] | H78: =VLOOKUP($H$74,Data!$B$4:$G$36,5,FALSE) -> 1.2 | W78: p | X78: =H117 -> 80
E79: =Translation!B51 -> Resistência característica ao corte | F79: fv,k | G79: [N/mm2] | H79: =VLOOKUP($H$74,Data!$B$4:$G$36,6,FALSE) -> 3.5 | X79: elemento secondario
E81: =Translation!B54 -> 4.2 Elemento secundária | X81: con preforo
E83: =Translation!B55 -> Base da viga | F83: bj | G83: [mm] | H83: 240 | I83: =Translation!B207 -> !! elemento demasiado pequeno para o conector seleccionado !! | W83: b | X83: =IF(H99=2,H103+I103,H103)+IF(H114=7,24,17.5) -> 124
E84: =Translation!B56 -> Altura da viga | F84: hj | G84: [mm] | H84: 400 | W84: h | X84: =H104 -> 290
E85: =Translation!B57 -> Tipo de madeira | F85: - | G85: [-] | H85: GL22h | I85: =Translation!B59 -> Para ângulos elevados, verifique se os parafusos não se sobressaem geometricamente das secções. | X85: senza preforo
E86: =Translation!B58 -> Ângulo no plano vertical | F86: α | G86: [°] | H86: 0 | R86: =IF(H99=2,IF(H104<>I104,0,1),1) -> 1 | W86: b | X86: =IF(H99=2,H103+I103,H103)+IF(H114>5,30,25.5) -> 130 | AB86: altezza lock [mm] | AC86: =VLOOKUP(H97,Data!AA4:AC24,3,FALSE) -> 290
H87: !!! | W87: h | X87: =H104+IF(H104=135,5,0) -> 290 | AB87: altezza lock 2 [mm] | AC87: =VLOOKUP(I97,Data!AA4:AC24,3,FALSE) -> 135
E88: =CONCATENATE(Translation!B60,VLOOKUP(H88,Data!$B$4:$H$40,7,FALSE)) -> Classe de resistência para madeira EN 14080:2013 | H88: =H85 -> GL22h | I88: =Translation!B66 -> Para os parafusos de fixação no elemento madeira com densidade característica ρk>420 kg/m3, não é necessário pré-furo.
E89: =Translation!B61 -> Massa volúmica característica | F89: ρk | G89: [Kg/m3] | H89: =VLOOKUP($H$88,Data!$B$4:$G$36,2,FALSE) -> 370
E90: =Translation!B62 -> Resistência característica à compressão paralela à fibra | F90: fc,0,k | G90: [N/mm2] | H90: =VLOOKUP($H$88,Data!$B$4:$G$36,3,FALSE) -> 22.0
E91: =Translation!B63 -> Resistência característica à compressão perpendicular à fibra | F91: fc,90,k | G91: [N/mm2] | H91: =VLOOKUP($H$88,Data!$B$4:$G$36,4,FALSE) -> 2.5
E92: =Translation!B64 -> Resistência ao corte caraterístico para laminação de fibra | F92: fr,k | G92: [N/mm2] | H92: =VLOOKUP($H$88,Data!$B$4:$G$36,5,FALSE) -> 1.2
E93: =Translation!B65 -> Resistência característica ao corte | F93: fv,k | G93: [N/mm2] | H93: =VLOOKUP($H$88,Data!$B$4:$G$36,6,FALSE) -> 3.5
E95: =Translation!B67 -> 5. Escolha do conector e dos parafusos
E97: =Translation!B68 -> Escolha do conector | H97: LOCK-T 100 290 | I97: LOCK-T 50 135 | K97: =Translation!B71 -> Os conetores acoplados devem ser iguais em altura!
E98: =Translation!B69 -> Versão com revestimento C4 EVO | H98: Sim | I98: =H98 -> Sim
E99: =Translation!B70 -> Acoplamento com conectores: número de conectores | H99: 1
H100: =IF(H98=AC165,VLOOKUP(H97,Data!AA4:AK22,11,FALSE)," ") -> (*) | I100: =IF(I98=AC165,VLOOKUP(I97,Data!AA4:AU22,21,FALSE)," ") -> 0 | AA100: =IF('LOCK-T'!H65='LOCK-T'!AB62,VLOOKUP(B6,Data!AA32:AC50,3,FALSE),VLOOKUP(B6,Data!AA32:AC50,2,FALSE)) -> 
E101: =Translation!B72 -> Código do conector utilizado | H101: =CONCATENATE(VLOOKUP(H97,Data!AA4:AI24,9,FALSE),IF(H98=AC165,VLOOKUP(H97,Data!AA4:AK22,10,FALSE),""),ROUND(VLOOKUP(H97,Data!AA4:AC24,2,FALSE),0),VLOOKUP(H97,Data!AA4:AC24,3,FALSE)) -> LOCKTEV100290 | I101: =CONCATENATE(VLOOKUP(I97,Data!AA4:AI24,9,FALSE),IF(I98=AC165,VLOOKUP(I97,Data!AA4:AK22,10,FALSE),""),ROUND(VLOOKUP(I97,Data!AA4:AC24,2,FALSE),0),VLOOKUP(I97,Data!AA4:AC24,3,FALSE)) -> LOCKTEVO50135
E102: =Translation!B73 -> Número de módulos básicos ETA-19/0831 | F102: nM | G102: [-] | H102: =VLOOKUP(H97,Data!$AA$4:$AF$24,6,FALSE) -> 4 | I102: =VLOOKUP(I97,Data!$AA$4:$AF$24,6,FALSE) -> 2
E103: =Translation!B74 -> Base | F103: BLOCK | G103: [mm] | H103: =VLOOKUP(H97,Data!AA4:AC24,2,FALSE) -> 100 | I103: =VLOOKUP(I97,Data!AA4:AC24,2,FALSE) -> 50
E104: =Translation!B75 -> Altura | F104: HLOCK | G104: [mm] | H104: =VLOOKUP(H97,Data!AA4:AC24,3,FALSE) -> 290 | I104: =VLOOKUP(I97,Data!AA4:AC24,3,FALSE) -> 135
E105: =Translation!B76 -> Espessura | F105: P | G105: [mm] | H105: =VLOOKUP(VLOOKUP(H97,Data!AA4:AD24,4,FALSE),Data!I4:T15,12,FALSE) -> 22 | I105: =VLOOKUP(VLOOKUP(I97,Data!AA4:AD24,4,FALSE),Data!I4:T15,12,FALSE) -> 22 | K105: =IF(H100="(*)",Translation!B81," ") -> (*) Código disponível mediante pedido especial
E106: =Translation!B77 -> Furos | F106: nviti - Ø | G106: [/-mm] | H106: =VLOOKUP(H97,Data!AA4:AG24,7,FALSE)*2 -> 72 | I106: =VLOOKUP(I97,Data!AA4:AG24,7,FALSE)*2 -> 12 | K106: =IF(I100="(**)",Translation!B82," ") -> 
E107: =Translation!B78 -> Bloqueie a área de contacto do conetor em T com a cabeça do motor ou a coluna | F107: ALOCK | G107: [mm2] | H107: =VLOOKUP(VLOOKUP(H97,Data!$AA$4:$AD$24,4,FALSE),Data!$I$4:$L$15,4,FALSE) -> 1945 | I107: =VLOOKUP(VLOOKUP(I97,Data!$AA$4:$AD$24,4,FALSE),Data!$I$4:$L$15,4,FALSE) -> 924
E108: =Translation!B79 -> Comprimento do conector LOCK T | F108: lLOCK | G108: [mm] | H108: =VLOOKUP(H97,Data!AA4:AC24,3,FALSE) -> 290 | I108: =VLOOKUP(I97,Data!AA4:AC24,3,FALSE) -> 135 | K108: =Translation!B83 -> Acoplamento com conectores:
E109: =Translation!B80 -> Fator de forma | F109: kLOCK | G109: [-] | H109: =VLOOKUP(VLOOKUP(H97,Data!$AA$4:$AD$24,4,FALSE),Data!$I$4:$S$15,11,FALSE) -> 0.55 | I109: =VLOOKUP(VLOOKUP(I97,Data!$AA$4:$AD$24,4,FALSE),Data!$I$4:$S$15,11,FALSE) -> 0.65
E111: =Translation!B84 -> Parafusos de fixação elemento principal | H111: LBS Ø 7 x 80 | I111: =H111 -> LBS Ø 7 x 80
E113: =Translation!B85 -> Código parafusos elemento principal | H113: =VLOOKUP(H111,Screws!C6:K34,9,FALSE) -> LBS780 | I113: =H113 -> LBS780
E114: =Translation!B86 -> Diâmetro nominal | F114: d1 | G114: [mm] | H114: =VLOOKUP(H111,Screws!AG6:AP34,2,FALSE) -> 7 | I114: 7
E115: =Translation!B87 -> Diâmetro do núcleo | F115: d2 | G115: [mm] | H115: =VLOOKUP(H111,Screws!AG6:AP34,3,FALSE) -> 4.4 | I115: 4.4
E116: =Translation!B88 -> Diâmetro da cabeça | F116: dk | G116: [mm] | H116: =VLOOKUP(H111,Screws!AG6:AP34,4,FALSE) -> 11 | I116: 11
E117: =Translation!B89 -> Comprimento | F117: L | G117: [mm] | H117: =VLOOKUP(H111,Screws!AG6:AP34,5,FALSE) -> 80 | I117: 80
E118: =Translation!B90 -> Comprimento da rosca | F118: sg | G118: [mm] | H118: =VLOOKUP(H111,Screws!AG6:AP34,6,FALSE) -> 75 | I118: 75
E119: =Translation!B91 -> Parâmetro característico à extração | F119: fax,k | G119: [N/mm2] | H119: =VLOOKUP(H111,Screws!AG6:AP34,7,FALSE) -> 11.7 | I119: 11.7
E120: =Translation!B92 -> Densidade associada | F120: ρa,ax | G120: [Kg/m3] | H120: =VLOOKUP(H111,Screws!AG6:AP34,8,FALSE) -> 350 | I120: 350
E121: =Translation!B93 -> Resistência característica à tração | F121: ftens,k | G121: [kN] | H121: =VLOOKUP(H111,Screws!AG6:AP34,9,FALSE) -> 15.4 | I121: 15.4
E122: =Translation!B94 -> Momento plástico característico | F122: My,k | G122: [Nm] | H122: =VLOOKUP(H111,Screws!AG6:AP34,10,FALSE) -> 14.2 | I122: 14.2
E124: =Translation!B95 -> Parafusos fixações viga secundária | H124: LBS Ø 7 x 80 | I124: =H124 -> LBS Ø 7 x 80
E126: =Translation!B97 -> Código parafusos viga secundária | H126: =VLOOKUP(H124,Screws!$C$6:$K$34,9,FALSE) -> LBS780 | I126: =H126 -> LBS780 | K126: =Translation!B96 -> Configuração Flat:
E127: =Translation!B98 -> Diâmetro nominal | F127: d1 | G127: [mm] | H127: =VLOOKUP(H124,Screws!$AG$6:$AP$34,2,FALSE) -> 7 | I127: 7 | R127: =IF(H97="LOCK-T 18 80",Screws!C37,IF($AC$86<130,IF(H45=3,Screws!V13:V14,Screws!$V$6:$V$9),IF(H45=3,Screws!X13:X16,Screws!$X$6:$X$11))) -> LBS Ø 5 x 25
E128: =Translation!B99 -> Diâmetro do núcleo | F128: d2 | G128: [mm] | H128: =VLOOKUP(H124,Screws!$AG$6:$AP$34,3,FALSE) -> 4.4 | I128: 4.4 | R128: LBS Ø 5 x 40
E129: =Translation!B100 -> Diâmetro da cabeça | F129: dk | G129: [mm] | H129: =VLOOKUP(H124,Screws!$AG$6:$AP$34,4,FALSE) -> 11 | I129: 11 | R129: LBS Ø 5 x 50
E130: =Translation!B101 -> Comprimento | F130: L | G130: [mm] | H130: =VLOOKUP(H124,Screws!$AG$6:$AP$34,5,FALSE) -> 80 | I130: 80 | R130: LBS Ø 5 x 60
E131: =Translation!B102 -> Comprimento da rosca | F131: sg | G131: [mm] | H131: =VLOOKUP(H124,Screws!$AG$6:$AP$34,6,FALSE) -> 75 | I131: 75 | R131: LBS Ø 5 x 70
E132: =Translation!B103 -> Parâmetro característico à extração | F132: fax,k | G132: [N/mm2] | H132: =VLOOKUP(H124,Screws!$AG$6:$AP$34,7,FALSE) -> 11.7 | I132: 11.7 | R132: NO
E133: =Translation!B104 -> Densidade associada | F133: ρa,ax | G133: [Kg/m3] | H133: =VLOOKUP(H124,Screws!$AG$6:$AP$34,8,FALSE) -> 350 | I133: 350
E134: =Translation!B105 -> Resistência característica à tração | F134: ftens,k | G134: [kN] | H134: =VLOOKUP(H124,Screws!$AG$6:$AP$34,9,FALSE) -> 15.4 | I134: 15.4
E135: =Translation!B106 -> Momento plástico característico | F135: My,k | G135: [Nm] | H135: =VLOOKUP(H124,Screws!$AG$6:$AP$34,10,FALSE) -> 14.2 | I135: 14.2
E138: =Translation!B108 -> Tipo de conector LOCK STOP | H138: 2 x LOCKSTOP100
E141: =Translation!B109 -> Parafusos inclinados para resistência ao levantamento e/ou lateral | H141: LBS Ø 5 x 60 | I141: =H141 -> LBS Ø 5 x 60
E142: =Translation!B110 -> Número de parafusos inclinados | F142: nin | G142: [mm] | H142: =Uplift!AG30 -> 3 | I142: =Uplift!AG31 -> 1
E144: =Translation!B111 -> Código parafusos | H144: =IF(H141="NO","-",VLOOKUP(H141,Screws!C6:K34,9,FALSE)) -> LBS560 | I144: =H144 -> LBS560
E145: =Translation!B112 -> Diâmetro nominal | F145: d1 | G145: [mm] | H145: =IF(H141="NO","-",VLOOKUP(H141,Screws!AG6:AP34,2,FALSE)) -> 5 | I145: =H145 -> 5
E146: =Translation!B113 -> Diâmetro do núcleo | F146: d2 | G146: [mm] | H146: =IF(H141="NO","-",VLOOKUP(H141,Screws!AG6:AP34,3,FALSE)) -> 3 | I146: 3
E147: =Translation!B114 -> Diâmetro da cabeça | F147: dk | G147: [mm] | H147: =IF(H141="NO","-",VLOOKUP(H141,Screws!AG6:AP34,4,FALSE)) -> 7.8 | I147: 7.8
E148: =Translation!B115 -> Comprimento | F148: L | G148: [mm] | H148: =IF(H141="NO","-",VLOOKUP(H141,Screws!AG6:AP34,5,FALSE)) -> 60 | I148: 60
E149: =Translation!B116 -> Comprimento da rosca | F149: sg | G149: [mm] | H149: =IF(H141="NO","-",VLOOKUP(H141,Screws!AG6:AP34,6,FALSE)) -> 56 | I149: 56
E150: =Translation!B117 -> Parâmetro característico à extração | F150: fax,k | G150: [N/mm2] | H150: =IF(H141="NO","-",VLOOKUP(H141,Screws!AG6:AP34,7,FALSE)) -> 11.7 | I150: 11.7
E151: =Translation!B118 -> Densidade associada | F151: ρa,ax | G151: [Kg/m3] | H151: =IF(H141="NO","-",VLOOKUP(H141,Screws!AG6:AP34,8,FALSE)) -> 350 | I151: 350
E152: =Translation!B119 -> Resistência característica à tração | F152: ftens,k | G152: [kN] | H152: =IF(H141="NO","-",VLOOKUP(H141,Screws!AG6:AP34,9,FALSE)) -> 7.9 | I152: 7.9
E153: =Translation!B120 -> Momento plástico característico | F153: My,k | G153: [Nm] | H153: =IF(H141="NO","-",VLOOKUP(H141,Screws!AG6:AP34,10,FALSE)) -> 5.4 | I153: 5.4
E155: =Translation!B141 -> 6. Verificações de projeto para direção individual
E157: =Translation!B142 -> A dimensão e a vida dos elementos de madeira devem ser feitas à parte. Em particular, para cargas perpendiculares ao eixo da viga, é recomendável realizar uma verificação do splitting em ambos os elementos de madeira.
AB165: =Translation!B3 -> Não | AC165: =Translation!B2 -> Sim
AB166: colonna A | AC166: colonna B
E167: =Translation!B143 -> 6.1 Corte vertical (Fv) | AB167: γM | AC167: γM
AA168: unioni | AB168: 1.5 | AC168: 1.4
E169: =Translation!B144 -> Resistência característica ao recalcamento elemento principal | F169: fh,H,rk | G169: [N/mm2] | H169: =V_downward!AO6 -> 17.61
E170: =Translation!B145 -> Capacidade axial caraterística de um parafuso no elemento principal | F170: Fax,H,rk | G170: [N] | H170: =V_downward!AU6 -> 6364
E171: =Translation!B146 -> Capacidade de carga caraterística por plano de corte para fixação elemento principal | F171: Fv,H,rk | G171: [N] | H171: =V_downward!AX6 -> 3741
E172: =Translation!B147 -> Fator de forma | F172: kH,2 | G172: [-] | H172: =V_downward!AZ6 -> 144
E173: =Translation!B148 -> Resistência característica elemento principal | F173: F2,H,Rk | G173: [kN] | H173: =IF(H99=2,(V_downward!$BA$6+secondo_V_downward!$BA$6)/1000,V_downward!$BA$6/1000) -> 133.2
E175: =Translation!B149 -> Resistência característica alumínio | F175: F2,alu,Rk | G175: [kN] | H175: =IF(H99=2,(V_downward!$BB$6+secondo_V_downward!$BB$6)/1000,V_downward!$BB$6/1000) -> 96.0
E177: =Translation!B150 -> Resistência característica ao recalcamento elemento secundário | F177: fh,J,rk | G177: [N/mm2] | H177: =V_downward!R6 -> 6.8
E178: =Translation!B151 -> Capacidade axial caraterística de um parafuso no elemento secundário | F178: Fax,J,rk | G178: [N] | H178: =V_downward!Y6 -> 6165
E179: =Translation!B152 -> Capacidade de carga caraterística por plano de corte para fixação elemento secundário | F179: Fv,J,rk | G179: [N] | H179: =V_downward!AB6 -> 2617
E180: =Translation!B153 -> Resistência característica elemento secundário | F180: F2,J,Rk | G180: [kN] | H180: =IF(H99=2,(V_downward!$AC$6+secondo_V_downward!$AC$6)/1000,V_downward!$AC$6/1000) -> 94.2
AA181: classe di servizio | AB181: =Translation!B128 -> Permanente | AC181: =Translation!B129 -> Longa duração | AD181: =Translation!B130 -> Média duração | AE181: =Translation!B131 -> Breve duração | AF181: =Translation!B132 -> Instantâneo
E182: =Translation!B154 -> Resistência característica | F182: FV,Rk | G182: [kN] | H182: =IF(H99=2,V_downward!$BC$6+secondo_V_downward!$BC$6,V_downward!$BC$6) -> 94.2 | AA182: 1 | AB182: 0.60 | AC182: 0.70 | AD182: 0.80 | AE182: 0.90 | AF182: 1.10
E183: =Translation!B155 -> Resistência do design | F183: FV,Rd | G183: [kN] | H183: =MIN(($H$47*MIN(H173,H180))/$H$50,H175/H51) -> 58.0 | AA183: 2 | AB183: 0.60 | AC183: 0.70 | AD183: 0.80 | AE183: 0.90 | AF183: 1.10
E184: =Translation!B33 -> Ação de corte vertical | F184: Fv,Ed | G184: [kN] | H184: =H56 -> 4.0 | AA184: 3 | AB184: 0.50 | AC184: 0.55 | AD184: 0.65 | AE184: 0.70 | AF184: 0.90
E185: =Translation!B156 -> Verificação da conexão | F185: =IF(H185>1,Translation!B209,Translation!B208) -> VERIFICADO | H185: =$H$56/H183 -> 7%
E188: =Translation!B157 -> 6.2 Corte vertical de elevação (Fup)
E190: =Translation!B158 -> Resistência característica ao recalcamento | F190: fh,in,rk | G190: [N/mm2] | H190: =IF(H141="NO","-",Uplift!AO6) -> 19.5
E191: =Translation!B159 -> Capacidade axial caraterística de um parafuso inclinado | F191: Fax,in,rk | G191: [N] | H191: =IF(H141="NO","-",Uplift!AU6) -> 3030
E192: =Translation!B160 -> Resistência característica elemento principal | F192: F3,H,Rk | G192: [kN] | H192: =IF(H141="NO","-",Uplift!$BA$6/1000) -> 7.2
E194: =Translation!B161 -> Resistência característica alumínio | F194: F2,alu,Rk | G194: [kN] | H194: =IF(H141="NO","-",IF(H99=2,(0.5*Uplift!$BB$6+0.5*secondo_Uplift!$BB$6)/1000,(0.5*Uplift!$BB$6)/1000)) -> 48.0
E196: =Translation!B162 -> Resistência característica ao recalcamento | F196: fh,J,rk | G196: [N/mm2] | H196: =IF(H141="NO","-",Uplift!R6) -> 6.8
E197: =Translation!B163 -> Capacidade axial caraterística de um parafuso inclinado | F197: Fax,J,rk | G197: [N] | H197: =IF(H141="NO","-",Uplift!Y6) -> 6165
E198: =Translation!B164 -> Capacidade de carga caraterística por plano de corte para fixação elemento secundário | F198: Fv,J,rk | G198: [N] | H198: =IF(H141="NO","-",Uplift!AB6) -> 2617
E199: =Translation!B165 -> Resistência característica elemento secundário | F199: F3,J,Rk | G199: [kN] | H199: =IF(H141="NO","-",IF(H99=2,(Uplift!$AC$6+secondo_Uplift!$AC$6)/1000,Uplift!$AC$6/1000)) -> 94.2
E201: =Translation!B166 -> Resistência característica | F201: FUP,Rk | G201: [kN] | H201: =IF(H141="NO","-",Uplift!$BC$6) -> 7.2
E202: =Translation!B167 -> Resistência do design | F202: FUP,Rd | G202: [kN] | H202: =IF(H141="NO","-",MIN(($H$47*MIN(H192,H199))/$H$50,H194/H51)) -> 4.5
E203: =Translation!B34 -> Ação de corte per elevação | F203: Fup,Ed | G203: [kN] | H203: =H57 -> 1.0
E204: =Translation!B168 -> Verificação da conexão | F204: =IF(H141="NO","-",IF(H204>1,Translation!B209,Translation!B208)) -> VERIFICADO | H204: =IF(H141="NO","-",$H$57/H202) -> 22%
E207: =Translation!B169 -> 6.3 axial (Fax)
E209: =Translation!B170 -> Resistência característica elemento principal | F209: F1,H,Rk | G209: [kN] | H209: =IF(H99=2,(Axial!$AX$6+secondo_Axial!$AX$6)/1000,Axial!$AX$6/1000) -> 46.3
E210: =Translation!B171 -> Resistência característica alumínio | F210: F1,alu,Rk | G210: [kN] | H210: =IF(H99=2,(Axial!$AZ$6+secondo_Axial!$AZ$6)/1000,Axial!$AZ$6/1000) -> 11.2
E211: =Translation!B172 -> Resistência característica elemento secundário | F211: F1,J,Rk | G211: [kN] | H211: =IF(H99=2,(Axial!$AY$6+secondo_Axial!$AY$6)/1000,Axial!$AY$6/1000) -> 13.5
E213: =Translation!B173 -> Resistência característica | F213: F1,Rk | G213: [kN] | H213: =IF(H99=2,Axial!$BA$6+secondo_Axial!$BA$6,Axial!$BA$6) -> 11.2
E214: =Translation!B174 -> Resistência do design | F214: F1,Rd | G214: [kN] | H214: =MIN(($H$47*MIN(H209,H211))/$H$50,H210/H51) -> 8.3
E215: =Translation!B35 -> Ação axial | F215: Fax,Ed | G215: [kN] | H215: =H58 -> 2.0
E216: =Translation!B175 -> Verificação da conexão | F216: =IF(H216>1,Translation!B209,Translation!B208) -> VERIFICADO | H216: =$H$58/H214 -> 24%
E219: =Translation!B176 -> 6.4 Corte lateral (Flat)
E221: =Translation!B177 -> Número efetivo de parafusos por elemento principal ou secundário | F221: nef | G221: [-] | H221: =VLOOKUP(H65,Lateral!BM7:BP11,3,FALSE) -> 20.9
E222: =Translation!B178 -> Fator de forma | F222: klat | G222: [-] | H222: =VLOOKUP(H65,Lateral!BM7:BP11,4,FALSE) -> 227
E223: =Translation!B179 -> Coeficiente de acordo com EN 1995-1-1, 6.1.5 | F223: kc,90 | G223: [-] | H223: =Lateral!AM32 -> 1
E224: =Translation!B180 -> Coeficiente de acordo com EN 1995-1-1, eq. 6.62 | F224: kv | G224: [-] | H224: =Lateral!AX32 -> 0.728
E226: =Translation!B181 -> Resistência característica | F226: F45,Rk | G226: [kN] | H226: =IF(H99=1,VLOOKUP($H$65,Lateral!$BD$6:$BG$11,4,FALSE),VLOOKUP($H$65,secondo_Lateral!$BD$6:$BG$11,4,FALSE)) -> 46.7
E227: =Translation!B182 -> Resistência do design | F227: F45,Rd | G227: [kN] | H227: =IF(H99=1,VLOOKUP($H$65,Lateral!$BD$6:$BH$11,5,FALSE),VLOOKUP($H$65,secondo_Lateral!$BD$6:$BH$11,5,FALSE)) -> 28.7
E228: =Translation!B36 -> Ação lateral | F228: Flat,Ed | G228: [kN] | H228: =H59 -> 1.0
E229: =Translation!B183 -> Verificação da conexão | F229: =IF(H229>1,Translation!B209,Translation!B208) -> VERIFICADO | H229: =$H$59/H227 -> 3%
E233: =Translation!B184 -> 7. Verificações de projeto em caso de estresse combinado | W233: =IF(H235=AB165,"NON",CONCATENATE(IF(H237=AC165,"A",),IF(H238=AC165,"B",),IF(H239=AC165,"C",),IF(H240=AC165,"D",))) -> AC
E235: =Translation!B185 -> Verificação combinada de esforço necessária? | H235: Sim | I235: =IF(H235=AC165,Translation!B191," ") -> Selecione as tensões a considerar no veículo combinado.
E237: =Translation!B186 -> Corte vertical | F237: Fv,d | H237: Sim | Z237: =H237 -> Sim | AA237: Fv,d | AB237: =H185 -> 7%
E238: =Translation!B187 -> Corte vertical de elevação | F238: Fup,d | H238: Não | Z238: =H238 -> Não | AA238: Fup,d | AB238: =H204 -> 22%
E239: =Translation!B188 -> Ação axial | F239: Fax,d | H239: Sim | T239: A | U239: =H185^2 -> 0% | W239: AC | X239: =U239+U241 -> 6% | Z239: =H239 -> Sim | AA239: Fax,d | AB239: =H216 -> 24%
E240: =Translation!B189 -> Corte lateral | F240: Flat,d | H240: Não | T240: B | U240: =H204^2 -> 5% | W240: ACD | X240: =U239+U241+U242 -> 6% | Z240: =H240 -> Não | AA240: Flat,d | AB240: =H229 -> 3%
T241: C | U241: =H216^2 -> 6% | W241: AD | X241: =U239+U242 -> 1% | Z241: =IF(Z237=AB165,IF(Z238=AB165,IF(Z239=AB165,IF(Z240=AB165,AC165,AB165),AB165),AB165),AB165) -> Não | AB241: 0%
E242: =Translation!B190 -> Fv,d e Fup,d são forças que atuam em direções opostas. Portanto, apenas uma das forças Fv,d e Fup,d pode atuar em combinação com as forças Fax,d ou Flat,d. | F242: =IF(H242>1,Translation!B209,Translation!B208) -> VERIFICADO | H242: =_xlfn.IFNA(VLOOKUP(W233,W239:X245,2,FALSE),VLOOKUP(AC165,Z237:AB241,3,FALSE)) -> 6% | T242: D | U242: =H229^2 -> 0% | W242: BC | X242: =U240+U241 -> 11%
W243: BCD | X243: =U240+U241+U242 -> 11%
E244: =Translation!B192 -> 8. Resumo quantidade y códigos produto | W244: BD | X244: =U240+U242 -> 5%
W245: CD | X245: =U241+U242 -> 6%
E246: =Translation!B193 -> Número de conexões | F246: n° | H246: 3
H248: =Translation!B194 -> Código | I248: =Translation!B195 -> Quantidade necessária
E249: =Translation!B197 -> Ligador não aparente de engate | H249: =H101 -> LOCKTEV100290 | I249: =H246 -> 3 | J249: =VLOOKUP(H97,Data!AA4:AV22,22,FALSE) -> 10
E250: =Translation!B198 -> Segundo ligador oculto, si ligadores acoplados | H250: =IF(H99=2,I101,"-") -> - | I250: =IF(H99=2,H246,"-") -> - | J250: =IF(H99=2,VLOOKUP(I97,Data!AA4:AV22,22,FALSE),"-") -> -
E252: =Translation!B199 -> Parafusos de fixação elemento principal | H252: =H113 -> LBS780 | I252: =IF(H99=2,((H106+I106)/2)*H246,(H106/2)*H246) -> 108 | J252: =VLOOKUP(H252,Screws!AS6:AT34,2,FALSE) -> 100
E253: =Translation!B200 -> Parafusos fixações viga secundária | H253: =H126 -> LBS780 | I253: =IF(H99=2,((H106+I106)/2)*H246,(H106/2)*H246) -> 108 | J253: =VLOOKUP(H253,Screws!AS6:AT34,2,FALSE) -> 100
E254: =Translation!B201 -> Parafusos inclinados para resistência ao levantamento e/ou lateral | H254: =H144 -> LBS560 | I254: =IF(H99=2,(H142+I142)*H246,H142*H246) -> 9 | J254: =IF(H141="NO","-",VLOOKUP(H254,Screws!AS6:AT34,2,FALSE)) -> 200
E256: =Translation!B202 -> Conector LOCK STOP | H256: =IF(H65="LOCK STOP",VLOOKUP(H138,Data!BA4:BB16,2,FALSE),"-") -> - | I256: =IF(H65="LOCK STOP",VLOOKUP(H138,Data!BA4:BJ16,10,FALSE)*H246,"-") -> - | J256: =IF(H65="LOCK STOP",VLOOKUP(H138,Data!BA4:BK16,11,FALSE),"-") -> -
E280: =Translation!B203 -> A Rotho Blaas efetuou as verificações segundo o método dos Estados-Limite em conformidade com a EC 1995-1-1 Eurocódigo 5 - Conceção de estruturas de madeira. Para os valores de resistência mecânica e para a geometria dos conectores LOCK e LOCK STOP, fez-se referência ao que consta da ETA-19/0831. Para os valores de resistência mecânica e para a geometria dos parafusos, fez-se referência ao que consta da ETA-11/0030. Os valores estáticos foram calculados considerando uma espessura constante do elemento metálico, incluindo a espessura do LOCK STOP. A resistência Fup com parafuso inclinado foi calculado considerando o número efetivo de parafusos carregados axialmente de acordo com a ETA-11/0030. Deve ser dada especial atenção à execução da fresagem no elemento principal ou na viga secundária para limitar o deslizamento lateral da ligação. A resistência Flat com o parafuso inclinado foi calculada considerando o número efetivo de parafusos dispostos paralelamente à fibra de acordo com a EN 1995-1-1. Se forem utilizados conectores acoplados, deve ser prestada especial atenção ao alinhamento durante a colocação, para evitar tensões diferentes nos dois conectores. O conector deve ser sempre totalmente fixo, utilizando todos os furos. Não é permitida a fixação com pregagem parcial. Devem ser utilizados parafusos do mesmo comprimentos em cada metade do conector. No caso da fresagem no elemento principal ou na viga secundária, deve ter-se especial cuidado ao efetuar a fresagem, de modo a limitar o deslizamento lateral da ligação. A dimensão e a verificação dos elementos de madeira devem ser feitas à parte. Todos os cálculos devem ser verificados e aprovados pelo designer responsável antes da execução. É dever do projetista responsável verificar em cada utilização a conformidade dos dados com as normas em vigor e com o projeto. A responsabilidade final pela escolha do produto adequado para uma aplicação específica cabe ao projetista.
E291: =Translation!B204 -> Estas indicações relativas à ficha de verificação devem ter um carácter indicativo, no pressuposto de que a responsabilidade total do projecto de ligação incumbe ao projectista.
E292: =Translation!B205 -> A concepção dos elementos de madeira deve ser realizada separadamente do projectista da estrutura.
E293: =Translation!B206 -> Como especificado nas Condições Gerais aceites pelo utilizador ao descarregar a folha de cálculo: os resultados obtidos com esta ferramenta de cálculo são de carácter indicativo e devem ser considerados como um serviço técnico-comercial no âmbito da actividade de vendas da Rotho Blaas srl. O número e a espessura das inserções devem ser determinados pelo projectista responsável que deve verificar a exactidão dos resultados decorrentes do tratamento dos dados introduzidos. A Rotho Blaas srl não garante o cumprimento da legislação em vigor nem a concepção dos cálculos efectuados através desta folha de cálculo. Em particular, na sequência da alteração das disposições pertinentes como, por exemplo, normas, aprovações, etc., o programa pode tornar-se, em parte ou na totalidade, inválido. A Rotho Blaas srl não garante e não será responsável por danos ou consequências directas ou indirectas ou outras, de qualquer forma (garantia por defeitos, garantia por mau funcionamento, responsabilidade pelo produto ou responsabilidade legal, etc.). O Utilizador declara utilizar a folha de cálculo como profissional com a obrigação e responsabilidade de verificar se a folha de cálculo satisfaz as suas necessidades específicas.

Sheet Screws
B3: =Translation!B10 -> Geometria e características parafusos | AG3: VITI | AH3: Diametro nominale | AI3: Diametro nocciolo | AJ3: Diametro testa | AK3: Lunghezza | AL3: Lunghezza filetto | AM3: Parametro caratteristico estrazione | AN3: Densità associata | AO3: Resistenza caratteristica a trazione | AP3: Momento caratteristico di snervamento
B4: =Translation!B11 -> Tipo de parafuso | E4: =Translation!B12 -> Diâmetro | G4: =Translation!B13 -> Comprimento | H4: =CONCATENATE(Translation!B14," b") -> Rosca b | I4: My,Rk | J4: ftens,k | AH4: d1 | AI4: d2 | AJ4: dk | AK4: L | AL4: sg | AM4: fax,k | AN4: ρa,ax | AO4: ftens,k | AP4: My,k | AT4: PZ.
E5: mm | G5: mm | H5: mm | I5: Nmm | J5: N | AH5: [mm] | AI5: [mm] | AJ5: [mm] | AK5: [mm] | AL5: [mm] | AM5: [N/mm2] | AN5: [Kg/m3] | AO5: [kN] | AP5: [Nm]
B6: LBS525 | C6: =D6&" Ø "&E6&" x "&G6 -> LBS Ø 5 x 25 | D6: LBS | E6: 5 | F6: x | G6: 25 | H6: 21 | I6: 5417.2 | J6: 7900 | K6: LBS525 | O6: =C6 -> LBS Ø 5 x 25 | R6: =C11 -> LBS Ø 7 x 60 | V6: =O6 -> LBS Ø 5 x 25 | X6: =O6 -> LBS Ø 5 x 25 | AG6: =C6 -> LBS Ø 5 x 25 | AH6: =E6 -> 5 | AI6: =IF(AH6=5,3,4.4) -> 3 | AJ6: =IF(AH6=5,7.8,11) -> 7.8 | AK6: =G6 -> 25 | AL6: =H6 -> 21 | AM6: 11.7 | AN6: 350 | AO6: =IF(AH6=5,7.9,15.4) -> 7.9 | AP6: =IF(AH6=5,5.4,14.2) -> 5.4 | AS6: LBS525 | AT6: 500
B7: LBS540 | C7: LBS Ø 5 x 40 | D7: LBS | E7: 5 | F7: x | G7: 40 | H7: 36 | I7: =I6 -> 5417.2 | J7: =J6 -> 7900 | K7: LBS540 | O7: =C7 -> LBS Ø 5 x 40 | R7: =C12 -> LBS Ø 7 x 80 | V7: =O7 -> LBS Ø 5 x 40 | X7: =O7 -> LBS Ø 5 x 40 | AG7: =C7 -> LBS Ø 5 x 40 | AH7: =E7 -> 5 | AI7: =IF(AH7=5,3,4.4) -> 3 | AJ7: =IF(AH7=5,7.8,11) -> 7.8 | AK7: =G7 -> 40 | AL7: =H7 -> 36 | AM7: 11.7 | AN7: 350 | AO7: =IF(AH7=5,7.9,15.4) -> 7.9 | AP7: =IF(AH7=5,5.4,14.2) -> 5.4 | AS7: LBS540 | AT7: 500
B8: LBS550 | C8: LBS Ø 5 x 50 | D8: LBS | E8: 5 | F8: x | G8: 50 | H8: 46 | I8: =I7 -> 5417.2 | J8: 7900 | K8: LBS550 | O8: LBS Ø 5 x 50 | R8: LBS Ø 7 x 100 | V8: =O8 -> LBS Ø 5 x 50 | X8: LBS Ø 5 x 50 | AG8: LBS Ø 5 x 50 | AH8: 5 | AI8: 3 | AJ8: 7.8 | AK8: 50 | AL8: 46 | AM8: 11.7 | AN8: 350 | AO8: 7.9 | AP8: 5.4 | AS8: LBS550 | AT8: 200
B9: LBS560 | C9: LBS Ø 5 x 60 | D9: LBS | E9: 5 | F9: x | G9: 60 | H9: 56 | I9: 5417.2 | J9: 7900 | K9: LBS560 | O9: LBS Ø 5 x 60 | R9: =C21 -> KKF Ø 6 x 80 | V9: NO | X9: LBS Ø 5 x 60 | AG9: LBS Ø 5 x 60 | AH9: 5 | AI9: 3 | AJ9: 7.8 | AK9: 60 | AL9: 56 | AM9: 11.7 | AN9: 350 | AO9: 7.9 | AP9: 5.4 | AS9: LBS560 | AT9: 200
B10: LBS570 | C10: LBS Ø 5 x 70 | D10: LBS | E10: 5 | F10: x | G10: 70 | H10: 66 | I10: 5417.2 | J10: 7900 | K10: LBS570 | M10: =C15 -> KKF Ø 5 x 50 | O10: LBS Ø 5 x 70 | R10: =C22 -> KKF Ø 6 x 100 | X10: =O10 -> LBS Ø 5 x 70 | AG10: LBS Ø 5 x 70 | AH10: 5 | AI10: 3 | AJ10: 7.8 | AK10: 70 | AL10: 66 | AM10: 11.7 | AN10: 350 | AO10: 7.9 | AP10: 5.4 | AS10: LBS570 | AT10: 200
B11: LBS760 | C11: LBS Ø 7 x 60 | D11: LBS | E11: 7 | F11: x | G11: 60 | H11: 55 | I11: 14174 | J11: 19200 | K11: LBS760 | M11: =VLOOKUP(M10,Screws!$C$6:$J$29,8,FALSE) -> 7900 | O11: =C14 -> KKF Ø 5 x 40 | R11: KKF Ø 6 x 120 | X11: NO | AG11: LBS Ø 7 x 60 | AH11: 7 | AI11: 4.4 | AJ11: 11 | AK11: 60 | AL11: 55 | AM11: 11.7 | AN11: 350 | AO11: 15.4 | AP11: 14.2 | AS11: LBS760 | AT11: 100
B12: LBS780 | C12: LBS Ø 7 x 80 | D12: LBS | E12: 7 | F12: x | G12: 80 | H12: 75 | I12: =I11 -> 14174 | J12: =J11 -> 19200 | K12: LBS780 | O12: KKF Ø 5 x 50 | R12: =C28 -> HBS PLATE EVO Ø 6 x 80 | AG12: LBS Ø 7 x 80 | AH12: 7 | AI12: 4.4 | AJ12: 11 | AK12: 80 | AL12: 75 | AM12: 11.7 | AN12: 350 | AO12: 15.4 | AP12: 14.2 | AS12: LBS780 | AT12: 100
B13: LBS7100 | C13: LBS Ø 7 x 100 | D13: LBS | E13: 7 | F13: x | G13: 100 | H13: 95 | I13: =I12 -> 14174 | J13: =J12 -> 19200 | K13: LBS7100 | O13: KKF Ø 5 x 60 | R13: =C29 -> HBS PLATE EVO Ø 6 x 90 | V13: LBS EVO Ø 5 x 50 | X13: LBS EVO Ø 5 x 50 | AG13: LBS Ø 7 x 100 | AH13: 7 | AI13: =IF(AH13=5,3,4.4) -> 4.4 | AJ13: 11 | AK13: 100 | AL13: 95 | AM13: 11.7 | AN13: 350 | AO13: 15.4 | AP13: 14.2 | AS13: LBS7100 | AT13: 100
B14: KKF540 | C14: KKF Ø 5 x 40 | D14: KKF | E14: 5 | F14: x | G14: 40 | H14: 24 | I14: 5417.2 | J14: 7900 | K14: KKF540 | O14: KKF Ø 5 x 70 | R14: LBS EVO Ø 7 x 80 | V14: NO | X14: LBS EVO Ø 5 x 60 | AG14: KKF Ø 5 x 40 | AH14: 5 | AI14: =IF(AH14=5,3.25,4.05) -> 3.25 | AJ14: =IF(AH14=5,9.65,11.65) -> 9.65 | AK14: 40 | AL14: 24 | AM14: 11.7 | AN14: 350 | AO14: =IF(AH14=5,7.9,11.3) -> 7.9 | AP14: =IF(AH14=5,4.5,8.2) -> 4.5 | AS14: KKF540 | AT14: 200
B15: KKF550 | C15: KKF Ø 5 x 50 | D15: KKF | E15: 5 | F15: x | G15: 50 | H15: 30 | I15: 5417.2 | J15: 7900 | K15: KKF550 | O15: KKF Ø 5 x 80 | R15: LBS EVO Ø 7 x 100 | X15: LBS EVO Ø 5 x 70 | AG15: KKF Ø 5 x 50 | AH15: 5 | AI15: =IF(AH15=5,3.25,4.05) -> 3.25 | AJ15: =IF(AH15=5,9.65,11.65) -> 9.65 | AK15: 50 | AL15: 30 | AM15: 11.7 | AN15: 350 | AO15: =IF(AH15=5,7.9,11.3) -> 7.9 | AP15: =IF(AH15=5,4.5,8.2) -> 4.5 | AS15: KKF550 | AT15: 200
B16: KKF560 | C16: KKF Ø 5 x 60 | D16: KKF | E16: 5 | F16: x | G16: 60 | H16: 35 | I16: 5417.2 | J16: 7900 | K16: KKF560 | O16: KKF Ø 5 x 90 | R16: - | X16: NO | AA16: =IF($AC$83<130,IF('LOCK-T'!H45=3,Screws!V13:V14,Screws!$V$6:$V$9),IF('LOCK-T'!H45=3,Screws!X13:X16,Screws!$X$6:$X$11)) -> LBS Ø 5 x 25 | AG16: KKF Ø 5 x 60 | AH16: 5 | AI16: 3.25 | AJ16: 9.65 | AK16: 60 | AL16: 35 | AM16: 11.7 | AN16: 350 | AO16: 7.9 | AP16: 4.5 | AS16: KKF560 | AT16: 200
B17: KKF570 | C17: KKF Ø 5 x 70 | D17: KKF | E17: 5 | F17: x | G17: 70 | H17: 40 | I17: 5417.2 | J17: 7900 | K17: KKF570 | O17: KKF Ø 5 x 100 | AA17: LBS Ø 5 x 40 | AG17: KKF Ø 5 x 70 | AH17: 5 | AI17: 3.25 | AJ17: 9.65 | AK17: 70 | AL17: 40 | AM17: 11.7 | AN17: 350 | AO17: 7.9 | AP17: 4.5 | AS17: KKF570 | AT17: 100
B18: KKF580 | C18: KKF Ø 5 x 80 | D18: KKF | E18: 5 | F18: x | G18: 80 | H18: 50 | I18: 5417.2 | J18: 7900 | K18: KKF580 | O18: =C24 -> HBS PLATE EVO Ø 5 x 50 | AA18: LBS Ø 5 x 50 | AG18: KKF Ø 5 x 80 | AH18: 5 | AI18: 3.25 | AJ18: 9.65 | AK18: 80 | AL18: 50 | AM18: 11.7 | AN18: 350 | AO18: 7.9 | AP18: 4.5 | AS18: KKF580 | AT18: 100
B19: KKF590 | C19: KKF Ø 5 x 90 | D19: KKF | E19: 5 | F19: x | G19: 90 | H19: 55 | I19: 5417.2 | J19: 7900 | K19: KKF590 | O19: =C25 -> HBS PLATE EVO Ø 5 x 60 | AA19: NO | AG19: KKF Ø 5 x 90 | AH19: 5 | AI19: 3.25 | AJ19: 9.65 | AK19: 90 | AL19: 55 | AM19: 11.7 | AN19: 350 | AO19: 7.9 | AP19: 4.5 | AS19: KKF590 | AT19: 100
B20: KKF5100 | C20: KKF Ø 5 x 100 | D20: KKF | E20: 5 | F20: x | G20: 100 | H20: 60 | I20: 5417.2 | J20: 7900 | K20: KKF5100 | O20: =C26 -> HBS PLATE EVO Ø 5 x 70 | AG20: KKF Ø 5 x 100 | AH20: 5 | AI20: 3.25 | AJ20: 9.65 | AK20: 100 | AL20: 60 | AM20: 11.7 | AN20: 350 | AO20: 7.9 | AP20: 4.5 | AS20: KKF5100 | AT20: 100
B21: KKF680 | C21: KKF Ø 6 x 80 | D21: KKF | E21: 6 | F21: x | G21: 80 | H21: 50 | I21: 9493.7 | J21: 11300 | K21: KKF680 | O21: =C27 -> HBS PLATE EVO Ø 5 x 80 | AG21: KKF Ø 6 x 80 | AH21: 6 | AI21: 4.05 | AJ21: 11.65 | AK21: 80 | AL21: 50 | AM21: 11.7 | AN21: 350 | AO21: 11.3 | AP21: 8.2 | AS21: KKF680 | AT21: 100
B22: KKF6100 | C22: KKF Ø 6 x 100 | D22: KKF | E22: 6 | F22: x | G22: 100 | H22: 60 | I22: 9493.7 | J22: 11300 | K22: KKF6100 | O22: LBS EVO Ø 5 x 50 | AG22: KKF Ø 6 x 100 | AH22: 6 | AI22: 4.05 | AJ22: 11.65 | AK22: 100 | AL22: 60 | AM22: 11.7 | AN22: 350 | AO22: 11.3 | AP22: 8.2 | AS22: KKF6100 | AT22: 100
B23: KKF6120 | C23: KKF Ø 6 x 120 | D23: KKF | E23: 6 | F23: x | G23: 120 | H23: 75 | I23: 9493.7 | J23: 11300 | K23: KKF6120 | O23: LBS EVO Ø 5 x 60 | AG23: KKF Ø 6 x 120 | AH23: 6 | AI23: 4.05 | AJ23: 11.65 | AK23: 120 | AL23: 75 | AM23: 11.7 | AN23: 350 | AO23: 11.3 | AP23: 8.2 | AS23: KKF6120 | AT23: 100
B24: HBSPEVO550 | C24: =D24&" Ø "&E24&" x "&G24 -> HBS PLATE EVO Ø 5 x 50 | D24: HBS PLATE EVO | E24: 5 | F24: x | G24: 50 | H24: 30 | I24: 5417.2 | J24: 7900 | K24: HBSPEVO550 | O24: LBS EVO Ø 5 x 70 | AG24: HBS PLATE EVO Ø 5 x 50 | AH24: 5 | AI24: =IF(AH24=5,3.4,3.95) -> 3.4 | AJ24: =IF(AH24=5,9.65,12) -> 9.65 | AK24: 50 | AL24: 30 | AM24: 11.7 | AN24: 350 | AO24: 7.9 | AP24: =IF(AH24=5,5.4,9.5) -> 5.4 | AS24: HBSPEVO550 | AT24: 200
B25: HBSPEVO560 | C25: HBS PLATE EVO Ø 5 x 60 | D25: HBS PLATE EVO | E25: 5 | F25: x | G25: 60 | H25: 35 | I25: =I24 -> 5417.2 | J25: =J24 -> 7900 | K25: HBSPEVO560 | O25: - | AG25: HBS PLATE EVO Ø 5 x 60 | AH25: 5 | AI25: =IF(AH25=5,3.4,3.95) -> 3.4 | AJ25: =IF(AH25=5,9.65,12) -> 9.65 | AK25: 60 | AL25: 35 | AM25: 11.7 | AN25: 350 | AO25: 7.9 | AP25: =IF(AH25=5,5.4,9.5) -> 5.4 | AS25: HBSPEVO560 | AT25: 200
B26: HBSPEVO570 | C26: HBS PLATE EVO Ø 5 x 70 | D26: HBS PLATE EVO | E26: 5 | F26: x | G26: 70 | H26: 40 | I26: =I25 -> 5417.2 | J26: =J25 -> 7900 | K26: HBSPEVO570 | AG26: HBS PLATE EVO Ø 5 x 70 | AH26: 5 | AI26: 3.4 | AJ26: 9.65 | AK26: 70 | AL26: 40 | AM26: 11.7 | AN26: 350 | AO26: 7.9 | AP26: 5.4 | AS26: HBSPEVO570 | AT26: 100
B27: HBSPEVO580 | C27: HBS PLATE EVO Ø 5 x 80 | D27: HBS PLATE EVO | E27: 5 | F27: x | G27: 80 | H27: 50 | I27: 5417.2 | J27: 7900 | K27: HBSPEVO580 | O27: =VLOOKUP('LOCK-T'!H111,Screws!C6:D34,2,FALSE) -> LBS | V27: 5 or 7 | AG27: HBS PLATE EVO Ø 5 x 80 | AH27: 5 | AI27: 3.4 | AJ27: 9.65 | AK27: 80 | AL27: 50 | AM27: 11.7 | AN27: 350 | AO27: 7.9 | AP27: 5.4 | AS27: HBSPEVO580 | AT27: 100
B28: HBSPEVO680 | C28: =D28&" Ø "&E28&" x "&G28 -> HBS PLATE EVO Ø 6 x 80 | D28: HBS PLATE EVO | E28: 6 | F28: x | G28: 80 | H28: 50 | I28: 9493.7 | J28: 11300 | K28: HBSPEVO680 | O28: =IF($O$27="LBS",O6,IF($O$27="KKF",O11,IF($O$27="HBS PLATE EVO",O18,IF($O$27="LBS EVO",O22," ")))) -> LBS Ø 5 x 25 | R28: =IF($O$27="LBS",R6,IF($O$27="KKF",R9,IF($O$27="HBS PLATE EVO",R12,IF($O$27="LBS EVO",R14," ")))) -> LBS Ø 7 x 60 | V28: =IF('LOCK-T'!$H$114<6,Screws!O28,Screws!R28) -> LBS Ø 7 x 60 | AG28: HBS PLATE EVO Ø 6 x 80 | AH28: 6 | AI28: 3.95 | AJ28: 12 | AK28: 80 | AL28: 50 | AM28: 11.7 | AN28: 350 | AO28: 11.3 | AP28: 9.5 | AS28: HBSPEVO680 | AT28: 100
B29: HBSPEVO690 | C29: HBS PLATE EVO Ø 6 x 90 | D29: HBS PLATE EVO | E29: 6 | F29: x | G29: 90 | H29: 55 | I29: =I28 -> 9493.7 | J29: =J28 -> 11300 | K29: HBSPEVO690 | O29: =IF(O27="LBS",O7,IF(O27="KKF",O12,IF(O27="HBS PLATE EVO",O19,IF($O$27="LBS EVO",O23," ")))) -> LBS Ø 5 x 40 | R29: =IF($O$27="LBS",R7,IF($O$27="KKF",R10,IF($O$27="HBS PLATE EVO",R13,IF($O$27="LBS EVO",R15," ")))) -> LBS Ø 7 x 80 | V29: =IF('LOCK-T'!$H$114<6,Screws!O29,Screws!R29) -> LBS Ø 7 x 80 | AG29: HBS PLATE EVO Ø 6 x 90 | AH29: 6 | AI29: 3.95 | AJ29: 12 | AK29: 90 | AL29: 55 | AM29: 11.7 | AN29: 350 | AO29: 11.3 | AP29: 9.5 | AS29: HBSPEVO690 | AT29: 100
B30: LBSEVO550 | C30: LBS EVO Ø 5 x 50 | D30: LBS EVO | E30: 5 | F30: x | G30: 50 | H30: 46 | I30: 5417.2 | J30: 7900 | K30: LBSEVO550 | O30: =IF(O27="LBS",O8,IF(O27="KKF",O13,IF(O27="HBS PLATE EVO",O20,IF($O$27="LBS EVO",O24," ")))) -> LBS Ø 5 x 50 | R30: =IF($O$27="LBS",R8,IF($O$27="KKF",R11,IF($O$27="HBS PLATE EVO",R16,IF($O$27="LBS EVO",R16," ")))) -> LBS Ø 7 x 100 | V30: =IF('LOCK-T'!$H$114<6,Screws!O30,Screws!R30) -> LBS Ø 7 x 100 | AG30: LBS EVO Ø 5 x 50 | AH30: 5 | AI30: 3 | AJ30: 7.8 | AK30: 50 | AL30: 46 | AM30: 11.7 | AN30: 350 | AO30: 7.9 | AP30: 5.4 | AS30: LBSEVO550 | AT30: 200
B31: LBSEVO560 | C31: LBS EVO Ø 5 x 60 | D31: LBS EVO | E31: 5 | F31: x | G31: 60 | H31: 56 | I31: =I30 -> 5417.2 | J31: =J30 -> 7900 | K31: LBSEVO560 | O31: =IF(O27="LBS",O9,IF(O27="KKF",O14,IF(O27="HBS PLATE EVO",O21,IF($O$27="LBS EVO",O25," ")))) -> LBS Ø 5 x 60 | R31: - | V31: =IF('LOCK-T'!$H$114<6,Screws!O31,Screws!R31) -> - | AG31: LBS EVO Ø 5 x 60 | AH31: 5 | AI31: 3 | AJ31: 7.8 | AK31: 60 | AL31: 56 | AM31: 11.7 | AN31: 350 | AO31: 7.9 | AP31: 5.4 | AS31: LBSEVO560 | AT31: 200
B32: LBSEVO570 | C32: LBS EVO Ø 5 x 70 | D32: LBS EVO | E32: 5 | F32: x | G32: 70 | H32: 66 | I32: =I31 -> 5417.2 | J32: =J31 -> 7900 | K32: LBSEVO570 | O32: =IF(O27="LBS",O10,IF(O27="KKF",O15,IF(O27="HBS PLATE EVO",O25,IF($O$27="LBS EVO",O25," ")))) -> LBS Ø 5 x 70 | R32: - | V32: =IF('LOCK-T'!$H$114<6,Screws!O32,Screws!R32) -> - | AG32: LBS EVO Ø 5 x 70 | AH32: 5 | AI32: 3 | AJ32: 7.8 | AK32: 70 | AL32: 66 | AM32: 11.7 | AN32: 350 | AO32: 7.9 | AP32: 5.4 | AS32: LBSEVO570 | AT32: 200
B33: LBSEVO780 | C33: LBS EVO Ø 7 x 80 | D33: LBS EVO | E33: 7 | F33: x | G33: 80 | H33: 75 | I33: 14174 | J33: 19200 | K33: LBSEVO780 | O33: =IF(O27="LBS",O25,IF(O27="KKF",O16,IF(O27="HBS PLATE EVO",O25,IF($O$27="LBS EVO",O25," ")))) -> - | R33: - | V33: =IF('LOCK-T'!$H$114<6,Screws!O33,Screws!R33) -> - | AG33: LBS EVO Ø 7 x 80 | AH33: =E33 -> 7 | AI33: =IF(AH33=5,3,4.4) -> 4.4 | AJ33: =IF(AH33=5,7.8,11) -> 11 | AK33: =G33 -> 80 | AL33: =H33 -> 75 | AM33: 11.7 | AN33: 350 | AO33: =IF(AH33=5,7.9,15.4) -> 15.4 | AP33: =IF(AH33=5,5.4,14.2) -> 14.2 | AS33: LBSEVO780 | AT33: 100
B34: LBSEVO7100 | C34: LBS EVO Ø 7 x 100 | D34: LBS EVO | E34: 7 | F34: x | G34: 100 | H34: 95 | I34: =I33 -> 14174 | J34: =J33 -> 19200 | K34: LBSEVO7100 | O34: =IF(O27="LBS",O25,IF(O27="KKF",O17,IF(O27="HBS PLATE EVO",O25,IF($O$27="LBS EVO",O25," ")))) -> - | R34: - | V34: =IF('LOCK-T'!$H$114<6,Screws!O34,Screws!R34) -> - | AG34: LBS EVO Ø 7 x 100 | AH34: 7 | AI34: =IF(AH34=5,3,4.4) -> 4.4 | AJ34: 11 | AK34: 100 | AL34: 95 | AM34: 11.7 | AN34: 350 | AO34: 15.4 | AP34: 14.2 | AS34: LBSEVO7100 | AT34: 100
C35: NO
O36: =IF(O33="LBS",O14,IF(O33="KKF",O19,IF(O33="HBS PLATE EVO",O26," "))) -> 
C37: NO | O37: =IF(O34="LBS",O15,IF(O34="KKF",O20,IF(O34="HBS PLATE EVO",O27," "))) -> 
O42: =IF(O39="LBS",O20,IF(O39="KKF",O25,IF(O39="HBS PLATE EVO",O32," "))) -> 
O43: =IF(O40="LBS",O21,IF(O40="KKF",O26,IF(O40="HBS PLATE EVO",O33," "))) -> 
O47: =IF(O44="LBS",O25,IF(O44="KKF",O30,IF(O44="HBS PLATE EVO",O37," "))) -> 
O48: =IF(O45="LBS",O26,IF(O45="KKF",O31,IF(O45="HBS PLATE EVO",O38," "))) -> 

Sheet Data
I1: 1 | J1: 2 | K1: 3 | L1: 4 | M1: 5 | N1: 6 | O1: 7 | P1: 8 | Q1: 9 | R1: 10 | S1: 11 | T1: 12
B2: =Translation!B15 -> Madeira | C2: ρk (kg/m3) | D2: fc,0,k | E2: fc,90,k | F2: fr,k | G2: fv,k | I2: Modello | J2: Altezza | K2: Larghezza modulo | L2: Area lock ALOCK | M2: Numero di connettori per modulo | N2: Numero di connettori inclinati per modulo | O2: Numero di moduli | P2: Parte numerica kH,2 | Q2: F2,alu,Rk | R2: F1,alu,Rk | S2: kLOCK | T2: B | U2: Modello | W2: Numero di moduli | Z2: =RIGHT(AA4,2) -> 80 | AB2: B | AC2: H | AD2: Modello | AE2: Larghezza modulo | AF2: Numero di moduli standard | AG2: Numero di connettori | AH2: spessore lock | AJ2: codice evo | AK2: richiesta speciale | AL2: numero di connettori inclinati | AM2: LOCKSTOP5U | AN2: LOCKSTOP5 | AO2: LOCKSTOP35 | AP2: LOCKSTOP7 | AQ2: LOCKSTOP50 | AR2: LOCKSTOP75 | AS2: LOCKSTOP100 | AT2: LOCKSTOP125 | BD2: ='LOCK-T'!H97 -> LOCK-T 100 290 | BF2: ACCOPPIATI
D3: N/mmq | E3: N/mmq | F3: N/mmq | G3: N/mmq | J3: mm | K3: mm | L3: mmq | O3: - | P3: - | Q3: kN | R3: kN | S3: - | T3: mm | W3: 1 | Y3: =RIGHT(LEFT(AA4,8),2) -> 1 | Z3: =LEFT(AA4,5) -> LOCK- | AB3: mm | AC3: mm | AH3: mm | BD3: =IF(BD2=AA4,1,IF(BD2=AA8,1,2)) -> 2 | BF3: MINI | BG3: MIDI | BK3: scatole
B4: GL20h | C4: 340 | D4: 20.0 | E4: 2.5 | F4: 1.2 | G4: 3.5 | H4: EN 14080:2013 | I4: Lock-T 80 | J4: 80 | K4: 17.5 | L4: 492 | M4: 2 | N4: 1 | O4: 1 | P4: 2.19 | Q4: 10 | R4: 2.7 | S4: 0.71 | T4: 20 | U4: Lock-T 80 | W4: 2 | Z4: =CONCATENATE("LOCKT",ROUND(K4,0),J4) -> LOCKT1880 | AA4: =CONCATENATE("LOCK-T"," ",ROUND(AB4,0)," ",AC4) -> LOCK-T 18 80 | AB4: 17.5 | AC4: 80 | AD4: =VLOOKUP(AC4,$J$4:$U$12,12,FALSE) -> Lock-T 80 | AE4: =VLOOKUP(AD4,$I$4:$K$12,3,FALSE) -> 17.5 | AF4: =AB4/AE4 -> 1 | AG4: =VLOOKUP(AD4,$I$4:$M$12,5,FALSE)*AF4 -> 2 | AH4: 7.0 | AI4: LOCKT | AJ4: EVO | AL4: 0 | AM4: 1 | AV4: 50 | BA4: =CONCATENATE(AM4," x ",AM2) -> 1 x LOCKSTOP5U | BB4: LOCKSTOP18 | BC4: 1 | BD4: =IF(BD2=AA4,BA4,IF(BD2=AA5,BA5,IF(BD2=AA6,BA5,IF(BD2=AA7,BA6,IF(BD2=AA8,BA6,IF(BD2=AA9,BA9,IF(BD2=AA10,BA10,BA10))))))) -> 4 x LOCKSTOP7 | BF4: =IF('LOCK-T'!H103+'LOCK-T'!I103=70,Data!BA5,IF('LOCK-T'!H103+'LOCK-T'!I103=87.5,Data!BA6,IF('LOCK-T'!H103+'LOCK-T'!I103=35,Data!BA5,IF('LOCK-T'!H103+'LOCK-T'!I103>88,Data!BA6,"-")))) -> 4 x LOCKSTOP5 | BG4: =IF('LOCK-T'!H104>=175,Data!BA10,IF('LOCK-T'!H103+'LOCK-T'!I103=100,Data!BA9,"-")) -> 4 x LOCKSTOP7 | BJ4: 1 | BK4: 50 | EC4: GL20h
B5: GL22h | C5: 370 | D5: 22.0 | E5: 2.5 | F5: 1.2 | G5: 3.5 | H5: EN 14080:2013 | I5: Lock-T 100 | J5: 100 | K5: 17.5 | L5: 614 | M5: 3 | N5: 1 | O5: =O4 -> 1 | P5: 4.39 | Q5: 10 | R5: 2.9 | S5: 0.57 | T5: 20 | U5: Lock-T 100 | W5: 3 | Z5: =CONCATENATE("LOCKT",ROUND(K5,0),J5) -> LOCKT18100 | AA5: =CONCATENATE("LOCK-T"," ",ROUND(AB5,0)," ",AC5) -> LOCK-T 35 80 | AB5: 35 | AC5: 80 | AD5: =VLOOKUP(AC5,$J$4:$U$12,12,FALSE) -> Lock-T 80 | AE5: =VLOOKUP(AD5,$I$4:$K$12,3,FALSE) -> 17.5 | AF5: =AB5/AE5 -> 2 | AG5: =VLOOKUP(AD5,$I$4:$M$12,5,FALSE)*AF5 -> 4 | AH5: 7.0 | AI5: LOCKT | AJ5: EVO | AL5: 1 | AN5: 2 | AO5: 1 | AV5: 50 | BA5: =CONCATENATE(AN5," x ",AN2) -> 2 x LOCKSTOP5 | BB5: LOCKSTOP5 | BC5: 1 | BD5: =IF(BD2=AA5,BA7,IF(BD2=AA6,BA7,IF(BD2=AA7,BA8,IF(BD2=AA9,BA11,IF(BD2=AA10,BA12,IF(BD2=AA11,BA13,IF(BD2=AA12,BA13,IF(BD2=AA13,BA14,IF(BD2=AA14,BA13,IF(BD2=AA15,BA14,IF(BD2=AA16,BA15,IF(BD2=AA17,BA13,IF(BD2=AA18,BA14,IF(BD2=AA19,BA15,IF(BD2=AA20,BA13,IF(BD2=AA21,BA14,IF(BD2=AA22,BA15,"-"))))))))))))))))) -> 2 x LOCKSTOP100 | BG5: =IF('LOCK-T'!H103+'LOCK-T'!I103=100,BA16,IF('LOCK-T'!H103+'LOCK-T'!I103=125,BA15,"-")) -> - | BJ5: 2 | BK5: 100 | EC5: GL22h
B6: GL24h | C6: 385 | D6: 24.0 | E6: 2.5 | F6: 1.2 | G6: 3.5 | H6: EN 14080:2013 | I6: Lock-T 120 | J6: 120 | K6: 17.5 | L6: 734 | M6: 4 | N6: 1 | O6: =O5 -> 1 | P6: 7.36 | Q6: 10 | R6: 3.1 | S6: 0.52 | T6: 20 | U6: Lock-T 120 | W6: 4 | Z6: LOCKT18120 | AA6: LOCK-T 35 100 | AB6: 35 | AC6: 100 | AD6: Lock-T 100 | AE6: 17.5 | AF6: 2 | AG6: 6 | AH6: 7.0 | AI6: LOCKT | AJ6: EVO | AL6: 1 | AN6: 2 | AO6: 1 | AV6: 50 | BA6: =CONCATENATE(AN7," x ",AN2) -> 4 x LOCKSTOP5 | BB6: LOCKSTOP5 | BC6: 2 | BJ6: 4 | BK6: 100 | EC6: GL24h
B7: GL26h | C7: 405 | D7: 26.0 | E7: 2.5 | F7: 1.2 | G7: 3.5 | H7: EN 14080:2013 | I7: Lock-T 135 | J7: 135 | K7: 25 | L7: 924 | M7: 3 | N7: 1 | O7: 1 | P7: 5.30 | Q7: 15 | R7: 2.7 | S7: 0.65 | T7: 22 | U7: Lock-T 135 | W7: 5 | Z7: LOCKT25135 | AA7: LOCK-T 35 120 | AB7: 35 | AC7: 120 | AD7: Lock-T 120 | AE7: 17.5 | AF7: 2 | AG7: 8 | AH7: 7.0 | AI7: LOCKT | AJ7: EVO | AL7: 1 | AN7: 4 | AO7: 2 | AV7: 25 | BA7: =CONCATENATE(AO5," x ",AO2) -> 1 x LOCKSTOP35 | BB7: LOCKSTOP35 | BC7: 1 | BJ7: 1 | BK7: 50 | EC7: GL26h
B8: GL28h | C8: 425 | D8: 28.0 | E8: 2.5 | F8: 1.2 | G8: 3.5 | H8: EN 14080:2013 | I8: Lock-T 175 | J8: 175 | K8: 25 | L8: 1174 | M8: 4 | N8: 1 | O8: 1 | P8: 10.0 | Q8: 20 | R8: 2.7 | S8: 0.57 | T8: 22 | U8: Lock-T 175 | W8: 6 | Z8: LOCKT25175 | AA8: LOCK-T 53 120 | AB8: 52.5 | AC8: 120 | AD8: Lock-T 120 | AE8: 17.5 | AF8: 3 | AG8: 12 | AH8: 6.5 | AI8: LOCKT | AJ8: EVO | AL8: 1 | AN8: 4 | AV8: 25 | AW8: =IF('LOCK-T'!H104=80,2,IF('LOCK-T'!H104=100,1,IF('LOCK-T'!H104=120,2,IF('LOCK-T'!H104=135,1,IF('LOCK-T'!H104=175,2,IF('LOCK-T'!H104=215,2,IF('LOCK-T'!H104=240,3,IF('LOCK-T'!H104=265,3,IF('LOCK-T'!H104=290,3,))))))))) -> 3 | BA8: =CONCATENATE(AO7," x ",AO2) -> 2 x LOCKSTOP35 | BB8: LOCKSTOP35 | BC8: 2 | BJ8: 2 | BK8: 50 | EC8: GL28h
B9: GL30h | C9: 430 | D9: 30.0 | E9: 2.5 | F9: 1.2 | G9: 3.5 | H9: EN 14080:2013 | I9: Lock-T 215 | J9: 215 | K9: 25 | L9: 1414 | M9: 6 | N9: 1 | O9: =O5 -> 1 | P9: 17.2 | Q9: 20 | R9: 2.3 | S9: 0.58 | T9: 22 | U9: Lock-T 215 | W9: 7 | Z9: LOCKT25215 | AA9: LOCK-T 50 135 | AB9: 50 | AC9: 135 | AD9: Lock-T 135 | AE9: 25 | AF9: 2 | AG9: 6 | AH9: 7.0 | AI9: LOCKT | AJ9: EVO | AL9: 1 | AP9: 2 | AQ9: 1 | AV9: 25 | AW9: =IF('LOCK-T'!H104=80,Data!AA4,IF('LOCK-T'!H104=100,Data!AA6,IF('LOCK-T'!H104=120,Data!AA7,IF('LOCK-T'!H104=135,Data!AA9,IF('LOCK-T'!H104=175,AA10,IF('LOCK-T'!H104=215,Data!AA12,IF('LOCK-T'!H104=240,Data!AA14,IF('LOCK-T'!H104=265,Data!AA17,IF('LOCK-T'!H104=290,Data!AA20,))))))))) -> LOCK-T 75 290 | BA9: =CONCATENATE(AP9," x ",AP2) -> 2 x LOCKSTOP7 | BB9: LOCKSTOP7 | BC9: 1 | BJ9: 2 | BK9: 50 | EC9: GL30h
B10: GL32h | C10: 440 | D10: 32.0 | E10: 2.5 | F10: 1.2 | G10: 3.5 | H10: EN 14080:2013 | I10: Lock-T 240 | J10: 240 | K10: 25 | L10: 1645 | M10: 7 | N10: 1 | O10: =O6 -> 1 | P10: 22.7 | Q10: 24 | R10: 2.8 | S10: 0.57 | T10: 22 | U10: Lock-T 240 | Z10: LOCKT25240 | AA10: LOCK-T 50 175 | AB10: 50 | AC10: 175 | AD10: Lock-T 175 | AE10: 25 | AF10: 2 | AG10: 8 | AH10: 7.0 | AI10: LOCKT | AJ10: EVO | AL10: 1 | AP10: 4 | AQ10: 2 | AV10: 18 | AW10: =IF('LOCK-T'!H104=80,Data!AA5,IF('LOCK-T'!H104=120,Data!AA8,IF('LOCK-T'!H104=175,AA11,IF('LOCK-T'!H104=215,Data!AA13,IF('LOCK-T'!H104=240,Data!AA15,IF('LOCK-T'!H104=265,Data!AA18,IF('LOCK-T'!H104=290,Data!AA21,))))))) -> LOCK-T 100 290 | BA10: =CONCATENATE(AP10," x ",AP2) -> 4 x LOCKSTOP7 | BB10: LOCKSTOP7 | BC10: 2 | BJ10: 4 | BK10: 50 | EC10: GL32h
I11: Lock-T 265 | J11: 265 | K11: 25 | L11: 1795 | M11: 8 | N11: 1 | O11: =O7 -> 1 | P11: 29.0 | Q11: 24 | R11: 2.8 | S11: 0.56 | T11: 22 | U11: Lock-T 265 | Z11: LOCKT25265 | AA11: LOCK-T 75 175 | AB11: 75 | AC11: 175 | AD11: Lock-T 175 | AE11: 25 | AF11: 3 | AG11: 12 | AH11: 7.0 | AI11: LOCKT | AJ11: EVO | AL11: 2 | AP11: 4 | AR11: 2 | AV11: 12 | AW11: =IF('LOCK-T'!H104=240,Data!AA16,IF('LOCK-T'!H104=265,Data!AA19,IF('LOCK-T'!H104=290,Data!AA22,))) -> LOCK-T 125 290 | BA11: =CONCATENATE(AQ9," x ",AQ2) -> 1 x LOCKSTOP50 | BB11: LOCKSTOP50 | BC11: 1 | BJ11: 1 | BK11: 40
B12: GL20c | C12: 355 | D12: 18.5 | E12: 2.5 | F12: 1.2 | G12: 3.5 | H12: EN 14080:2013 | I12: Lock-T 290 | J12: 290 | K12: 25 | L12: 1945 | M12: 9 | N12: 1 | O12: =O8 -> 1 | P12: 36.0 | Q12: 24 | R12: 2.8 | S12: 0.55 | T12: 22 | U12: Lock-T 290 | Z12: LOCKT25290 | AA12: LOCK-T 75 215 | AB12: 75 | AC12: 215 | AD12: Lock-T 215 | AE12: 25 | AF12: 3 | AG12: 18 | AH12: 8.0 | AI12: LOCKT | AJ12: EVO | AL12: 2 | AP12: 4 | AR12: 2 | AV12: 12 | BA12: =CONCATENATE(AQ10," x ",AQ2) -> 2 x LOCKSTOP50 | BB12: LOCKSTOP50 | BC12: 2 | BJ12: 2 | BK12: 40 | EC12: GL20c
B13: GL22c | C13: 355 | D13: 20.0 | E13: 2.5 | F13: 1.2 | G13: 3.5 | H13: EN 14080:2013 | Z13: LOCKT0 | AA13: LOCK-T 100 215 | AB13: 100 | AC13: 215 | AD13: Lock-T 215 | AE13: 25 | AF13: 4 | AG13: 24 | AH13: 8.0 | AI13: LOCKT | AJ13: EV | AL13: 3 | AP13: 4 | AS13: 2 | AV13: 8 | BA13: =CONCATENATE(AR11," x ",AR2) -> 2 x LOCKSTOP75 | BB13: LOCKSTOP75 | BC13: 2 | BJ13: 2 | BK13: 20 | EC13: GL22c
B14: GL24c | C14: 365 | D14: 21.5 | E14: 2.5 | F14: 1.2 | G14: 3.5 | H14: EN 14080:2013 | I14: Lock-T 100 FLOOR | J14: 100 | K14: 210 | L14: 614 | M14: 8 | N14: =_xlfn.FLOOR.MATH((K14-20)/25) -> 7 | O14: 1 | P14: 12.5 | Q14: 130 | R14: 34.5 | S14: 0.14 | T14: 20 | U14: Lock-T 100 FLOOR | Z14: LOCKT210100 | AA14: LOCK-T 75 240 | AB14: 75 | AC14: 240 | AD14: Lock-T 240 | AE14: 25 | AF14: 3 | AG14: 21 | AH14: 8.0 | AI14: LOCKT | AJ14: EV | AK14: (*) | AL14: 2 | AP14: 4 | AR14: 2 | AU14: (**) | AV14: 20 | BA14: =CONCATENATE(AS13," x ",AS2) -> 2 x LOCKSTOP100 | BB14: LOCKSTOP100 | BC14: 2 | BJ14: 2 | BK14: 20 | EC14: GL24c
B15: GL26c | C15: 385 | D15: 23.5 | E15: 2.5 | F15: 1.2 | G15: 3.5 | H15: EN 14080:2013 | I15: Lock-T 135 FLOOR | J15: 135 | K15: 300 | L15: 924 | M15: 8 | N15: =_xlfn.FLOOR.MATH((K15-20)/25) -> 11 | O15: 1 | P15: 15.3 | Q15: 240 | R15: 32.3 | S15: 0.16 | T15: 22 | U15: Lock-T 135 FLOOR | Z15: LOCKT300135 | AA15: LOCK-T 100 240 | AB15: 100 | AC15: 240 | AD15: Lock-T 240 | AE15: 25 | AF15: 4 | AG15: 28 | AH15: 8.0 | AI15: LOCKT | AJ15: EV | AK15: (*) | AL15: 3 | AP15: 4 | AS15: 2 | AU15: (**) | AV15: 10 | BA15: =CONCATENATE(AT16," x ",AT2) -> 2 x LOCKSTOP125 | BB15: LOCKSTOP125 | BC15: 2 | BJ15: 2 | BK15: 20 | EC15: GL26c
B16: GL28c | C16: 390 | D16: 24.0 | E16: 2.5 | F16: 1.2 | G16: 3.5 | H16: EN 14080:2013 | Z16: LOCKT0 | AA16: LOCK-T 125 240 | AB16: 125 | AC16: 240 | AD16: Lock-T 240 | AE16: 25 | AF16: 5 | AG16: 35 | AH16: 8.0 | AI16: LOCKT | AJ16: EV | AK16: (*) | AL16: 4 | AP16: 4 | AT16: 2 | AU16: (**) | AV16: 10 | BA16: =CONCATENATE(1," x ",AS2) -> 1 x LOCKSTOP100 | BB16: LOCKSTOP100 | BC16: 2 | BJ16: 1 | BK16: 20 | EC16: GL28c
B17: GL30c | C17: 390 | D17: 24.5 | E17: 2.5 | F17: 1.2 | G17: 3.5 | H17: EN 14080:2013 | Z17: LOCKT0 | AA17: LOCK-T 75 265 | AB17: 75 | AC17: 265 | AD17: Lock-T 265 | AE17: 25 | AF17: 3 | AG17: 24 | AH17: 8.0 | AI17: LOCKT | AJ17: EV | AK17: (*) | AL17: 2 | AP17: 4 | AR17: 2 | AU17: (**) | AV17: 20 | EC17: GL30c
B18: GL32c | C18: 400 | D18: 24.5 | E18: 2.5 | F18: 1.2 | G18: 3.5 | H18: EN 14080:2013 | Z18: LOCKT0 | AA18: LOCK-T 100 265 | AB18: 100 | AC18: 265 | AD18: Lock-T 265 | AE18: 25 | AF18: 4 | AG18: 32 | AH18: 8.0 | AI18: LOCKT | AJ18: EV | AK18: (*) | AL18: 3 | AP18: 4 | AS18: 2 | AU18: (**) | AV18: 10 | EC18: GL32c
Z19: LOCKT0 | AA19: LOCK-T 125 265 | AB19: 125 | AC19: 265 | AD19: Lock-T 265 | AE19: 25 | AF19: 5 | AG19: 40 | AH19: 8.0 | AI19: LOCKT | AJ19: EV | AK19: (*) | AL19: 4 | AP19: 4 | AT19: 2 | AU19: (**) | AV19: 10
B20: C14 | C20: 290 | D20: 16.0 | E20: 2.0 | F20: =2*0.4 -> 0.8 | G20: 3.0 | H20: EN 338:2016 | Z20: LOCKT0 | AA20: LOCK-T 75 290 | AB20: 75 | AC20: 290 | AD20: Lock-T 290 | AE20: 25 | AF20: 3 | AG20: 27 | AH20: 8.0 | AI20: LOCKT | AJ20: EV | AK20: (*) | AL20: 2 | AP20: 4 | AR20: 2 | AU20: (**) | AV20: 20 | EC20: C14
B21: C16 | C21: 310 | D21: 17.0 | E21: 2.2 | F21: =2*0.4 -> 0.8 | G21: 3.2 | H21: EN 338:2016 | R21: =I9 -> Lock-T 215 | S21: =VLOOKUP(R21,Data!$I$4:$L$12,4,FALSE) -> 1414 | Z21: LOCKT0 | AA21: LOCK-T 100 290 | AB21: 100 | AC21: 290 | AD21: Lock-T 290 | AE21: 25 | AF21: 4 | AG21: 36 | AH21: 8.0 | AI21: LOCKT | AJ21: EV | AK21: (*) | AL21: 3 | AP21: 4 | AS21: 2 | AU21: (**) | AV21: 10 | EC21: C16
B22: C18 | C22: 320 | D22: 18.0 | E22: 2.2 | F22: 0.8 | G22: 3.4 | H22: EN 338:2016 | Z22: LOCKT0 | AA22: LOCK-T 125 290 | AB22: 125 | AC22: 290 | AD22: Lock-T 290 | AE22: 25 | AF22: 5 | AG22: 45 | AH22: 8.0 | AI22: LOCKT | AJ22: EV | AK22: (*) | AL22: 4 | AP22: 4 | AT22: 2 | AU22: (**) | AV22: 10 | EC22: C18
B23: C20 | C23: 330 | D23: 19.0 | E23: 2.3 | F23: 0.8 | G23: 3.6 | H23: EN 338:2016 | R23: =6*17.5 -> 105 | Z23: LOCKT0 | AA23: =CONCATENATE("LOCKTFLOOR"," ",AC23) -> LOCKTFLOOR 100 | AB23: 1260 | AC23: 100 | AD23: =VLOOKUP(AC23,$J$14:$U$15,12,FALSE) -> Lock-T 100 FLOOR | AE23: =VLOOKUP(AD23,$I$4:$K$15,3,FALSE) -> 210 | AF23: 6 | AG23: =VLOOKUP(AD23,$I$4:$M$15,5,FALSE)*AF23 -> 48 | AH23: 6.0 | AI23: LOCKTFLOOR | EC23: C20
B24: C22 | C24: 340 | D24: 20.0 | E24: 2.4 | F24: 0.8 | G24: 3.8 | H24: EN 338:2016 | R24: =25*6 -> 150 | Z24: LOCKT0 | AA24: =CONCATENATE("LOCKTFLOOR"," ",AC24) -> LOCKTFLOOR 135 | AB24: 1200 | AC24: 135 | AD24: =VLOOKUP(AC24,$J$14:$U$15,12,FALSE) -> Lock-T 135 FLOOR | AE24: =VLOOKUP(AD24,$I$4:$K$15,3,FALSE) -> 300 | AF24: 4 | AG24: =VLOOKUP(AD24,$I$4:$M$15,5,FALSE)*AF24 -> 32 | AH24: 6.0 | AI24: LOCKTFLOOR | EC24: C22
B25: C24 | C25: 350 | D25: 21.0 | E25: 2.5 | F25: 0.8 | G25: 4.0 | H25: EN 338:2016 | EC25: C24
B26: C27 | C26: 360 | D26: 22.0 | E26: 2.5 | F26: 0.8 | G26: 4.0 | H26: EN 338:2016 | EC26: C27
B27: C30 | C27: 380 | D27: 24.0 | E27: 2.7 | F27: 0.8 | G27: 4.0 | H27: EN 338:2016 | EC27: C30
B28: C35 | C28: 390 | D28: 25.0 | E28: 2.7 | F28: 0.8 | G28: 4.0 | H28: EN 338:2016 | EC28: C35
B29: C40 | C29: 400 | D29: 27.0 | E29: 2.8 | F29: 0.8 | G29: 4.0 | H29: EN 338:2016 | EC29: C40
B30: C45 | C30: 410 | D30: 29.0 | E30: 2.9 | F30: 0.8 | G30: 4.0 | H30: EN 338:2016 | AB30: connettori | AC30: connettori | EC30: C45
B31: C50 | C31: 430 | D31: 30.0 | E31: 3.0 | F31: 0.8 | G31: 4.0 | H31: EN 338:2016 | AB31: uplift | AC31: lateral | EC31: C50
AA32: LOCK-T 18 80 | AB32: 0 | AC32: 0
B33: LVL | C33: 480 | D33: 35.0 | E33: 2.2 | F33: =2*0.8 -> 1.6 | G33: 4.2 | AA33: LOCK-T 35 80 | AB33: 1 | AC33: 1 | EC33: LVL
B34: CLT | C34: 350 | D34: 24.0 | E34: 2.5 | F34: =2*0.5 -> 1.0 | G34: 3.5 | I34: nef | AA34: LOCK-T 35 100 | AB34: 1 | AC34: 1
I35: nM | J35: 1 | K35: 2 | L35: 3 | M35: 4 | N35: 5 | O35: 6 | AA35: LOCK-T 35 120 | AB35: 1 | AC35: 1
B36: USER 1 | C36: 530 | D36: 23.0 | E36: 8.0 | F36: 1.2 | G36: 3.0 | I36: Lock-T 80 | J36: 0.7 | K36: 1.8 | L36: 3.1 | M36: 4.8 | N36: 6.6 | O36: 8.7 | AA36: LOCK-T 53 120 | AB36: 1 | AC36: 1 | EC36: USER 1
B37: USER 2 | I37: Lock-T 100 | J37: 1.3 | K37: 2.8 | L37: 4.8 | M37: 7.1 | N37: 9.7 | O37: 12.6 | AA37: LOCK-T 50 135 | AB37: 1 | AC37: 1 | EC37: USER 2
B38: USER 3 | I38: Lock-T 120 | J38: 2.0 | K38: 4.2 | L38: 6.9 | M38: 9.9 | N38: 12.3 | O38: 17.0 | AA38: LOCK-T 50 175 | AB38: 1 | AC38: 1 | EC38: USER 3
B39: USER 4 | I39: Lock-T 135 | J39: 1.2 | K39: 2.7 | L39: 4.5 | M39: 6.7 | N39: 9.2 | O39: 12.1 | AA39: LOCK-T 75 175 | AB39: 2 | AC39: 1 | EC39: USER 4
B40: USER 5 | I40: Lock-T 175 | J40: 1.8 | K40: 4.0 | L40: 6.5 | M40: 9.3 | N40: 12.6 | O40: 16.2 | AA40: LOCK-T 75 215 | AB40: 2 | AC40: 1 | EC40: USER 5
I41: Lock-T 215 | J41: 2.9 | K41: 6.1 | L41: 9.6 | M41: 13.4 | N41: 17.7 | O41: 22.4 | AA41: LOCK-T 100 215 | AB41: 3 | AC41: 2
B42: =Translation!B16 -> Para os parafusos de fixação no elemento principal e/ou secundário, com densidade característica ρk≤420 kg/m3, não é necessário pré-furo. Para a viga principal e/ou secundária com densidade característica ρk>420 kg/m3 o pré-furo é obrigatório. Para os parafusos no pilar, o pré-furo é sempre obrigatório. | I42: Lock-T 240 | J42: 3.5 | K42: 7.1 | L42: 11.1 | M42: 15.4 | N42: 20.1 | O42: 25.3 | AA42: LOCK-T 75 240 | AB42: 2 | AC42: 1
I43: Lock-T 265 | J43: 4.2 | K43: 8.5 | L43: 13.1 | M43: 18.1 | N43: 23.4 | O43: 29.3 | AA43: LOCK-T 100 240 | AB43: 3 | AC43: 2
I44: Lock-T 290 | J44: 4.9 | K44: 10.0 | L44: 15.3 | M44: 20.9 | N44: 26.9 | O44: 33.4 | AA44: LOCK-T 125 240 | AB44: 4 | AC44: 2
I45: Lock-T 100 FLOOR | J45: 7.1 | K45: 15.4 | L45: 23.6 | M45: 31.7 | N45: 39.7 | O45: 47.8 | AA45: LOCK-T 75 265 | AB45: 2 | AC45: 1
I46: Lock-T 135 FLOOR | J46: 5.9 | K46: 15.2 | L46: 23.5 | M46: 31.6 | N46: 39.7 | O46: 47.7 | AA46: LOCK-T 100 265 | AB46: 3 | AC46: 2
E47: LVL | F47: "-->" | G47: StoraEnso | AA47: LOCK-T 125 265 | AB47: 4 | AC47: 2
E48: CLT | F48: "-->" | G48: ETA12/0362 | I48: klat | AA48: LOCK-T 75 290 | AB48: 2 | AC48: 1
I49: nM | J49: 1 | K49: 2 | L49: 3 | M49: 4 | N49: 5 | O49: 6 | AA49: LOCK-T 100 290 | AB49: 3 | AC49: 2
I50: Lock-T 80 | J50: 1.0 | K50: 6.1 | L50: 15.0 | M50: 27.0 | N50: 42.0 | O50: 62.0 | AA50: LOCK-T 125 290 | AB50: 4 | AC50: 2
F51: fr,k | I51: Lock-T 100 | J51: 1.1 | K51: 8.9 | L51: 22.0 | M51: 41.0 | N51: 66.0 | O51: 96.0
I52: Lock-T 120 | J52: 2.3 | K52: 14.0 | L52: 34.0 | M52: 61.0 | N52: 97.0 | O52: 141.0
I53: Lock-T 135 | J53: 2.1 | K53: 13.0 | L53: 32.0 | M53: 58.0 | N53: 92.0 | O53: 134.0
I54: Lock-T 175 | J54: 4.2 | K54: 21.0 | L54: 50.0 | M54: 89.0 | N54: 140.0 | O54: 202.0 | S54: =INDEX(I35:O44,MATCH(Q54,I35:I44,0),MATCH(Q55,I35:O35,0)) -> 
I55: Lock-T 215 | J55: 6.8 | K55: 35.0 | L55: 80.0 | M55: 144.0 | N55: 226.0 | O55: 326.0
I56: Lock-T 240 | J56: 7.1 | K56: 39.0 | L56: 92.0 | M56: 166.0 | N56: 261.0 | O56: 378.0
I57: Lock-T 265 | J57: 9.4 | K57: 48.0 | L57: 111.0 | M57: 199.0 | N57: 312.0 | O57: 450.0
I58: Lock-T 290 | J58: 10.0 | K58: 54.0 | L58: 126.0 | M58: 227.0 | N58: 357.0 | O58: 516.0
I59: Lock-T 100 FLOOR | J59: 10.7 | K59: 117.0 | L59: 313.0 | M59: 600.0 | N59: 978.0 | O59: 1447.0
I60: Lock-T 135 FLOOR | J60: 15.1 | K60: 160.0 | L60: 428.0 | M60: 820.0 | N60: 1335.0 | O60: 1973.0
I63: nef
I64: nM | J64: 1 | K64: 2 | L64: 3 | M64: 4 | N64: 5 | O64: 6
I65: Lock-T 80 | J65: 0.4 | K65: 1.1 | L65: 2.0 | M65: 3.1 | N65: 4.4 | O65: 6.0
I66: Lock-T 100 | J66: 0.7 | K66: 1.5 | L66: 2.6 | M66: 3.9 | N66: 5.6 | O66: 7.5
I67: Lock-T 120 | J67: 0.9 | K67: 2.0 | L67: 3.3 | M67: 4.9 | N67: 6.7 | O67: 9.0
I68: Lock-T 135 | J68: 0.6 | K68: 1.4 | L68: 2.5 | M68: 3.7 | N68: 5.6 | O68: 7.1
I69: Lock-T 175 | J69: 0.8 | K69: 1.8 | L69: 3.0 | M69: 4.4 | N69: 6.1 | O69: 8.2
I70: Lock-T 215 | J70: 1.3 | K70: 2.7 | L70: 4.3 | M70: 6.1 | N70: 8.2 | O70: 10.7
I71: Lock-T 240 | J71: 1.5 | K71: 3.2 | L71: 5.0 | M71: 7.0 | N71: 9.3 | O71: 11.9
I72: Lock-T 265 | J72: 1.8 | K72: 3.7 | L72: 5.7 | M72: 7.9 | N72: 10.4 | O72: 13.2
I73: Lock-T 290 | J73: 2.0 | K73: 4.1 | L73: 6.4 | M73: 8.8 | N73: 11.5 | O73: 14.5
I74: Lock-T 100 FLOOR | J74: 5.4 | K74: 13.7 | L74: 22.1 | M74: 30.5 | N74: 38.7 | O74: 46.9
I75: Lock-T 135 FLOOR | J75: 3.6 | K75: 13.2 | L75: 21.9 | M75: 30.3 | N75: 38.5 | O75: 46.8
I78: klat
I79: nM | J79: 1 | K79: 2 | L79: 3 | M79: 4 | N79: 5 | O79: 6
I80: Lock-T 80 | J80: 0.3 | K80: 2.0 | L80: 4.8 | M80: 8.8 | N80: 14.0 | O80: 20.0
I81: Lock-T 100 | J81: 0.3 | K81: 2.8 | L81: 6.8 | M81: 13.0 | N81: 20.0 | O81: 30.0
I82: Lock-T 120 | J82: 0.7 | K82: 4.0 | L82: 10.0 | M82: 18.0 | N82: 28.0 | O82: 40.0
I83: Lock-T 135 | J83: 0.6 | K83: 4.0 | L83: 9.5 | M83: 17.0 | N83: 27.0 | O83: 40.0
I84: Lock-T 175 | J84: 1.1 | K84: 5.7 | L84: 13.0 | M84: 24.0 | N84: 37.0 | O84: 54.0
I85: Lock-T 215 | J85: 1.7 | K85: 8.6 | L85: 20.0 | M85: 36.0 | N85: 56.0 | O85: 81.0 | R85: spessore per vite inclinata [mm]
I86: Lock-T 240 | J86: 1.8 | K86: 10.0 | L86: 23.0 | M86: 41.0 | N86: 65.0 | O86: 94.0 | Q86: Lock-T 80 | R86: 10.0
I87: Lock-T 265 | J87: 2.3 | K87: 11.0 | L87: 27.0 | M87: 48.0 | N87: 75.0 | O87: 108.0 | Q87: Lock-T 100 | R87: 10.0
I88: Lock-T 290 | J88: 2.3 | K88: 13.0 | L88: 29.0 | M88: 53.0 | N88: 83.0 | O88: 121.0 | Q88: Lock-T 120 | R88: 10.0
I89: Lock-T 100 FLOOR | J89: 3.3 | K89: 36.0 | L89: 97.0 | M89: 185.0 | N89: 302.0 | O89: 446.0 | Q89: Lock-T 135 | R89: 12.0
I90: Lock-T 135 FLOOR | J90: 4.5 | K90: 47.0 | L90: 126.0 | M90: 241.0 | N90: 393.0 | O90: 581.0 | Q90: Lock-T 175 | R90: 12.0
Q91: Lock-T 215 | R91: 12.0
Q92: Lock-T 240 | R92: 12.0
Q93: Lock-T 265 | R93: 12.0
Q94: Lock-T 290 | R94: 12.0
Q95: Lock-T 100 FLOOR | R95: 10.0
Q96: Lock-T 135 FLOOR | R96: 12.0
I102: nef
I103: nM | J103: 1 | K103: 2 | L103: 3 | M103: 4 | N103: 5 | O103: 6
I104: Lock-T 80 | J104: 2.0 | K104: 4.0 | L104: 6.0 | M104: 8.0 | N104: 10.0 | O104: 12.0
I105: Lock-T 100 | J105: 1.7 | K105: 3.8 | L105: 6.3 | M105: 9.0 | N105: 12.0 | O105: 15.1
I106: Lock-T 120 | J106: 1.8 | K106: 3.9 | L106: 6.4 | M106: 9.3 | N106: 12.5 | O106: 16.2
I107: Lock-T 135 | J107: 1.7 | K107: 3.8 | L107: 6.3 | M107: 9.0 | N107: 12.0 | O107: 15.1
I108: Lock-T 175 | J108: 1.8 | K108: 3.9 | L108: 6.4 | M108: 9.3 | N108: 12.5 | O108: 16.2
I109: Lock-T 215 | J109: 2.2 | K109: 4.6 | L109: 7.3 | M109: 10.3 | N109: 13.7 | O109: 17.6
I110: Lock-T 240 | J110: 2.4 | K110: 5.0 | L110: 7.9 | M110: 11.0 | N110: 14.5 | O110: 18.5
I111: Lock-T 265 | J111: 2.7 | K111: 5.5 | L111: 8.5 | M111: 11.8 | N111: 15.4 | O111: 19.5
I112: Lock-T 290 | J112: 2.9 | K112: 5.9 | L112: 9.1 | M112: 12.6 | N112: 16.4 | O112: 20.6
I113: Lock-T 100 FLOOR | J113: 7.6 | K113: 15.7 | L113: 23.8 | M113: 31.9 | N113: 39.9 | O113: 47.9
I114: Lock-T 135 FLOOR | J114: 7.1 | K114: 15.7 | L114: 23.8 | M114: 31.9 | N114: 39.9 | O114: 47.9
I116: klat
I117: nM | J117: 1 | K117: 2 | L117: 3 | M117: 4 | N117: 5 | O117: 6
I118: Lock-T 80 | J118: 0.4 | K118: 2.4 | L118: 5.7 | M118: 10.3 | N118: 16.0 | O118: 24.0
I119: Lock-T 100 | J119: 0.4 | K119: 3.2 | L119: 8.0 | M119: 15.0 | N119: 24.0 | O119: 35.0
I120: Lock-T 120 | J120: 0.8 | K120: 4.7 | L120: 11.0 | M120: 21.0 | N120: 33.0 | O120: 48.0
I121: Lock-T 135 | J121: 0.7 | K121: 4.6 | L121: 11.0 | M121: 20.0 | N121: 32.0 | O121: 46.0
I122: Lock-T 175 | J122: 1.3 | K122: 6.6 | L122: 15.0 | M122: 28.0 | N122: 43.0 | O122: 63.0
I123: Lock-T 215 | J123: 2.0 | K123: 10.0 | L123: 23.0 | M123: 41.0 | N123: 65.0 | O123: 94.0
I124: Lock-T 240 | J124: 2.0 | K124: 11.0 | L124: 26.0 | M124: 48.0 | N124: 75.0 | O124: 108.0
I125: Lock-T 265 | J125: 2.6 | K125: 13.0 | L125: 31.0 | M125: 55.0 | N125: 87.0 | O125: 125.0
I126: Lock-T 290 | J126: 2.7 | K126: 15.0 | L126: 34.0 | M126: 61.0 | N126: 97.0 | O126: 140.0
I127: Lock-T 100 FLOOR | J127: 3.9 | K127: 42.0 | L127: 114.0 | M127: 218.0 | N127: 355.0 | O127: 525
I128: Lock-T 135 FLOOR | J128: 5.2 | K128: 55 | L128: 146 | M128: 280 | N128: 455 | O128: 673
K133: fy,k (N/mmq) | L133: FLOCKSTOP,Rk (N)
I134: LOCKSTOP5 | J134: 1.11 | K134: 220 | L134: =J134*K134 -> 244.20
I135: LOCKSTOP7 | J135: 1.27 | K135: 220 | L135: =J135*K135 -> 279.40
H136: 18 | I136: LOCKSTOP18 | J136: 1.11 | K136: 210 | L136: 233.10
H137: 35 | I137: LOCKSTOP35 | J137: 3.39 | K137: 210 | L137: 711.90
H138: 50 | I138: LOCKSTOP50 | J138: 3.70 | K138: 210 | L138: 777.00
H139: 75 | I139: LOCKSTOP75 | J139: 3.70 | K139: 210 | L139: 777.00
H140: 100 | I140: LOCKSTOP100 | J140: 3.70 | K140: 210 | L140: 777.00
H141: 125 | I141: LOCKSTOP125 | J141: 3.70 | K141: 210 | L141: 777.00

Sheet Foglio2 (hidden)
A1: ='LOCK-T'!AE60 -> Entalhe coluna
A2: ='LOCK-T'!AE61 -> Entalhe viga secundária
A3: LOCK STOP
A4: ='LOCK-T'!AE62 -> Parafusos inclinados
A5: ='LOCK-T'!AB60 -> Entalhe viga principal
A6: ='LOCK-T'!AB61 -> Entalhe viga secundária
A7: LOCK STOP
A8: ='LOCK-T'!AB62 -> Parafusos inclinados
D9: =INDEX(IF('LOCK-T'!$H$72="Pilastro",IF('LOCK-T'!$H$99=1,Foglio2!$B$1:$B$4,Foglio2!$B$49:$B$52),IF('LOCK-T'!$H$99=1,Foglio2!$B$5:$B$9,Foglio2!$B$53:$B$57)),MATCH('LOCK-T'!$H$65,Foglio2!$A$1:$A$8,0)) -> 0
A10: ='LOCK-T'!AA53 -> Viga
A11: ='LOCK-T'!AA54 -> Pilar
A12: ='LOCK-T'!AC165 -> Sim
A13: ='LOCK-T'!AB165 -> Não
A16: classe di servizio
A17: 1 | B17: =Translation!B125 -> Caracterizado por uma humidade do material em equilíbrio com o ambiente a uma temperatura de 20 ºC e uma humidade relativa do ar circundante que não excede 65%, se não por algumas semanas por ano.
A18: 2 | B18: =Translation!B126 -> Caracteriza-se por uma humidade do material em equilíbrio com o ambiente a uma temperatura de 20 ºC e uma humidade relativa do ar circundante superior a 85% durante apenas algumas semanas por ano.
A19: 3 | B19: =Translation!B127 -> Tem uma umidade mais alta do que a classe de serviço 2.
A21: classe di durata del carico
A22: =Translation!B128 -> Permanente | B22: =Translation!B133 -> Peso próprio e cargas não removíveis durante o funcionamento normal da estrutura.
A23: =Translation!B129 -> Longa duração | B23: =Translation!B134 -> Cargas permanentes que podem mudar durante o funcionamento normal da estrutura e cargas variáveis relacionadas com armazéns e depósitos.
A24: =Translation!B130 -> Média duração | B24: =Translation!B135 -> Cargas variáveis de edifícios, exceto as relativas a armazéns e depósitos.
A25: =Translation!B131 -> Breve duração | B25: =Translation!B136 -> Ação média do vento.
A26: =Translation!B132 -> Instantâneo | B26: =Translation!B137 -> Ação de vento de pico e ação incrível.
A29: 1
A30: 2
F34: A
F35: B
F36: C
F37: D
F38: AC
F39: ACD
F40: AD
F41: BC
F42: BCD
F43: BD
F44: CD
F45: NON
A49: 2

Sheet Translation (hidden)
A1: 1 | B1: ='LOCK-T'!M34 -> PT | D1: it | E1: en | F1: de | G1: fr | H1: es | I1: pt
A2: 2 | B2: =HLOOKUP($B$1,$D$1:$I$206,A2,FALSE) -> Sim | D2: Si | E2: Yes | F2: Ja | G2: Oui | H2: Sí | I2: Sim | S2: =IF(R2=G2,0,1111) -> 1111
A3: 3 | B3: =HLOOKUP($B$1,$D$1:$I$206,A3,FALSE) -> Não | D3: No | E3: No | F3: Nein | G3: Non | H3: No | I3: Não | S3: =IF(R3=G3,0,1111) -> 1111
A4: 4 | B4: Viga | D4: Trave | E4: Beam | F4: Träger | G4: Poutre | H4: Viga | I4: Viga | S4: 1111
A5: 5 | B5: Pilar | D5: Pilastro | E5: Column | F5: Stütze | G5: Poteau | H5: Pilar | I5: Pilar | S5: 1111
A6: 6 | B6: Entalhe coluna | D6: Intaglio colonna | E6: Notch in column | F6: Stützenfräsung | G6: Entaille colonne | H6: Muescado columna | I6: Entalhe coluna | S6: 1111
A7: 7 | B7: Entalhe viga principal | D7: Intaglio trave principale | E7: Notch in main beam | F7: Fräsung Hauptträger | G7: Entaille poutre principale | H7: Muescado viga principal | I7: Entalhe viga principal | S7: 1111
A8: 8 | B8: Entalhe viga secundária | D8: Intaglio trave secondaria | E8: Notch in secondary beam | F8: Fräsung Nebenträger | G8: Entaille poutre secondaire | H8: Muescado viga secundaria | I8: Entalhe viga secundária | S8: 1111
A9: 9 | B9: Parafusos inclinados | D9: Viti inclinate | E9: Inclined screws | F9: Geneigte Schrauben | G9: Vis inclinées | H9: Tornillos inclinados | I9: Parafusos inclinados | L9: IT | S9: 1111
A10: 10 | B10: Geometria e características parafusos | D10: Geometria e caratteristiche viti | E10: Screws geometry and characteristics | F10: Schraubengeometrie und Eigenschaften | G10: Géométrie et caractéristiques vis | H10: Geometría y características de los tornillos | I10: Geometria e características parafusos | L10: EN | S10: 1111
A11: 11 | B11: Tipo de parafuso | D11: Tipo di vite | E11: Screw type | F11: Schraubentyp | G11: Type de vis | H11: Tipo de tornillo | I11: Tipo de parafuso | L11: DE | S11: 1111
A12: 12 | B12: Diâmetro | D12: Diametro | E12: Diameter | F12: Durchmesser | G12: Diamètre | H12: Diámetro | I12: Diâmetro | L12: FR | S12: 1111
A13: 13 | B13: Comprimento | D13: Lunghezza | E13: Length | F13: Länge | G13: Longueur | H13: Longitud | I13: Comprimento | L13: ES | S13: 1111
A14: 14 | B14: Rosca | D14: Filetto | E14: Thread | F14: Gewinde | G14: Filet | H14: Rosca | I14: Rosca | L14: PT | S14: 1111
A15: 15 | B15: Madeira | D15: Legno | E15: Timber | F15: Holz | G15: Bois | H15: Madera | I15: Madeira | S15: 1111
A16: 16 | B16: Para os parafusos de fixação no elemento principal e/ou secundário, com densidade característica ρk≤420 kg/m3, não é necessário pré-furo. Para a viga principal e/ou secundária com densidade característica ρk>420 kg/m3 o pré-furo é obrigatório. Para os parafusos no pilar, o pré-furo é sempre obrigatório. | D16: Per le viti di fissaggio su elemento primario e/o secondario, con densità caratteristica ρk≤420 kg/m3, non è previsto il preforo. Per trave principale e/o secondaria con densità caratteristica ρk>420 kg/m3 è obbligatorio il preforo. Per le viti su pilastro è sempre obbligatorio il preforo. | E16: The pre-drill is not required for fastening screws on main and/or secondary element, with characteristic density ρk≤420 kg/ m3. The pre-drill is mandatory on primary or secondary beam with characteristic density ρk>420 kg/m3. For screws on column, pre-drilling is always mandatory. | F16: Für Schrauben am Haupt- oder Nebenträger mit der charakteristischen Dichte ρk≤420 kg/ m3 ist keine Vorbohrung erforderlich. Für Haupt- oder Nebenträger mit der charakteristischen Dichte ρk>420 kg/m3 ist eine Vorbohrung erforderlich. Bei Schrauben an der Stütze ist das Vorbohren immer obligatorisch. | G16: Pour les vis de fixation sur élément principal et/ou secondaire, avec une densité caractéristique ρk≤420 kg/m3, le pré-perçage n’est pas nécessaire. Pour une poutre principale et/ou secondaire, avec une densité caractéristique ρk>420 kg/m3, le pré-perçage est obligatoire. Pour les vis sur poteau, le pré-perçage est toujours obligatoire. | H16: Para tornillos de fijación sobre el elemento principal y/o secundario, con densidad característica ρk≤420 kg/m3, el pre-agujero no es obligatorio. Para viga principal y/o secundaria con densidad característica ρk>420 kg/m3, el pre-agujero es obligatorio. Para tornillos en pilares, el pre-agujero siempre es obligatorio. | I16: Para os parafusos de fixação no elemento principal e/ou secundário, com densidade característica ρk≤420 kg/m3, não é necessário pré-furo. Para a viga principal e/ou secundária com densidade característica ρk>420 kg/m3 o pré-furo é obrigatório. Para os parafusos no pilar, o pré-furo é sempre obrigatório. | S16: 1111
A17: 17 | B17: PERCENTAGEM DE UTILIZAÇÃO DA LIGAÇÃO | D17: PERCENTUALE DI UTILIZZO DELLA CONNESSIONE | E17: USE PERCENTAGE OF CONNECTION | F17: PROZENTSATZ DER VERBINDUNGSAUSLASTUNG | G17: POURCENTAGE D'UTILISATION DE LA CONNEXION | H17: PORCENTAJE DE USO DE LA CONEXIÓN | I17: PERCENTAGEM DE UTILIZAÇÃO DA LIGAÇÃO | S17: 1111
A18: 18 | B18: 6.1 Corte vertical (Fv) | D18: 6.1 Taglio verticale (Fv) | E18: 6.1 Vertical shear (Fv) | F18: 6.1 vertikaler Scherwert (Fv) | G18: 6.1 Cisaillement verticale (Fv) | H18: 6.1 Corte vertical (Fv) | I18: 6.1 Corte vertical (Fv) | S18: 1111
A19: 19 | B19: 6.2 Corte vertical ascendente (Fup) | D19: 6.2 Taglio sollevamento (Fup) | E19: 6.2 Lifting shear (Fup) | F19: 6.2 Abhebende Kräfte (Fup) | G19: 6.2 Cisaillement de soulèvement (Fup) | H19: 6.2 Corte elevación (Fup) | I19: 6.2 Corte vertical ascendente (Fup) | S19: 1111
A20: 20 | B20: 7. Carga combinada | D20: 7. Sollecitazione combinata | E20: 7. Combined load | F20: 7. Kombinierte Beanspruchung | G20: 7. Sollicitation combinée | H20: 7. Solicitación combinada | I20: 7. Carga combinada | S20: 1111
A21: 21 | B21: 6.3 Axial (Fax) | D21: 6.3 Assiale (Fax) | E21: 6.3 Axial (Fax) | F21: 6.3 Axial (Fax) | G21: 6.3 Axiale (Fax) | H21: 6.3 Axial (Fax) | I21: 6.3 Axial (Fax) | S21: 1111
A22: 22 | B22: 6.4 Corte lateral (Flat) | D22: 6.4 Taglio laterale (Flat) | E22: 6.4 Lateral shear load (Flat) | F22: 6.4 Seitliche Beanspruchung (Flat) | G22: 6.4 Cisaillement latéral (Flat) | H22: 6.4 Corte lateral (Flat) | I22: 6.4 Corte lateral (Flat) | S22: 1111
A23: 23 | B23: CÁLCULO LIGADOR OCULTO DE ENGATE MADEIRA-MADEIRA LOCK-T | D23: CALCOLO CONNETTORE A SCOMPARSA AD AGGANCIO LEGNO-LEGNO LOCK-T | E23: CALCULATION OF LOCK T CONCEALED TIMBER-TO-TIMBER CONNECTOR | F23: LOCK-T VERDECKTER HOLZ-HOLZ VERBINDER BERECHNUNG | G23: CALCUL CONNECTEUR À ACCROCHE CACHÉ BOIS - BOIS LOCK-T | H23: CÁLCULO CONECTOR OCULTO DE CONEXIÓN MADERA-MADERA LOCK-T | I23: CÁLCULO LIGADOR OCULTO DE ENGATE MADEIRA-MADEIRA LOCK-T | S23: 1111
A24: 24 | B24: 1. Informações gerais | D24: 1. Informazioni generali | E24: 1. General information | F24: 1. Allgemeine Informationen | G24: 1. Informations générales | H24: 1. Información general | I24: 1. Informações gerais | S24: 1111
A25: 25 | B25: Data | D25: Data | E25: Date | F25: Datum | G25: Date | H25: Fecha | I25: Data | S25: 1111
A26: 26 | B26: Técnico comercial RothoBlaas | D26: Tecnico commerciale RothoBlaas | E26: RothoBlaas technical salesman | F26: RothoBlaas Vertriebsmitarbeiter | G26: Technico commerciale RothoBlaas | H26: Técnico comercial RothoBlaas | I26: Técnico comercial RothoBlaas | S26: 1111
A27: 27 | B27: Projeto | D27: Progetto | E27: Project | F27: Projekt | G27: Projet | H27: Proyecto | I27: Projeto | S27: 1111
A28: 28 | B28: Projetista | D28: Progettista | E28: Designer | F28: Planer | G28: Concepteur | H28: Proyectista | I28: Projetista | S28: 1111
A29: 29 | B29: Norma de cálculo | D29: Norma di calcolo | E29: Calculation standard | F29: Berechnungsnorm | G29: Norme de calcul | H29: Norma de cálculo | I29: Norma de cálculo | S29: 1111
A30: 30 | B30: Ligação n° | D30: Giunzione n° | E30: Connection nr. | F30: Verbindung Nr. | G30: Assemblage n° | H30: Unión n° | I30: Ligação n° | S30: 1111
A31: 31 | B31: NOTAS | D31: Note | E31: Notes | F31: Anmerkungen | G31: Notes | H31: Notas | I31: NOTAS | S31: 1111
A32: 32 | B32: 3. Tensão de projeto | D32: 3. Sollecitazioni di progetto | E32: 3. Design shear strength | F32: 3. Bemessungsspannung | G32: 3. Sollicitations du projet | H32: 3. Solicitaciones de proyecto | I32: 3. Tensão de projeto | S32: 1111
A33: 33 | B33: Ação de corte vertical | D33: Azione di taglio verticale | E33: Vertical shear action | F33: vertikale Scherkraft | G33: Action de cisaillement verticale | H33: Acción de corte vertical | I33: Ação de corte vertical | S33: 1111
A34: 34 | B34: Ação de corte per elevação | D34: Azione di taglio per sollevamento | E34: Shear action for lifting | F34: Abhebende Scherkraft | G34: Action de cisaillement pour le soulèvement | H34: Acción de corte por elevación | I34: Ação de corte per elevação | S34: 1111
A35: 35 | B35: Ação axial | D35: Azione assiale | E35: Axial action | F35: Axiale Beanspruchung | G35: Action axiale | H35: Acción axial | I35: Ação axial | S35: 1111
A36: 36 | B36: Ação lateral | D36: Azione laterale | E36: Lateral action | F36: Seitliche Beanspruchung | G36: Action latérale | H36: Acción lateral | I36: Ação lateral | S36: 1111
A37: 37 | B37: 4. Elementos de madeira | D37: 4. Elementi in legno | E37: 4. Timber element | F37: 4. Holzelemente | G37: 4. Éléments en bois | H37: 4. Elementos de madera | I37: 4. Elementos de madeira | S37: 1111
A38: 38 | B38: 4.1 Elemento principal | D38: 4.1 Elemento Primario | E38: 4.1 Main element | F38: 4.1 Hauptelement | G38: 4.1 Élément principal | H38: 4.1 Elemento principal | I38: 4.1 Elemento principal | S38: 1111
A39: 39 | B39: Base da viga | D39: Base della trave | E39: Beam base | F39: Breite des Balkens | G39: Base de la poutre | H39: Base de la viga | I39: Base da viga | S39: 1111
A40: 40 | B40: Base do pilar | D40: Base del pilastro | E40: Column base | F40: Breite der Stütze | G40: Base du poteau | H40: Base del pilar | I40: Base do pilar | S40: 1111
A41: 41 | B41: Altura da viga | D41: Altezza della trave | E41: Beam height | F41: Höhe des Balkens | G41: Hauteur de la poutre | H41: Altura de la viga | I41: Altura da viga | S41: 1111
A42: 42 | B42: Profundidade do pilar | D42: Profondità del pilastro | E42: Column Depth | F42: Tiefe der Stütze | G42: Profondeur du poteau | H42: Profundidad del pilar | I42: Profundidade do pilar | S42: 1111
A43: 43 | B43: Tipo de madeira | D43: Tipologia di legno | E43: Type of timber | F43: Holzart | G43: Type de bois | H43: Tipo de madera | I43: Tipo de madeira | S43: 1111
A44: 44 | B44: Orientação elemento principal | D44: Orientamento elemento primario | E44: Main element orientation | F44: Ausrichtung des Hauptelements | G44: Orientation élément principal | H44: Orientación del elemento principal | I44: Orientação elemento principal | S44: 1111
A45: 45 | B45: Viga ou pilar: | D45: Trave o pilastro: | E45: Beam or column: | F45: Balken oder Stütze: | G45: Poutre ou poteau : | H45: Viga o pilar: | I45: Viga ou pilar: | S45: 1111
A46: 46 | B46: Classe de resistência para madeira | D46: Classe di resistenza per legno | E46: Timber strength class | F46: Festigkeitsklasse für Holz | G46: Classe de résistance pour le bois | H46: Clase de resistencia para madera | I46: Classe de resistência para madeira | S46: 1111
A47: 47 | B47: Massa volúmica característica | D47: Massa volumica caratteristica | E47: Characteristic density | F47: Charakteristische Dichte | G47: Masse volumique caractéristique | H47: Densidad característica | I47: Massa volúmica característica | S47: 1111
A48: 48 | B48: Resistência característica à compressão paralela à fibra | D48: Resistenza caratteristica a compressione parallela alla fibratura | E48: Characteristic compressive strength parallel to the grain | F48: Charakteristische Druckfestigkeit in paralleler Richtung zur Faser | G48: Résistance caractéristique à compression parallèle au fil | H48: Resistencia característica a compresión paralela a la fibra | I48: Resistência característica à compressão paralela à fibra | S48: 1111
A49: 49 | B49: Resistência característica à compressão perpendicular à fibra | D49: Resistenza caratteristica a compressione perpendicolare alla fibratura | E49: Characteristic compressive strength perpendicular to the grain | F49: Charakteristische Druckfestigkeit senkrecht zur Faser | G49: Résistance caractéristique à compression perpendiculaire au fil | H49: Resistencia característica a compresión perpendicular a la fibra | I49: Resistência característica à compressão perpendicular à fibra | S49: 1111
A50: 50 | B50: Resistência característica ao corte para laminação de fibra | D50: Resistenza caratteristica a taglio per rotolamento delle fibre | E50: Characteristic strength for rolling shear | F50: Charakteristische Scherfestigkeit für Rollschub | G50: Résistance caractéristique au cisaillement roulant (perpendiculaire à la fibre) | H50: Resistencia característica al corte por laminado de fibra | I50: Resistência característica ao corte para laminação de fibra | S50: 1111
A51: 51 | B51: Resistência característica ao corte | D51: Resistenza caratteristica a taglio | E51: Characteristic shear resistance | F51: Charakteristische Quertragfähigkeit | G51: Résistance caractéristique au cisaillement | H51: Resistencia característica al corte | I51: Resistência característica ao corte | S51: 1111
A52: 52 | B52: Para os parafusos no pilar, o pré-furo é sempre obrigatório. | D52: Per le viti su pilastro è obbligatorio il preforo. | E52: For screws on column, pre-drilling is mandatory. | F52: Bei Schrauben an der Stütze ist das Vorbohren immer obligatorisch. | G52: Pour les vis sur poteau, le pré-perçage est toujours obligatoire. | H52: Para tornillos en pilares, el pre-agujero siempre es obligatorio. | I52: Para os parafusos no pilar, o pré-furo é sempre obrigatório. | S52: 1111
A53: 53 | B53: Para os parafusos de fixação no elemento madeira com densidade característica ρk>420 kg/m3, não é necessário pré-furo. | D53: Per le viti di fissaggio su elemento legno con densità caratteristica ρk>420 kg/m3 è obbligatorio il preforo. | E53: The pre-drill is required for fastening screws on timber element with with characteristic density ρk> 420 kg/m3. | F53: Zur Befestigung von Schrauben an Holzelementen mit einer charakteristischen Dichte ρk>420 kg/m3 ist ein Vorbohren vorgeschrieben. | G53: Pour les vis de fixation sur élément en bois avec une densité caractéristique ρk>420 kg/m3, le pré-perçage est nécessaire. | H53: Para tornillos de fijación sobre el elemento de madera con densidad característica ρk>420 kg/m3, el pre-agujero es obligatorio. | I53: Para os parafusos de fixação no elemento madeira com densidade característica ρk>420 kg/m3, não é necessário pré-furo. | S53: 1111
A54: 54 | B54: 4.2 Elemento secundária | D54: 4.2 Elemento secondario | E54: 4.2 Secondary element | F54: 4.2 Nebenelement | G54: 4.2 Élément secondaire | H54: 4.2 Elemento secundario | I54: 4.2 Elemento secundária | S54: 1111
A55: 55 | B55: Base da viga | D55: Base della trave | E55: Beam base | F55: Breite des Balkens | G55: Base de la poutre | H55: Base de la viga | I55: Base da viga | S55: 1111
A56: 56 | B56: Altura da viga | D56: Altezza della trave | E56: Beam height | F56: Höhe des Balkens | G56: Hauteur de la poutre | H56: Altura de la viga | I56: Altura da viga | S56: 1111
A57: 57 | B57: Tipo de madeira | D57: Tipologia di legno | E57: Type of wood | F57: Holzart | G57: Type de bois | H57: Tipo de madera | I57: Tipo de madeira | S57: 1111
A58: 58 | B58: Ângulo no plano vertical | D58: Angolo nel piano verticale | E58: Angle in vertical plane | F58: Winkel in der vertikalen Ebene | G58: Angle dans le plan vertical | H58: Ángulo en el plano vertical | I58: Ângulo no plano vertical | S58: 1111
A59: 59 | B59: Para ângulos elevados, verifique se os parafusos não se sobressaem geometricamente das secções. | D59: Per angoli elevati verificare che geometricamente le viti non fuoriescano dalle sezioni. | E59: For high angles check that screws do not protrude from the sections geometrically. | F59: Bei hohen Winkeln sicherstellen, dass die Schrauben nicht geometrisch aus den Profilen herausragen. | G59: Pour les angles élevés, vérifier que les vis ne dépassent pas des sections géométriquement. | H59: Para ángulos altos, compruebe que los tornillos no sobresalen geométricamente de las secciones. | I59: Para ângulos elevados, verifique se os parafusos não se sobressaem geometricamente das secções. | S59: 1111
A60: 60 | B60: Classe de resistência para madeira | D60: Classe di resistenza per legno | E60: Timber class | F60: Festigkeitsklasse für Holz | G60: Classe de résistance pour le bois | H60: Clase de resistencia de la madera | I60: Classe de resistência para madeira | S60: 1111
A61: 61 | B61: Massa volúmica característica | D61: Massa volumica caratteristica | E61: Characteristic density | F61: Charakteristische Dichte | G61: Masse volumique caractéristique | H61: Densidad característica | I61: Massa volúmica característica | S61: 1111
A62: 62 | B62: Resistência característica à compressão paralela à fibra | D62: Resistenza caratteristica a compressione parallela alla fibratura | E62: Characteristic compressive strength parallel to the grain | F62: Charakteristische Druckfestigkeit in paralleler Richtung zur Faser | G62: Résistance caractéristique à compression parallèle au fil | H62: Resistencia característica a compresión paralela a la fibra | I62: Resistência característica à compressão paralela à fibra | S62: 1111
A63: 63 | B63: Resistência característica à compressão perpendicular à fibra | D63: Resistenza caratteristica a compressione perpendicolare alla fibratura | E63: Characteristic compressive strength perpendicular to fibration | F63: Charakteristische Druckfestigkeit senkrecht zur Faser | G63: Résistance caractéristique à compression perpendiculaire au fil | H63: Resistencia característica a compresión perpendicular a la fibra | I63: Resistência característica à compressão perpendicular à fibra | S63: 1111
A64: 64 | B64: Resistência ao corte caraterístico para laminação de fibra | D64: Resistenza caratteristica a taglio per rotolamento delle fibre | E64: Characteristic strength for rolling shear | F64: Charakteristische Scherfestigkeit für Rollschub | G64: Résistance caractéristique au cisaillement roulant (perpendiculaire à la fibre) | H64: Resistencia característica al corte por laminado de fibra | I64: Resistência ao corte caraterístico para laminação de fibra | S64: 1111
A65: 65 | B65: Resistência característica ao corte | D65: Resistenza caratteristica a taglio | E65: Characteristic shear resistance | F65: Charakteristische Quertragfähigkeit | G65: Résistance caractéristique au cisaillement | H65: Resistencia característica al corte | I65: Resistência característica ao corte | S65: 1111
A66: 66 | B66: Para os parafusos de fixação no elemento madeira com densidade característica ρk>420 kg/m3, não é necessário pré-furo. | D66: Per le viti di fissaggio su elemento legno con densità caratteristica ρk>420 kg/m3 è obbligatorio il preforo. | E66: The pre-drill is required for fastening screws on timber element with with characteristic density ρk> 420 kg/m3. | F66: Zur Befestigung von Schrauben an Holzelementen mit einer charakteristischen Dichte ρk>420 kg/m3 ist ein Vorbohren vorgeschrieben. | G66: Pour les vis de fixation sur élément en bois avec une densité caractéristique ρk>420 kg/m3, le pré-perçage est nécessaire. | H66: Para tornillos de fijación sobre el elemento de madera con densidad característica ρk>420 kg/m3, el pre-agujero es obligatorio. | I66: Para os parafusos de fixação no elemento madeira com densidade característica ρk>420 kg/m3, não é necessário pré-furo. | S66: 1111
A67: 67 | B67: =HLOOKUP($B$1,$D$1:$I$206,A67,FALSE) -> 5. Escolha do conector e dos parafusos | D67: 5. Scelta del connettore e delle viti | E67: 5. Choice of connector and screws | F67: 5. Auswahl des Verbinders und der Schrauben | G67: 5. Choix du connecteur et des vis | H67: 5. Elección del conector y de los tornillos | I67: 5. Escolha do conector e dos parafusos | S67: =IF(R67=G67,0,1111) -> 1111
A68: 68 | B68: Escolha do conector | D68: Scelta del connettore | E68: Connector selection | F68: Auswahl des Verbinders | G68: Choix du connecteur | H68: Elección del conector | I68: Escolha do conector | S68: 1111
A69: 69 | B69: Versão com revestimento C4 EVO | D69: Versione con rivestimento C4 EVO | E69: Version with C4 EVO coating | F69: Ausführung mit Beschichtung C4 EVO | G69: Version avec revêtement C4 EVO | H69: Versión con revestimiento C4 EVO | I69: Versão com revestimento C4 EVO | S69: 1111
A70: 70 | B70: Acoplamento com conectores: número de conectores | D70: Accoppiamento connettori: numero di connettori | E70: Connectors coupling: number of connectors | F70: Kopplung von Verbindern: Anzahl der Verbinder | G70: Accouplement des connecteurs : nombre de connecteurs | H70: Acoplamiento conectores: número de conectores | I70: Acoplamento com conectores: número de conectores | S70: 1111
A71: 71 | B71: Os conetores acoplados devem ser iguais em altura! | D71: I connettori accoppiati devono avere pari altezza! | E71: Coupling connectors must be equal in height! | F71: gekoppelte Verbinder müssen gleich hoch sein! | G71: Les connecteurs accouplés doivent avoir la même hauteur ! | H71: Los conectores en pares tiene que tener la misma altura! | I71: Os conetores acoplados devem ser iguais em altura! | S71: 1111
A72: 72 | B72: Código do conector utilizado | D72: Codice del connettore utilizzato | E72: Connector code | F72: Code des verwendeten Verbinders | G72: Code du connecteur utilisé | H72: Código del conector utilizado | I72: Código do conector utilizado | S72: 1111
A73: 73 | B73: Número de módulos básicos ETA-19/0831 | D73: Numero di moduli base ETA-19/0831 | E73: Number of ETA-19/0831 basic modules | F73: Anzahl der Grundmodule gemäß ETA-19/0831 | G73: Nombre de modules de base selon ETA-19/0831 | H73: Número de módulos básicos ETA-19/0831 | I73: Número de módulos básicos ETA-19/0831 | S73: 1111
A74: 74 | B74: Base | D74: Base | E74: Base | F74: Breite | G74: Base | H74: Base | I74: Base | S74: 1111
A75: 75 | B75: Altura | D75: Altezza | E75: Height | F75: Höhe | G75: Hauteur | H75: Altura | I75: Altura | S75: 1111
A76: 76 | B76: Espessura | D76: Spessore | E76: Thickness | F76: Stärke | G76: Épaisseur | H76: Espesor | I76: Espessura | S76: 1111
A77: 77 | B77: Furos | D77: Fori | E77: Holes | F77: Löcher | G77: Trous | H77: Agujeros | I77: Furos | S77: 1111
A78: 78 | B78: Bloqueie a área de contacto do conetor em T com a cabeça do motor ou a coluna | D78: Area di contatto tra connettore LOCK T e testata o colonna | E78: Contact area between LOCK T connector and head or column | F78: Verriegeln Sie den Kontaktbereich des LOCK T mit dem Zylinderkopf oder der Säule | G78: Zone de contact entre le connecteur LOCK T et la tête ou la colonne | H78: Área de contacto entre el conector LOCK T y cabeza o pilar | I78: Bloqueie a área de contacto do conetor em T com a cabeça do motor ou a coluna | S78: 1111
A79: 79 | B79: Comprimento do conector LOCK T | D79: Lunghezza del connettore LOCK T | E79: LOCK T connector length | F79: LOCK T-Verbinder Länge | G79: Longueur du connecteur LOCK T | H79: Longitud del conector LOCK T | I79: Comprimento do conector LOCK T | S79: 1111
A80: 80 | B80: Fator de forma | D80: Fattore di forma | E80: Form factor | F80: Formfaktor | G80: Facteur de forme | H80: Factor de forma | I80: Fator de forma | S80: 1111
A81: 81 | B81: (*) Código disponível mediante pedido especial | D81: (*) Codice disponibile su richiesta speciale | E81: (*) Code available on special request | F81: (*) Code auf Anfrage erhältlich | G81: (*) Code disponible sur demande spéciale | H81: (*) Código disponible bajo pedido específico | I81: (*) Código disponível mediante pedido especial | S81: 1111
A82: 82 | B82: (**) Código disponível mediante pedido especial | D82: (**) Codice disponibile su richiesta speciale | E82: (**) Code available on special request | F82: (**) Code auf Anfrage erhältlich | G82: (**) Code disponible sur demande spéciale | H82: (**) Código disponible bajo pedido específico | I82: (**) Código disponível mediante pedido especial | S82: 1111
A83: 83 | B83: Acoplamento com conectores: | D83: Accoppiamento connettori: | E83: Connectors coupling: | F83: Kopplung von Verbindern: | G83: Accouplement des connecteurs : | H83: Acoplamiento conectores: | I83: Acoplamento com conectores: | S83: 1111
A84: 84 | B84: Parafusos de fixação elemento principal | D84: Viti fissaggio elemento primario | E84: Fastening screws main element | F84: Befestigungsschrauben des Hauptelements | G84: Vis de fixation élément principal | H84: Tornillos fijación elemento principal | I84: Parafusos de fixação elemento principal | S84: 1111
A85: 85 | B85: Código parafusos elemento principal | D85: Codice viti elemento primario | E85: Screws code main element | F85: Hauptelement Schraubencode | G85: Code vis élément principal | H85: Código tornillo elemento principal | I85: Código parafusos elemento principal | S85: 1111
A86: 86 | B86: Diâmetro nominal | D86: Diametro nominale | E86: Nominal diameter | F86: Nenndurchmesser | G86: Diamètre nominal | H86: Diámetro nominal | I86: Diâmetro nominal | S86: 1111
A87: 87 | B87: Diâmetro do núcleo | D87: Diametro nocciolo | E87: Thread diameter | F87: Kerndurchmesser | G87: Diamètre noyau | H87: Diámetro rosca | I87: Diâmetro do núcleo | S87: 1111
A88: 88 | B88: Diâmetro da cabeça | D88: Diametro testa | E88: Head diameter | F88: Kopfdurchmesser | G88: Diamètre tête | H88: Diámetro cabeza | I88: Diâmetro da cabeça | S88: 1111
A89: 89 | B89: Comprimento | D89: Lunghezza | E89: Length | F89: Länge | G89: Longueur | H89: Longitud | I89: Comprimento | S89: 1111
A90: 90 | B90: Comprimento da rosca | D90: Lunghezza filetto | E90: Thread length | F90: Gewindelänge | G90: Longueur filet | H90: Longitud rosca | I90: Comprimento da rosca | S90: 1111
A91: 91 | B91: Parâmetro característico à extração | D91: Parametro caratteristico estrazione | E91: Characteristic withdrawal parameter | F91: Charakteristischer Wert der Ausziehfestigkeit | G91: Résistance caractéristique à l’arrachement | H91: Parámetro característico extracción | I91: Parâmetro característico à extração | S91: 1111
A92: 92 | B92: Densidade associada | D92: Densità associata | E92: Associated density | F92: Assoziierte Dichte | G92: Densité associée | H92: Densidad asociada | I92: Densidade associada | S92: 1111
A93: 93 | B93: Resistência característica à tração | D93: Resistenza caratteristica a trazione | E93: Characteristic tensile strength | F93: Charakteristischer Zugwiderstand | G93: Résistance caractéristique à la traction | H93: Resistencia característica de tracción | I93: Resistência característica à tração | S93: 1111
A94: 94 | B94: Momento plástico característico | D94: Momento caratteristico di snervamento | E94: Characteristic yield moment | F94: Charakteristisches Fließmoment | G94: Moment plastique caractéristique | H94: Momento plástico característico | I94: Momento plástico característico | S94: 1111
A95: 95 | B95: Parafusos fixações viga secundária | D95: Viti fissaggio trave secondaria | E95: Fastening screws secondary beam | F95: Befestigungsschrauben des Nebenträgers | G95: Vis fixations poutre secondaire | H95: Tornillos fijación viga secundaria | I95: Parafusos fixações viga secundária | S95: 1111
A96: 96 | B96: Configuração Flat: | D96: Configurazione Flat: | E96: Flat configuration: | F96: Flat Konfiguration: | G96: Configuration Flat : | H96: Configuración Flat: | I96: Configuração Flat: | S96: 1111
A97: 97 | B97: Código parafusos viga secundária | D97: Codice viti trave secondaria | E97: Screws code secondary beam | F97: Nebenträger Schraubencode | G97: Code vis de poutre secondaire | H97: Código tornillo viga secundaria | I97: Código parafusos viga secundária | S97: 1111
A98: 98 | B98: Diâmetro nominal | D98: Diametro nominale | E98: Nominal diameter | F98: Nenndurchmesser | G98: Diamètre nominal | H98: Diámetro nominal | I98: Diâmetro nominal | S98: 1111
A99: 99 | B99: Diâmetro do núcleo | D99: Diametro nocciolo | E99: Thread diameter | F99: Kerndurchmesser | G99: Diamètre noyau | H99: Diámetro núcleo | I99: Diâmetro do núcleo | S99: 1111
A100: 100 | B100: Diâmetro da cabeça | D100: Diametro testa | E100: Head diameter | F100: Kopfdurchmesser | G100: Diamètre tête | H100: Diámetro cabeza | I100: Diâmetro da cabeça | S100: 1111
A101: 101 | B101: Comprimento | D101: Lunghezza | E101: Length | F101: Länge | G101: Longueur | H101: Longitud | I101: Comprimento | S101: 1111
A102: 102 | B102: Comprimento da rosca | D102: Lunghezza filetto | E102: Thread length | F102: Gewindelänge | G102: Longueur filet | H102: Longitud rosca | I102: Comprimento da rosca | S102: 1111
A103: 103 | B103: Parâmetro característico à extração | D103: Parametro caratteristico estrazione | E103: Characteristic withdrawal parameter | F103: Charakteristischer Wert der Ausziehfestigkeit | G103: Résistance caractéristique à l’arrachement | H103: Parámetro característico extracción | I103: Parâmetro característico à extração | S103: 1111
A104: 104 | B104: Densidade associada | D104: Densità associata | E104: Associated density | F104: Assoziierte Dichte | G104: Densité associée | H104: Densidad asociada | I104: Densidade associada | S104: 1111
A105: 105 | B105: Resistência característica à tração | D105: Resistenza caratteristica a trazione | E105: Characteristic tensile strength | F105: Charakteristischer Zugwiderstand | G105: Résistance caractéristique à la traction | H105: Resistencia característica de tracción | I105: Resistência característica à tração | S105: 1111
A106: 106 | B106: Momento plástico característico | D106: Momento caratteristico di snervamento | E106: Characteristic yield moment | F106: Charakteristisches Fließmoment | G106: Moment plastique caractéristique | H106: Momento plástico característico | I106: Momento plástico característico | S106: 1111
A107: 107 | B107: Configuração para resistência lateral | D107: Configurazione per resistenza laterale | E107: Configuration for lateral resistance | F107: Konfiguration für Widerstand bei Querbeanspruchung | G107: Configuration pour résistance latérale | H107: Configuración por resistencia lateral | I107: Configuração para resistência lateral | S107: 1111
A108: 108 | B108: Tipo de conector LOCK STOP | D108: Tipologia di connettore LOCK STOP | E108: Type of LOCK STOP connector | F108: LOCK STOP Verbindertyp | G108: Type de connecteur LOCK STOP | H108: Tipo de conector LOCK STOP | I108: Tipo de conector LOCK STOP | S108: 1111
A109: 109 | B109: Parafusos inclinados para resistência ao levantamento e/ou lateral | D109: Viti inclinate per resistenza a sollevamento e/o laterale | E109: Inclined screws for lifting and/or lateral resistance | F109: geneigte Schrauben für abhebende Kräfte und/oder den seitlichen Widerstand | G109: Vis inclinées pour résistance au soulèvement et/ou latérale | H109: Tornillos inclinados para levantamiento y/o resistencia lateral | I109: Parafusos inclinados para resistência ao levantamento e/ou lateral | S109: 1111
A110: 110 | B110: Número de parafusos inclinados | D110: Numero di viti inclinate | E110: Number of inclined screws | F110: Anzahl der geneigten Schrauben | G110: Nombre de vis inclinées | H110: Número de tornillos inclinados | I110: Número de parafusos inclinados | S110: 1111
A111: 111 | B111: Código parafusos | D111: Codice viti | E111: Screws code | F111: Schraubencode | G111: Code vis | H111: Código tornillos | I111: Código parafusos | S111: 1111
A112: 112 | B112: Diâmetro nominal | D112: Diametro nominale | E112: Nominal diameter | F112: Nenndurchmesser | G112: Diamètre nominal | H112: Diámetro nominal | I112: Diâmetro nominal | S112: 1111
A113: 113 | B113: Diâmetro do núcleo | D113: Diametro nocciolo | E113: Thread diameter | F113: Kerndurchmesser | G113: Diamètre noyau | H113: Diámetro rosca | I113: Diâmetro do núcleo | S113: 1111
A114: 114 | B114: Diâmetro da cabeça | D114: Diametro testa | E114: Head diameter | F114: Kopfdurchmesser | G114: Diamètre tête | H114: Diámetro cabeza | I114: Diâmetro da cabeça | S114: 1111
A115: 115 | B115: Comprimento | D115: Lunghezza | E115: Length | F115: Länge | G115: Longueur | H115: Longitud | I115: Comprimento | S115: 1111
A116: 116 | B116: Comprimento da rosca | D116: Lunghezza filetto | E116: Thread length | F116: Gewindelänge | G116: Longueur filet | H116: Longitud rosca | I116: Comprimento da rosca | S116: 1111
A117: 117 | B117: Parâmetro característico à extração | D117: Parametro caratteristico estrazione | E117: Characteristic withdrawal parameter | F117: Charakteristischer Wert der Ausziehfestigkeit | G117: Résistance caractéristique à l’arrachement | H117: Parámetro característico extracción | I117: Parâmetro característico à extração | S117: 1111
A118: 118 | B118: Densidade associada | D118: Densità associata | E118: Associated density | F118: Assoziierte Dichte | G118: Densité associée | H118: Densidad asociada | I118: Densidade associada | S118: 1111
A119: 119 | B119: Resistência característica à tração | D119: Resistenza caratteristica a trazione | E119: Characteristic tensile strength | F119: Charakteristischer Zugwiderstand | G119: Résistance caractéristique à la traction | H119: Resistencia característica de tracción | I119: Resistência característica à tração | S119: 1111
A120: 120 | B120: Momento plástico característico | D120: Momento caratteristico di snervamento | E120: Characteristic yield moment | F120: Charakteristisches Fließmoment | G120: Moment plastique caractéristique | H120: Momento plástico característico | I120: Momento plástico característico | S120: 1111
A121: 121 | B121: 2. Combinações | D121: 2. Combinazioni | E121: 2. Combinations | F121: 2. Kombinationen | G121: 2. Combinaisons | H121: 2. Combinaciones | I121: 2. Combinações | S121: 1111
A122: 122 | B122: Classes de serviço | D122: Classe di servizio | E122: Service class | F122: Nutzungsklassen | G122: Classes de service | H122: Clases de servicio | I122: Classes de serviço | S122: 1111
A123: 123 | B123: Classe de duração da carga | D123: Classe di durata del carico | E123: Load duration class | F123: Klasse der Lasteinwirkungsdauer | G123: Classe de durée de la charge | H123: Clase de duración de la carga | I123: Classe de duração da carga | S123: 1111
A124: 124 | B124: Coeficiente kmod | D124: Coefficiente kmod | E124: Kmod coefficient | F124: Kmod Koeffizient | G124: Coefficient kmod | H124: Coeficiente kmod | I124: Coeficiente kmod | S124: 1111
A125: 125 | B125: Caracterizado por uma humidade do material em equilíbrio com o ambiente a uma temperatura de 20 ºC e uma humidade relativa do ar circundante que não excede 65%, se não por algumas semanas por ano. | D125: Caratterizzata da un'umidità del materiale in equilibrio con l'ambiente a una temperatura di 20°C e un'umidità relativa dell'aria circostante che non superi il 65%, se non per poche settimane all'anno. | E125: Characterized by a material humidity in balance with the environment at a temperature of 20°C and a relative humidity of the surrounding air that does not exceed 65%, if not for a few weeks per year. | F125: Charakterisiert durch eine Materialfeuchtigkeit, die im Gleichgewicht mit der Umgebung steht bei einer Temperatur von 20 °C und einer relativen Luftfeuchtigkeit der Umgebungsluft, die 65 % maximal für einige Wochen pro Jahr überschreitet | G125: Caractérisé par une humidité du matériau en équilibre avec l'environnement à une température de 20 °C et une humidité relative de l'air environnant qui ne dépasse pas 65 %, si ce n'est pendant quelques semaines par an. | H125: Se caracteriza por una humedad del material en equilibrio con el ambiente a una temperatura de 20°C y una humedad relativa del aire circundante que no supera el 65%, si no durante unas semanas al año. | I125: Caracterizado por uma humidade do material em equilíbrio com o ambiente a uma temperatura de 20 ºC e uma humidade relativa do ar circundante que não excede 65%, se não por algumas semanas por ano. | S125: 1111
A126: 126 | B126: Caracteriza-se por uma humidade do material em equilíbrio com o ambiente a uma temperatura de 20 ºC e uma humidade relativa do ar circundante superior a 85% durante apenas algumas semanas por ano. | D126: Caratterizzata da un'umidità del materiale in equilibrio con l'ambiente a una temperatura di 20°C e un'umidità relativa dell'aria circostante che superi l'85% solo per poche settimane all'anno. | E126: It is characterized by a material humidity in balance with the environment at a temperature of 20°C and a relative humidity of the surrounding air of more than 85% for only a few weeks a year. | F126: Zeichnet sich durch eine Materialfeuchtigkeit aus, die im Gleichgewicht mit der Umgebung steht bei einer Temperatur von 20 °C und einer relativen Luftfeuchtigkeit der Umgebungsluft von mehr als 85 % für nur wenige Wochen im Jahr. | G126: Elle se caractérise par une humidité du matériau en équilibre avec l'environnement à une température de 20 °C et une humidité relative de l'air environnant de plus de 85 % pendant seulement quelques semaines par an. | H126: Se caracteriza por una humedad del material en equilibrio con el ambiente a una temperatura de 20°C y una humedad relativa del aire circundante de más del 85% durante solo unas semanas al año. | I126: Caracteriza-se por uma humidade do material em equilíbrio com o ambiente a uma temperatura de 20 ºC e uma humidade relativa do ar circundante superior a 85% durante apenas algumas semanas por ano. | S126: 1111
A127: 127 | B127: Tem uma umidade mais alta do que a classe de serviço 2. | D127: Caratterizzata da umidità più elevata di quella della classe di servizio 2. | E127: It has higher humidity than service class 2. | F127: Hat eine höhere Luftfeuchtigkeit als Serviceklasse 2. | G127: L'humidité est supérieure à celle de la classe de service 2. | H127: Tiene una humedad más alta que la clase de servicio 2. | I127: Tem uma umidade mais alta do que a classe de serviço 2. | S127: 1111
A128: 128 | B128: Permanente | D128: Permanente | E128: Permanent | F128: Dauerhaft | G128: Permanente | H128: Permanente | I128: Permanente | S128: 1111
A129: 129 | B129: Longa duração | D129: Lunga durata | E129: Long duration | F129: Lange Lasteinwirkungsdauer | G129: Longue durée | H129: Larga duración | I129: Longa duração | S129: 1111
A130: 130 | B130: Média duração | D130: Media durata | E130: Medium duration | F130: Mittlere Lasteinwirkungsdauer | G130: Moyenne durée | H130: Media duración | I130: Média duração | S130: 1111
A131: 131 | B131: =HLOOKUP($B$1,$D$1:$I$206,A131,FALSE) -> Breve duração | D131: Breve durata | E131: Short duration | F131: Kurze Lasteinwirkungsdauer | G131: Courte durée | H131: Corta duración | I131: Breve duração | S131: =IF(R131=G131,0,1111) -> 1111
A132: 132 | B132: Instantâneo | D132: Istantaneo | E132: Instantaneous | F132: Sofort wirkend | G132: Instantanée | H132: Instantáneo | I132: Instantâneo | S132: 1111
A133: 133 | B133: Peso próprio e cargas não removíveis durante o funcionamento normal da estrutura. | D133: Peso proprio e carichi non rimovibili durante il normale esercizio della struttura. | E133: Own weight and non-removable loads during normal operation of the structure. | F133: Eigengewicht und ständige Lasten struktureller Art während des normalen Betriebs der Struktur. | G133: Poids propre et charges non amovibles pendant le fonctionnement normal de la structure. | H133: Peso propio y cargas no removibles durante el funcionamiento normal de la estructura. | I133: Peso próprio e cargas não removíveis durante o funcionamento normal da estrutura. | S133: 1111
A134: 134 | B134: Cargas permanentes que podem mudar durante o funcionamento normal da estrutura e cargas variáveis relacionadas com armazéns e depósitos. | D134: Carichi permanenti suscettibili di cambiamenti durante il normale esercizio della struttura e carichi variabili relativi a magazzini e depositi. | E134: Permanent loads that may change during normal operation of the structure and variable loads related to warehouses and deposits. | F134: Ständige Lasten nicht-struktureller Art, die sich während des normalen Betriebs der Struktur ändern können, sowie variable Lasten bei Lagerräumen und Magazinen. | G134: Les charges permanentes qui peuvent changer pendant le fonctionnement normal de la structure et les charges variables liées aux entrepôts et aux dépôts. | H134: Cargas permanentes que pueden cambiar durante el funcionamiento normal de la estructura y cargas variables relacionadas con almacenes y depósitos. | I134: Cargas permanentes que podem mudar durante o funcionamento normal da estrutura e cargas variáveis relacionadas com armazéns e depósitos. | S134: 1111
A135: 135 | B135: Cargas variáveis de edifícios, exceto as relativas a armazéns e depósitos. | D135: Carichi variabili degli edifici, ad eccezione di quelli relativi a magazzini e depositi. | E135: Variable loads of buildings, except those relating to warehouses and deposits. | F135: Veränderliche Last bei Gebäuden, mit Ausnahme von Lagerräumen und Magazinen. | G135: Charges variables de bâtiments, à l'exception de celles relatives aux entrepôts et dépôts. | H135: Cargas variables de edificios, excepto las relativas a almacenes y depósitos. | I135: Cargas variáveis de edifícios, exceto as relativas a armazéns e depósitos. | S135: 1111
A136: 136 | B136: Ação média do vento. | D136: Azione del vento medio. | E136: Average wind action. | F136: Durchschnittliche Windstärke. | G136: Action moyenne du vent. | H136: Acción media del viento | I136: Ação média do vento. | S136: 1111
A137: 137 | B137: Ação de vento de pico e ação incrível. | D137: Azione di picco del vento e azioni eccezionali. | E137: Peak wind action and exceptional action. | F137: Spitzenwinddruck und außergewöhnliche Lasten | G137: Des vents forts et des scènes d'action incroyables. | H137: Acción de pico del viento y acciones excepcionales. | I137: Ação de vento de pico e ação incrível. | S137: 1111
A138: 138 | B138: Produção controlada continuamente (VOC inferior a 15%) | D138: Produzione soggetta a controllo continuativo (COV <15%) | E138: Continuously controlled production (VOC <15%) | F138: Kontinuierlich kontrollierte Produktion (VOC < 15 %) | G138: Production contrôlée en continu (COV < 15 %) | H138: Producción controlada continuamente (VOC <15%) | I138: Produção controlada continuamente (VOC inferior a 15%) | S138: 1111
A139: 139 | B139: Coeficiente de segurança conexão | D139: Coefficiente di sicurezza connessione | E139: Safety coefficient of connection | F139: Sicherheitskoeffizient der Verbindung | G139: Coefficient de sécurité de connexion | H139: Coeficiente de seguridad conexión | I139: Coeficiente de segurança conexão | S139: 1111
A140: 140 | B140: Coeficiente de segurança alumínio | D140: Coefficiente di sicurezza alluminio | E140: Safety coefficient of aluminium | F140: Sicherheitskoeffizient Aluminium | G140: Coefficient de sécurité aluminium | H140: Coeficiente de seguridad aluminio | I140: Coeficiente de segurança alumínio | S140: 1111
A141: 141 | B141: 6. Verificações de projeto para direção individual | D141: 6. Verifiche di progetto per la singola direzione | E141: 6. Design checks for individual direction | F141: 6. Projektnachweise je Richtung | G141: 6. Vérifications de conception pour les directions individuelles | H141: 6. Comprobaciones de diseño para direcciones individuales | I141: 6. Verificações de projeto para direção individual | S141: 1111
A142: 142 | B142: A dimensão e a vida dos elementos de madeira devem ser feitas à parte. Em particular, para cargas perpendiculares ao eixo da viga, é recomendável realizar uma verificação do splitting em ambos os elementos de madeira. | D142: Il dimensionamento e la vita degli elementi in legno devono essere svolti a parte. In particolare, per carichi perpendicolari all'asse della trave, si raccomanda di eseguire una verifica per splitting in entrambi gli elementi in legno. | E142: Dimensioning and life of the timber elements must be carried out separately. In particular, for loads perpendicular to the beam axis, it is recommended to perform a splitting check in both wooden elements. | F142: Die Bemessung und Dauerhaftigkeit der Holzelemente müssen getrennt durchgeführt werden. Insbesondere bei Lasten senkrecht zur Balkenachse wird empfohlen, einen Spaltnachweis in beiden Holzelementen durchzuführen. | G142: Le dimensionnement et la capacité des éléments en bois seront effectués séparément. En particulier, pour des charges perpendiculaires à l’axe des poutres, il est conseillé d’effectuer un contrôle séparé sur les deux éléments en bois. | H142: El dimensionamiento y la vida útil de los elementos de madera deben efectuarse por separado. En concreto, para cargas perpendiculares al eje de las vigas, se aconseja realizar una comprobación por separado de ambos elementos de madera. | I142: A dimensão e a vida dos elementos de madeira devem ser feitas à parte. Em particular, para cargas perpendiculares ao eixo da viga, é recomendável realizar uma verificação do splitting em ambos os elementos de madeira. | S142: 1111
A143: 143 | B143: 6.1 Corte vertical (Fv) | D143: 6.1 Taglio verticale (Fv) | E143: 6.1 Vertical shear (Fv) | F143: 6.1 vertikale Querkraft (Fv) | G143: 6.1 Cisaillement verticale (FV) | H143: 6.1 Corte vertical (Fv) | I143: 6.1 Corte vertical (Fv) | S143: 1111
A144: 144 | B144: Resistência característica ao recalcamento elemento principal | D144: Resistenza caratteristica a rifollamento elemento primario | E144: Characteristic resistance to bearing stress main element | F144: Charakteristischer Festigkeit des Hauptelements gegenüber Lochleibung | G144: Résistance caractéristique à la pression diamétrale de l'élément principal | H144: Resistencia característica al aplastamiento del elemento principal | I144: Resistência característica ao recalcamento elemento principal | S144: 1111
A145: 145 | B145: Capacidade axial caraterística de um parafuso no elemento principal | D145: Capacità assiale caratteristica di una vite su elemento primario | E145: Characteristic axial capacity of a screw on main element | F145: Charakteristische axiale Tragfähigkeit der Schraube auf dem Hauptelement | G145: Capacité axiale caractéristique d'une vis sur un élément principal | H145: Capacidad axial característica de un tornillo en el elemento principal | I145: Capacidade axial caraterística de um parafuso no elemento principal | S145: 1111
A146: 146 | B146: Capacidade de carga caraterística por plano de corte para fixação elemento principal | D146: Capacità di carico caratteristica per piano di taglio per fissaggio elemento primario | E146: Load characteristic capacity for shear plane for fastening main element | F146: Charakteristische Tragfähigkeit je Scherfuge für die Hauptelementbefestigung | G146: Capacité de charge caractéristique par plan de cisaillement pour la fixation de l'élément principal | H146: Capacidad de carga característica para el plano de corte para la fijación del elemento principal | I146: Capacidade de carga caraterística por plano de corte para fixação elemento principal | S146: 1111
A147: 147 | B147: Fator de forma | D147: Fattore di forma | E147: Form factor | F147: Formfaktor | G147: Facteur de forme | H147: Factor de forma | I147: Fator de forma | S147: 1111
A148: 148 | B148: Resistência característica elemento principal | D148: Resistenza caratteristica elemento principale | E148: Characteristic strength main element | F148: Charakteristische Festigkeit des Hauptelements | G148: Résistance caractéristique de l'élément principal | H148: Resistencia característica elemento principal | I148: Resistência característica elemento principal | S148: 1111
A149: 149 | B149: Resistência característica alumínio | D149: Resistenza caratteristica alluminio | E149: Characteristic strength aluminium | F149: Charakteristische Festigkeit Aluminium | G149: Résistance caractéristique aluminium | H149: Resistencia característica aluminio | I149: Resistência característica alumínio | S149: 1111
A150: 150 | B150: Resistência característica ao recalcamento elemento secundário | D150: Resistenza caratteristica a rifollamento elemento secondario | E150: Characteristic resistance to bearing stress secondary element | F150: Charakteristische Festigkeit des Nebenelements gegenüber Lochleibung | G150: Résistance caractéristique à la pression diamétrale de l'élément secondaire | H150: Resistencia característica al aplastamiento del elemento secundario | I150: Resistência característica ao recalcamento elemento secundário | S150: 1111
A151: 151 | B151: Capacidade axial caraterística de um parafuso no elemento secundário | D151: Capacità assiale caratteristica di una vite su elemento secondario | E151: Characteristic axial capacity of a screw on secondary element | F151: Charakteristische axiale Tragfähigkeit der Schraube auf dem Nebenelement | G151: Capacité axiale caractéristique d'une vis sur un élément secondaire | H151: Capacidad axial característica de un tornillo en el elemento secundario | I151: Capacidade axial caraterística de um parafuso no elemento secundário | S151: 1111
A152: 152 | B152: Capacidade de carga caraterística por plano de corte para fixação elemento secundário | D152: Capacità di carico caratteristica per piano di taglio per fissaggio elemento secondario | E152: Load characteristic capacity for shear plane for fastening secondary element | F152: Charakteristische Tragfähigkeit je Scherfuge für die Nebenelementbefestigung | G152: Capacité de charge caractéristique par plan de cisaillement pour la fixation de l'élément secondaire | H152: Capacidad de carga característica para el plano de corte para la fijación del elemento secundario | I152: Capacidade de carga caraterística por plano de corte para fixação elemento secundário | S152: 1111
A153: 153 | B153: Resistência característica elemento secundário | D153: Resistenza caratteristica elemento secondario | E153: Characteristic strength secondary element | F153: Charakteristische Festigkeit des Nebenelements | G153: Résistance caractéristique de l'élément secondaire | H153: Resistencia característica elemento secundario | I153: Resistência característica elemento secundário | S153: 1111
A154: 154 | B154: Resistência característica | D154: Resistenza caratteristica | E154: Characteristic strenght | F154: Charakteristische Tragfähigkeit | G154: Résistance caractéristique | H154: Resistencia característica | I154: Resistência característica | S154: 1111
A155: 155 | B155: Resistência do design | D155: Resistenza di design | E155: Design strength | F155: Design-Festigkeit | G155: Résistance du design | H155: Resistencia de diseño | I155: Resistência do design | S155: 1111
A156: 156 | B156: Verificação da conexão | D156: Verifica della connessione | E156: Verification of connection | F156: Prüfung der Verbindung | G156: Vérification de la connexion | H156: Comprobación de la conexión | I156: Verificação da conexão | S156: 1111
A157: 157 | B157: 6.2 Corte vertical de elevação (Fup) | D157: 6.2 Taglio verticale di sollevamento (Fup) | E157: 6.2 vertical Lifting shear (Fup) | F157: 6.2 Abhebende Kräfte (Fup) | G157: 6.2 Cisaillement vertical du soulèvement (Fup) | H157: 6.2 Corte vertical de elevación (Fup) | I157: 6.2 Corte vertical de elevação (Fup) | S157: 1111
A158: 158 | B158: Resistência característica ao recalcamento | D158: Resistenza caratteristica a rifollamento | E158: Characteristic resistance to bearing stress | F158: Charakteristische Festigkeit gegen Lochleibung | G158: Résistance caractéristique au refoulement | H158: Resistencia característica al aplastamiento | I158: Resistência característica ao recalcamento | S158: 1111
A159: 159 | B159: Capacidade axial caraterística de um parafuso inclinado | D159: Capacità assiale caratteristica di una vite inclinata | E159: Characteristic axial capacity of an inclined screw | F159: Charakteristische axiale Tragfähigkeit der geneigten Schraube | G159: Capacité axiale caractéristique d'une vis inclinée | H159: Capacidad axial característica de un tornillo inclinado | I159: Capacidade axial caraterística de um parafuso inclinado | S159: 1111
A160: 160 | B160: Resistência característica elemento principal | D160: Resistenza caratteristica elemento principale | E160: Characteristic strength main element | F160: Charakteristischer Festigkeit des Hauptelements | G160: Résistance caractéristique de l'élément principal | H160: Resistencia característica elemento principal | I160: Resistência característica elemento principal | S160: 1111
A161: 161 | B161: Resistência característica alumínio | D161: Resistenza caratteristica alluminio | E161: Characteristic strength aluminium | F161: Charakteristische Festigkeit Aluminium | G161: Résistance caractéristique aluminium | H161: Resistencia característica aluminio | I161: Resistência característica alumínio | S161: 1111
A162: 162 | B162: Resistência característica ao recalcamento | D162: Resistenza caratteristica a rifollamento | E162: Characteristic resistance to bearing stress | F162: Charakteristischer Festigkeit gegen Lochleibung | G162: Résistance caractéristique à la contrainte portante | H162: Resistencia característica al aplastamiento | I162: Resistência característica ao recalcamento | S162: 1111
A163: 163 | B163: Capacidade axial caraterística de um parafuso inclinado | D163: Capacità assiale caratteristica di una vite inclinata | E163: Characteristic axial capacity of an inclined screw | F163: Charakteristische axiale Tragfähigkeit der geneigten Schraube | G163: Capacité axiale caractéristique d'une vis inclinée | H163: Capacidad axial característica de un tornillo inclinado | I163: Capacidade axial caraterística de um parafuso inclinado | S163: 1111
A164: 164 | B164: Capacidade de carga caraterística por plano de corte para fixação elemento secundário | D164: Capacità di carico caratteristica per piano di taglio per fissaggio elemento secondario | E164: Load characteristic capacity for shear plane for fastening secondary element | F164: Charakteristische Tragkraft je Scherfuge zur Befestigung des Nebenelements | G164: Capacité de charge caractéristique pour le plan de cisaillement pour la fixation de l'élément secondaire | H164: Capacidad de carga característica para el plano de corte para la fijación del elemento secundario | I164: Capacidade de carga caraterística por plano de corte para fixação elemento secundário | S164: 1111
A165: 165 | B165: Resistência característica elemento secundário | D165: Resistenza caratteristica elemento secondario | E165: Characteristic strength secondary element | F165: Charakteristischer Festigkeit des Nebenelements | G165: Résistance caractéristique de l'élément secondaire | H165: Resistencia característica elemento secundario | I165: Resistência característica elemento secundário | S165: 1111
A166: 166 | B166: Resistência característica | D166: Resistenza caratteristica | E166: Characteristic strenght | F166: Charakteristische Tragfähigkeit | G166: Résistance caractéristique | H166: Resistencia característica | I166: Resistência característica | S166: 1111
A167: 167 | B167: Resistência do design | D167: Resistenza di design | E167: Design strength | F167: Design-Festigkeit | G167: Résistance du design | H167: Resistencia de diseño | I167: Resistência do design | S167: 1111
A168: 168 | B168: Verificação da conexão | D168: Verifica della connessione | E168: Verification of connection | F168: Prüfung der Verbindung | G168: Vérification de la connexion | H168: Comprobación de la conexión | I168: Verificação da conexão | S168: 1111
A169: 169 | B169: 6.3 axial (Fax) | D169: 6.3 Assiale (Fax) | E169: 6.3 Axial (Fax) | F169: 6.3 Axial (Fax) | G169: 6.3 Axiale (Fax) | H169: 6.3 Axial (Fax) | I169: 6.3 axial (Fax) | S169: 1111
A170: 170 | B170: Resistência característica elemento principal | D170: Resistenza caratteristica elemento principale | E170: Characteristic strength main element | F170: Charakteristische Festigkeit des Hauptelements | G170: Résistance caractéristique de l'élément principal | H170: Resistencia característica elemento principal | I170: Resistência característica elemento principal | S170: 1111
A171: 171 | B171: Resistência característica alumínio | D171: Resistenza caratteristica alluminio | E171: Characteristic strength aluminium | F171: Charakteristische Festigkeit Aluminium | G171: Résistance caractéristique aluminium | H171: Resistencia característica aluminio | I171: Resistência característica alumínio | S171: 1111
A172: 172 | B172: Resistência característica elemento secundário | D172: Resistenza caratteristica elemento secondario | E172: Characteristic strength secondary element | F172: Charakteristische Festigkeit des Nebenelements | G172: Résistance caractéristique de l'élément secondaire | H172: Resistencia característica elemento secundario | I172: Resistência característica elemento secundário | S172: 1111
A173: 173 | B173: Resistência característica | D173: Resistenza caratteristica | E173: Characteristic strenght | F173: Charakteristische Tragfähigkeit | G173: Résistance caractéristique | H173: Resistencia característica | I173: Resistência característica | S173: 1111
A174: 174 | B174: Resistência do design | D174: Resistenza di design | E174: Design strength | F174: Design-Festigkeit | G174: Résistance du design | H174: Resistencia de diseño | I174: Resistência do design | S174: 1111
A175: 175 | B175: Verificação da conexão | D175: Verifica della connessione | E175: Verification of connection | F175: Prüfung der Verbindung | G175: Vérification de la connexion | H175: Comprobación de la conexión | I175: Verificação da conexão | S175: 1111
A176: 176 | B176: 6.4 Corte lateral (Flat) | D176: 6.4 Taglio laterale (Flat) | E176: 6.4 lateral shear load (Flat) | F176: 6.4 Seitliche Scherkraft (Flat) | G176: 6.4 Cisaillement latéral (Flat) | H176: 6.4 Corte lateral (Flat) | I176: 6.4 Corte lateral (Flat) | S176: 1111
A177: 177 | B177: Número efetivo de parafusos por elemento principal ou secundário | D177: Numero effettivo di viti per elemento secondario o primario | E177: Effective number of screws for secondary or main element | F177: Effektive Anzahl von Schrauben pro Neben- oder Hauptelement | G177: Nombre effective de vis par élément secondaire ou primaire | H177: Número efectivo de tornillos para elemento secundario o principal | I177: Número efetivo de parafusos por elemento principal ou secundário | S177: 1111
A178: 178 | B178: Fator de forma | D178: Fattore di forma | E178: Form factor | F178: Formfaktor | G178: Facteur de forme | H178: Factor de forma | I178: Fator de forma | S178: 1111
A179: 179 | B179: Coeficiente de acordo com EN 1995-1-1, 6.1.5 | D179: Coefficiente in accordo con EN 1995-1-1, 6.1.5 | E179: Coefficient in accordance with EN 1995-1-1, 6.1.5 | F179: Koeffizient gemäß EN 1995-1-1, 6.1.5 | G179: Coefficient selon EN 1995-1-1, 6.1.5 | H179: Coeficiente de acuerdo con EN 1995-1-1, 6.1.5 | I179: Coeficiente de acordo com EN 1995-1-1, 6.1.5 | S179: 1111
A180: 180 | B180: Coeficiente de acordo com EN 1995-1-1, eq. 6.62 | D180: Coefficiente in accordo con EN 1995-1-1, eq. 6.62 | E180: Coefficient in accordance with EN 1995-1-1, eq. 6.62 | F180: Koeffizient gemäß EN 1995-1-1, eq. 6.62 | G180: Coefficient selon EN 1995-1-1, eq. 6,62 | H180: Coeficiente de acuerdo con EN 1995-1-1, eq. 6.62 | I180: Coeficiente de acordo com EN 1995-1-1, eq. 6.62 | S180: 1111
A181: 181 | B181: Resistência característica | D181: Resistenza caratteristica | E181: Characteristic strenght | F181: Charakteristische Tragfähigkeit | G181: Résistance caractéristique | H181: Resistencia característica | I181: Resistência característica | S181: 1111
A182: 182 | B182: Resistência do design | D182: Resistenza di design | E182: Design strength | F182: Design-Festigkeit | G182: Résistance du design | H182: Resistencia de diseño | I182: Resistência do design | S182: 1111
A183: 183 | B183: Verificação da conexão | D183: Verifica della connessione | E183: Verification of connection | F183: Prüfung der Verbindung | G183: Vérification de la connexion | H183: Comprobación de la conexión | I183: Verificação da conexão | S183: 1111
A184: 184 | B184: 7. Verificações de projeto em caso de estresse combinado | D184: 7. Verifiche di progetto nel caso di sollecitazione combinata | E184: 7. Design checks in the case of combined loading | F184: 7. Konstruktionsprüfungen bei kombinierter Spannung | G184: 7. Vérifications de conception en cas de sollicitations combinées | H184: 7. Comprobaciones de diseño en caso de cargas combinadas | I184: 7. Verificações de projeto em caso de estresse combinado | S184: 1111
A185: 185 | B185: Verificação combinada de esforço necessária? | D185: Richiesta verifica sollecitazione combinata? | E185: Combined loading check required? | F185: Kombinierte Belastungsprüfung erforderlich? | G185: Contrôle de contrainte de sollicitations combinées ? | H185: ¿Es necesaria la comprobación de cargas combinadas? | I185: Verificação combinada de esforço necessária? | S185: 1111
A186: 186 | B186: Corte vertical | D186: Taglio verticale | E186: Vertical shear | F186: vertikale Querkraft | G186: Cisaillement vertical | H186: Corte vertical | I186: Corte vertical | S186: 1111
A187: 187 | B187: Corte vertical de elevação | D187: Taglio verticale di sollevamento | E187: vertical Lifting shear | F187: Abhebende Kräfte | G187: Cisaillement vertical du soulèvement | H187: Corte vertical de elevación | I187: Corte vertical de elevação | S187: 1111
A188: 188 | B188: Ação axial | D188: Azione assiale | E188: Axial action | F188: Axiale Wirkung | G188: Action axiale | H188: Acción axial | I188: Ação axial | S188: 1111
A189: 189 | B189: Corte lateral | D189: Taglio laterale | E189: Lateral shear | F189: Seitliche Scherkraft | G189: Cisaillement latéral | H189: Corte lateral | I189: Corte lateral | S189: 1111
A190: 190 | B190: Fv,d e Fup,d são forças que atuam em direções opostas. Portanto, apenas uma das forças Fv,d e Fup,d pode atuar em combinação com as forças Fax,d ou Flat,d. | D190: Fv,d e Fup,d sono forze agenti in direzioni opposte. Pertanto solo una delle forze Fv,d e Fup,d può agire in combinazione con le forze Fax,d o Flat,d. | E190: Fv,d and Fup,d are forces acting in opposite directions. Therefore only one of the forces Fv,d and Fup,d can act in combination with the forces Fax,d or Flat,d. | F190: Fv,d und Fup,d sind in entgegengesetzter Richtung wirkende Kräfte. Daher kann nur eine der Kräfte Fv,d und Fup,d in Kombination mit den Kräften Fax,d oder Flat,d wirken. | G190: Fv,d et Fup,d sont des forces qui agissent dans des directions opposées. C’est pourquoi seulement une des forces Fv,d et Fup,d peut agir en combinaison avec les forces Fax,d ou Flat,d. | H190: Fv,d y Fup,d son fuerzas que actúan en direcciones opuestas. Por lo tanto, solo una de las fuerzas Fv,d y Fup,d puede actuar en combinación con las fuerzas Fax,d o Flat,d. | I190: Fv,d e Fup,d são forças que atuam em direções opostas. Portanto, apenas uma das forças Fv,d e Fup,d pode atuar em combinação com as forças Fax,d ou Flat,d. | S190: 1111
A191: 191 | B191: Selecione as tensões a considerar no veículo combinado. | D191: Selezionare le sollecitazioni da inserire considerare nella verifica combinata. | E191: Select the stresses to be considered in the combined check. | F191: Wählen Sie die Spannungen aus, die im kombinierten Nachweis berücksichtigt werden sollen. | G191: Sélectionnez les contraintes à prendre en compte dans le véhicule combiné. | H191: Seleccione las tensiones que se deben tener en cuenta en la comprobación combinada. | I191: Selecione as tensões a considerar no veículo combinado. | S191: 1111
A192: 192 | B192: 8. Resumo quantidade y códigos produto | D192: 8. Riassunto quantità e codici prodotto | E192: 8. Quantity and product codes summary | F192: 8. Übersicht Menge und Produktcodes | G192: 8. Sommaire de quantité et de codes du produit | H192: 8. Resumen de cantidad y códigos de producto | I192: 8. Resumo quantidade y códigos produto | S192: 1111
A193: 193 | B193: Número de conexões | D193: Numero di connessioni | E193: Number of connections | F193: Anzahl der Verbindungen | G193: Nombre de connexions | H193: Número de conexiones | I193: Número de conexões | S193: 1111
A194: 194 | B194: Código | D194: Codice | E194: Code | F194: Art.-Nr. | G194: Code | H194: Código | I194: Código | S194: 1111
A195: 195 | B195: =HLOOKUP($B$1,$D$1:$I$206,A195,FALSE) -> Quantidade necessária | D195: Quantità necessaria | E195: Quantity required | F195: Erforderliche Menge | G195: Quantité nécessaire | H195: Cantidad necesaria | I195: Quantidade necessária | S195: =IF(R195=G195,0,1111) -> 1111
A196: 196 | B196: pçs | D196: pz. | E196: pcs | F196: Stk. | G196: pcs. | H196: unid. | I196: pçs | S196: 1111
A197: 197 | B197: Ligador não aparente de engate | D197: Connettore a scomparsa ad aggancio | E197: Coupling hidden fastener | F197: Verdeckter Verbinder | G197: Connecteur à accroche invisible | H197: Conector oculto | I197: Ligador não aparente de engate | S197: 1111
A198: 198 | B198: Segundo ligador oculto, si ligadores acoplados | D198: Secondo connettore a scomparsa, se connettori accoppiati | E198: Second concealed connector, if coupling connectors | F198: Zweiter Verdeckter Verbinder, wenn gekoppelte Verbinder | G198: Deuxième connecteur caché, si les connecteurs sont accouplés | H198: Segundo conector oculto, si conectores en pares | I198: Segundo ligador oculto, si ligadores acoplados | S198: 1111
A199: 199 | B199: Parafusos de fixação elemento principal | D199: Viti fissaggio elemento primario | E199: Fastening screws main element | F199: Befestigungsschrauben des Hauptelements | G199: Vis de fixation élément principal | H199: Tornillos fijación elemento principal | I199: Parafusos de fixação elemento principal | S199: 1111
A200: 200 | B200: Parafusos fixações viga secundária | D200: Viti fissaggio trave secondaria | E200: Fastening screws secondary beam | F200: Befestigungsschrauben des Nebenträgers | G200: Vis fixations poutre secondaire | H200: Tornillos fijación viga secundaria | I200: Parafusos fixações viga secundária | S200: 1111
... 10 more rows

Sheet secondo_V_downward (hidden)
B2: LOCK-T CALCOLO RESISTENZA CARATTERISTICA
B4: GEOMETRIA LOCK | H4: RESISTENZA TRAVE SECONDARIA | AD4: RESISTENZA TRAVE PRIMARIA | BB4: RESISTENZA ALLUMINIO | BC4: RESISTENZA FINALE
B5: Modello Lock | C5: Altezza (mm) | D5: Modulo | E5: Numero di moduli | F5: Larghezza Lock | G5: Spessore Lock (mm) | H5: Tipo di legno | I5: Tipo di connettore | J5: Numero connettori | K5: d (mm) | L5: l (mm) | M5: Filetto b (mm) | N5: My,Rk (Nmm) | O5: ftens,k (N) | P5: ρk (kg/m3) | Q5: α | R5: fh,k (N/mm2) | S5: a | T5: b | U5: kax | V5: β | W5: kβ | X5: fax,k | Y5: Fax,Rk (N) | Z5: Fv,Rk (a) (N) | AA5: Fv,Rk (b) (N) | AB5: Fv,J,Rk (N) | AC5: F2,J,Rk (N) | AD5: Tipo di legno | AE5: Tipo di connettore | AF5: Numero connettori | AG5: β | AH5: d (mm) | AI5: l (mm) | AJ5: Filetto b (mm) | AK5: My,Rk (Nmm) | AL5: ftens,k (N) | AM5: ρk (kg/m3) | AN5: α | AO5: fh,k (N/mm2) | AP5: a | AQ5: b | AR5: kax | AS5: kβ | AT5: fax,k | AU5: Fax,H,Rk (N) | AV5: Fv,Rk (a) (N) | AW5: Fv,Rk (b) (N) | AX5: Fv,H,Rk (N) | AY5: F2,H,Rk (N) | AZ5: kH,2 | BA5: F2,H,Rk (N) | BB5: F2,alu,Rk (N) | BC5: F2,Rk (KN)
B6: ='LOCK-T'!I97 -> LOCK-T 50 135 | C6: =VLOOKUP(VLOOKUP(B6,Data!$AA$4:$AD$24,4,FALSE),Data!$I$4:$S$15,2,FALSE) -> 135 | D6: =IF(OR(B6="Lock-T 80",B6="Lock-T 100",B6="Lock-T 120"),17.5,25) -> 25 | E6: =VLOOKUP(B6,Data!$AA$4:$AF$24,6,FALSE) -> 2 | F6: =D6*E6 -> 50 | G6: =VLOOKUP(B6,Data!$AA$4:$AH$24,8,FALSE) -> 7.0 | H6: ='LOCK-T'!H85 -> GL22h | I6: ='LOCK-T'!I124 -> LBS Ø 7 x 80 | J6: =VLOOKUP(VLOOKUP(B6,Data!$AA$4:$AD$24,4,FALSE),Data!$I$4:$S$15,5,FALSE)*E6 -> 6 | K6: =VLOOKUP(I6,Screws!$C$6:$J$34,3,FALSE) -> 7 | L6: =VLOOKUP(I6,Screws!$C$6:$J$34,5,FALSE) -> 80 | M6: =VLOOKUP(I6,Screws!$C$6:$J$34,6,FALSE) -> 75 | N6: =VLOOKUP(I6,Screws!$C$6:$J$34,7,FALSE) -> 14174 | O6: =VLOOKUP(I6,Screws!$C$6:$J$34,8,FALSE) -> 19200 | P6: =VLOOKUP(H6,Data!$B$4:$C$36,2,FALSE) -> 370 | Q6: =IF(L11<>0,L11,90) -> 90 | R6: =IF(H6="LVL",J13,IF(H6="CLT",I15,IF(P6>420,J11,I11))) -> 6.77 | S6: =IF(H6="LVL",0.5,0.3) -> 0.30 | T6: =IF(H6="LVL",0.5,0.7) -> 0.70 | U6: =IF(Q6<45,S6+T6*Q6/45,1) -> 1.0 | V6: 0 | W6: =IF(H6="LVL",1.5*COS(RADIANS(V6))^2+SIN(RADIANS(V6))^2,1) -> 1 | X6: =IF(H6="LVL",15,11.7) -> 11.7 | Y6: =IF(H6="CLT",20*K6^(0.8)*MIN(M6,L6-G6)^(0.9),U6*X6*K6*MIN(M6,(L6-G6))*(P6/(IF(H6="LVL",500,350)))^(0.8)/W6) -> 6250 | Z6: =0.4*R6*(L6-G6)*K6+MIN(0.4*R6*(L6-G6)*K6,IF(H6="CLT",1,IF(Q6<>90,1,5/6))*MIN(O6,Y6)/4) -> 2686 | AA6: =1.15*SQRT(2*N6*R6*K6)+MIN(1.15*SQRT(2*N6*R6*K6),IF(H6="CLT",1,IF(Q6<>90,1,5/6))*MIN(O6,Y6)/4) -> 2635 | AB6: =MIN(Z6,AA6) -> 2635 | AC6: =J6*AB6 -> 15810 | AD6: ='LOCK-T'!H71 -> GL24h | AE6: ='LOCK-T'!I111 -> LBS Ø 7 x 80 | AF6: =VLOOKUP(VLOOKUP(B6,Data!$AA$4:$AD$24,4,FALSE),Data!$I$4:$S$15,5,FALSE)*E6 -> 6 | AG6: 0 | AH6: =VLOOKUP(AE6,Screws!$C$6:$J$34,3,FALSE) -> 7 | AI6: =VLOOKUP(AE6,Screws!$C$6:$J$34,5,FALSE) -> 80 | AJ6: =VLOOKUP(AE6,Screws!$C$6:$J$34,6,FALSE) -> 75 | AK6: =VLOOKUP(AE6,Screws!$C$6:$J$34,7,FALSE) -> 14174 | AL6: =VLOOKUP(AE6,Screws!$C$6:$J$34,8,FALSE) -> 19200 | AM6: =VLOOKUP(AD6,Data!$B$4:$C$36,2,FALSE) -> 385 | AN6: 90 | AO6: =IF('LOCK-T'!H72='LOCK-T'!AA54,IF(AD6="LVL",AF13,IF(AM6>420,AF11,AF11)),IF(AD6="LVL",AF13,IF(AD6="CLT",AE15,IF(AM6>420,AF11,AE11)))) -> 17.61 | AP6: =IF(AD6="LVL",0.5,0.3) -> 0.30 | AQ6: =IF(AD6="LVL",0.5,0.7) -> 0.70 | AR6: =IF(AN6<45,AP6+AQ6*AN6/45,1) -> 1.0 | AS6: =IF(AD6="LVL",1.5*COS(RADIANS(AG6))^2+SIN(RADIANS(AG6))^2,1) -> 1 | AT6: =IF(AD6="LVL",15,11.7) -> 11.7 | AU6: =AR6*AT6*AH6*MIN(AJ6,AI6-G6)*(AM6/(IF(AD6="LVL",500,350)))^0.8/AS6 -> 6452 | AV6: =0.4*AO6*(AI6-G6)*AH6+MIN(AU6,AL6)/4 -> 5212 | AW6: =1.15*SQRT(2*AK6*AO6*AH6)+MIN(1.15*SQRT(2*AK6*AO6*AH6),MIN(AL6,AU6)/4) -> 3763 | AX6: =MIN(AV6,AW6) -> 3763 | AY6: =AF6*AX6 -> 22577 | AZ6: =VLOOKUP(VLOOKUP(B6,Data!$AA$4:$AD$24,4,FALSE),Data!$I$4:$S$15,8,FALSE)*E6 -> 10.60 | BA6: =1/SQRT((1/AY6)^2+(1/(AZ6*AU6))^2) -> 21439 | BB6: =VLOOKUP(VLOOKUP(B6,Data!$AA$4:$AD$24,4,FALSE),Data!$I$4:$S$15,9,FALSE)*1000*E6 -> 30000 | BC6: =MIN(AC6,BA6,BB6)/1000 -> 15.81
H9: embedding strength ETA | AD9: embedding strength ETA
I10: non pre-drilled | J10: pre-drilled | L10: α | AE10: non pre-drilled | AF10: pre-drilled | AH10: α
H11: SW & HW | I11: =0.082*$P$6*$K$6^(-0.3)/((2.5*COS(RADIANS($L$11))^2+SIN(RADIANS($L$11))^2)) -> 6.76933732 | J11: =0.082*$P$6*(1-0.01*$K$6)/((2.5*COS(RADIANS($L$11))^2+SIN(RADIANS($L$11))^2)) -> 11.28648 | L11: =ABS('LOCK-T'!H86) -> 0 | AD11: SW & HW | AE11: =0.082*AM6*AH6^(-0.3)/((2.5*COS(RADIANS(AH11))^2+SIN(RADIANS(AH11))^2)) -> 17.60942478 | AF11: =0.082*AM6*(1-0.01*AH6)/((2.5*COS(RADIANS(AH11))^2+SIN(RADIANS(AH11))^2)) -> 29.3601 | AH11: 90
H13: LVL | I13: =0.082*$P$6*$K$6^(-0.3)/((2.5*COS(RADIANS($L$11))^2+SIN(RADIANS($L$11))^2)*(1.5*COS(RADIANS($V$6))^2+SIN(RADIANS($V$6))^2)) -> 4.512891547 | J13: =0.082*$P$6*(1-0.01*$K$6)/((2.5*COS(RADIANS($L$11))^2+SIN(RADIANS($L$11))^2)*(1.5*COS(RADIANS($V$6))^2+SIN(RADIANS($V$6))^2)) -> 7.52432 | AD13: LVL | AE13: =0.082*AM6*AH6^(-0.3)/((2.5*COS(RADIANS(AH11))^2+SIN(RADIANS(AH11))^2)*(1.5*COS(RADIANS(AG6))^2+SIN(RADIANS(AG6))^2)) -> 11.73961652 | AF13: =0.082*AM6*(1-0.01*AH6)/((2.5*COS(RADIANS(AH11))^2+SIN(RADIANS(AH11))^2)*(1.5*COS(RADIANS(AG6))^2+SIN(RADIANS(AG6))^2)) -> 19.5734
H15: CLT | I15: =IF(L11=0,20*K6^(-0.5),0.082*$P$6*$K$6^(-0.3)/((2.5*COS(RADIANS($L$11))^2+SIN(RADIANS($L$11))^2))) -> 7.55928946 | AD15: CLT | AE15: =IF(AH11=0,20*AH6^(-0.5),0.082*AM6*AH6^(-0.3)/((2.5*COS(RADIANS(AH11))^2+SIN(RADIANS(AH11))^2))) -> 17.60942478
AE16: per clt come parete ho considerato come fosse SW

Sheet V_downward (hidden)
B2: LOCK-T CALCOLO RESISTENZA CARATTERISTICA
B4: GEOMETRIA LOCK | H4: RESISTENZA TRAVE SECONDARIA | AD4: RESISTENZA TRAVE PRIMARIA | BB4: RESISTENZA ALLUMINIO | BC4: RESISTENZA FINALE
B5: Modello Lock | C5: Altezza (mm) | D5: Modulo | E5: Numero di moduli | F5: Larghezza Lock | G5: Spessore Lock (mm) | H5: Tipo di legno | I5: Tipo di connettore | J5: Numero connettori | K5: d (mm) | L5: l (mm) | M5: Filetto b (mm) | N5: My,Rk (Nmm) | O5: ftens,k (N) | P5: ρk (kg/m3) | Q5: α | R5: fh,k (N/mm2) | S5: a | T5: b | U5: kax | V5: β | W5: kβ | X5: fax,k | Y5: Fax,Rk (N) | Z5: Fv,Rk (a) (N) | AA5: Fv,Rk (b) (N) | AB5: Fv,J,Rk (N) | AC5: F2,J,Rk (N) | AD5: Tipo di legno | AE5: Tipo di connettore | AF5: Numero connettori | AG5: β | AH5: d (mm) | AI5: l (mm) | AJ5: Filetto b (mm) | AK5: My,Rk (Nmm) | AL5: ftens,k (N) | AM5: ρk (kg/m3) | AN5: α | AO5: fh,k (N/mm2) | AP5: a | AQ5: b | AR5: kax | AS5: kβ | AT5: fax,k | AU5: Fax,H,Rk (N) | AV5: Fv,Rk (a) (N) | AW5: Fv,Rk (b) (N) | AX5: Fv,H,Rk (N) | AY5: F2,H,Rk (N) | AZ5: kH,2 | BA5: F2,H,Rk (N) | BB5: F2,alu,Rk (N) | BC5: F2,Rk (KN)
B6: ='LOCK-T'!H97 -> LOCK-T 100 290 | C6: =VLOOKUP(VLOOKUP(B6,Data!$AA$4:$AD$24,4,FALSE),Data!$I$4:$S$15,2,FALSE) -> 290 | D6: =IF(OR(B6="Lock-T 80",B6="Lock-T 100",B6="Lock-T 120"),17.5,25) -> 25 | E6: =VLOOKUP(B6,Data!$AA$4:$AF$24,6,FALSE) -> 4 | F6: =D6*E6 -> 100 | G6: =VLOOKUP(B6,Data!$AA$4:$AH$24,8,FALSE) -> 8.0 | H6: ='LOCK-T'!H85 -> GL22h | I6: ='LOCK-T'!H124 -> LBS Ø 7 x 80 | J6: =VLOOKUP(VLOOKUP(B6,Data!$AA$4:$AD$24,4,FALSE),Data!$I$4:$S$15,5,FALSE)*E6 -> 36 | K6: =VLOOKUP(I6,Screws!$C$6:$J$34,3,FALSE) -> 7 | L6: =VLOOKUP(I6,Screws!$C$6:$J$34,5,FALSE) -> 80 | M6: =VLOOKUP(I6,Screws!$C$6:$J$34,6,FALSE) -> 75 | N6: =VLOOKUP(I6,Screws!$C$6:$J$34,7,FALSE) -> 14174 | O6: =VLOOKUP(I6,Screws!$C$6:$J$34,8,FALSE) -> 19200 | P6: =VLOOKUP(H6,Data!$B$4:$C$36,2,FALSE) -> 370 | Q6: =IF(L11<>0,L11,90) -> 90 | R6: =IF(H6="LVL",J13,IF(H6="CLT",I15,IF(P6>420,J11,I11))) -> 6.77 | S6: =IF(H6="LVL",0.5,0.3) -> 0.30 | T6: =IF(H6="LVL",0.5,0.7) -> 0.70 | U6: =IF(Q6<45,S6+T6*Q6/45,1) -> 1.0 | V6: 0 | W6: =IF(H6="LVL",1.5*COS(RADIANS(V6))^2+SIN(RADIANS(V6))^2,1) -> 1 | X6: =IF(H6="LVL",15,11.7) -> 11.7 | Y6: =IF(H6="CLT",20*K6^(0.8)*MIN(M6,L6-G6)^(0.9),U6*X6*K6*MIN(M6,(L6-G6))*(P6/(IF(H6="LVL",500,350)))^(0.8)/W6) -> 6165 | Z6: =0.4*R6*(L6-G6)*K6+MIN(0.4*R6*(L6-G6)*K6,IF(H6="CLT",1,IF(Q6<>90,1,5/6))*MIN(O6,Y6)/4) -> 2649 | AA6: =1.15*SQRT(2*N6*R6*K6)+MIN(1.15*SQRT(2*N6*R6*K6),IF(H6="CLT",1,IF(Q6<>90,1,5/6))*MIN(O6,Y6)/4) -> 2617 | AB6: =MIN(Z6,AA6) -> 2617 | AC6: =J6*AB6 -> 94219 | AD6: ='LOCK-T'!H71 -> GL24h | AE6: ='LOCK-T'!H111 -> LBS Ø 7 x 80 | AF6: =VLOOKUP(VLOOKUP(B6,Data!$AA$4:$AD$24,4,FALSE),Data!$I$4:$S$15,5,FALSE)*E6 -> 36 | AG6: 0 | AH6: =VLOOKUP(AE6,Screws!$C$6:$J$34,3,FALSE) -> 7 | AI6: =VLOOKUP(AE6,Screws!$C$6:$J$34,5,FALSE) -> 80 | AJ6: =VLOOKUP(AE6,Screws!$C$6:$J$34,6,FALSE) -> 75 | AK6: =VLOOKUP(AE6,Screws!$C$6:$J$34,7,FALSE) -> 14174 | AL6: =VLOOKUP(AE6,Screws!$C$6:$J$34,8,FALSE) -> 19200 | AM6: =VLOOKUP(AD6,Data!$B$4:$C$36,2,FALSE) -> 385 | AN6: 90 | AO6: =IF('LOCK-T'!H72='LOCK-T'!AA54,IF(AD6="LVL",AF13,IF(AM6>420,AF11,AF11)),IF(AD6="LVL",AF13,IF(AD6="CLT",AE15,IF(AM6>420,AF11,AE11)))) -> 17.61 | AP6: =IF(AD6="LVL",0.5,0.3) -> 0.30 | AQ6: =IF(AD6="LVL",0.5,0.7) -> 0.70 | AR6: =IF(AN6<45,AP6+AQ6*AN6/45,1) -> 1.0 | AS6: =IF(AD6="LVL",1.5*COS(RADIANS(AG6))^2+SIN(RADIANS(AG6))^2,1) -> 1 | AT6: =IF(AD6="LVL",15,11.7) -> 11.7 | AU6: =AR6*AT6*AH6*MIN(AJ6,AI6-G6)*(AM6/(IF(AD6="LVL",500,350)))^0.8/AS6 -> 6364 | AV6: =0.4*AO6*(AI6-G6)*AH6+MIN(AU6,AL6)/4 -> 5141 | AW6: =1.15*SQRT(2*AK6*AO6*AH6)+MIN(1.15*SQRT(2*AK6*AO6*AH6),MIN(AL6,AU6)/4) -> 3741 | AX6: =MIN(AV6,AW6) -> 3741 | AY6: =AF6*AX6 -> 134666 | AZ6: =VLOOKUP(VLOOKUP(B6,Data!$AA$4:$AD$24,4,FALSE),Data!$I$4:$S$15,8,FALSE)*E6 -> 144.00 | BA6: =1/SQRT((1/AY6)^2+(1/(AZ6*AU6))^2) -> 133235 | BB6: =VLOOKUP(VLOOKUP(B6,Data!$AA$4:$AD$24,4,FALSE),Data!$I$4:$S$15,9,FALSE)*1000*E6 -> 96000 | BC6: =MIN(AC6,BA6,BB6)/1000 -> 94.22
Y8: =kax*faxk*d*lef*(rok/(IF(H6="LVL",500,350)))^(0.8)/kb -> 
H9: embedding strength ETA | AD9: embedding strength ETA
I10: non pre-drilled | J10: pre-drilled | L10: α | AE10: non pre-drilled | AF10: pre-drilled | AH10: α
H11: SW & HW | I11: =0.082*$P$6*$K$6^(-0.3)/((2.5*COS(RADIANS($L$11))^2+SIN(RADIANS($L$11))^2)) -> 6.76933732 | J11: =0.082*$P$6*(1-0.01*$K$6)/((2.5*COS(RADIANS($L$11))^2+SIN(RADIANS($L$11))^2)) -> 11.28648 | L11: =ABS('LOCK-T'!H86) -> 0 | AD11: SW & HW | AE11: =0.082*AM6*AH6^(-0.3)/((2.5*COS(RADIANS(AH11))^2+SIN(RADIANS(AH11))^2)) -> 17.60942478 | AF11: =0.082*AM6*(1-0.01*AH6)/((2.5*COS(RADIANS(AH11))^2+SIN(RADIANS(AH11))^2)) -> 29.3601 | AH11: 90
H13: LVL | I13: =0.082*$P$6*$K$6^(-0.3)/((2.5*COS(RADIANS($L$11))^2+SIN(RADIANS($L$11))^2)*(1.5*COS(RADIANS($V$6))^2+SIN(RADIANS($V$6))^2)) -> 4.512891547 | J13: =0.082*$P$6*(1-0.01*$K$6)/((2.5*COS(RADIANS($L$11))^2+SIN(RADIANS($L$11))^2)*(1.5*COS(RADIANS($V$6))^2+SIN(RADIANS($V$6))^2)) -> 7.52432 | AD13: LVL | AE13: =0.082*AM6*AH6^(-0.3)/((2.5*COS(RADIANS(AH11))^2+SIN(RADIANS(AH11))^2)*(1.5*COS(RADIANS(AG6))^2+SIN(RADIANS(AG6))^2)) -> 11.73961652 | AF13: =0.082*AM6*(1-0.01*AH6)/((2.5*COS(RADIANS(AH11))^2+SIN(RADIANS(AH11))^2)*(1.5*COS(RADIANS(AG6))^2+SIN(RADIANS(AG6))^2)) -> 19.5734
H15: CLT | I15: =IF(L11=0,20*K6^(-0.5),0.082*$P$6*$K$6^(-0.3)/((2.5*COS(RADIANS($L$11))^2+SIN(RADIANS($L$11))^2))) -> 7.55928946 | AD15: CLT | AE15: =IF(AH11=0,20*AH6^(-0.5),0.082*AM6*AH6^(-0.3)/((2.5*COS(RADIANS(AH11))^2+SIN(RADIANS(AH11))^2))) -> 17.60942478
AE16: per clt come parete considerato come fosse SW

Sheet Lateral (hidden)
C2: LOCK-T CALCOLO RESISTENZA CARATTERISTICA
C4: GEOMETRIA LOCK | I4: RESISTENZA TRAVE SECONDARIA | AG4: RESISTENZA TRAVE PRIMARIA | AU4: RESISTENZA FINALE B.4 | AV4: RESISTENZA FINALE B.5
C5: Modello Lock | D5: Altezza (mm) | E5: Modulo | F5: Numero di moduli | G5: Larghezza Lock | H5: Spessore Lock (mm) | I5: Tipo di legno | J5: Tipo di connettore | K5: Numero connettori | L5: d (mm) | M5: l (mm) | N5: Filetto b (mm) | O5: My,Rk (Nmm) | P5: ftens,k (N) | Q5: ρk (kg/m3) | R5: α | S5: fh,k (N/mm2) | T5: a | U5: b | V5: kax | W5: β | X5: kβ | Y5: fax,k | Z5: Fax,Rk [90°] (N) | AA5: Fv,Rk (a) (N) | AB5: Fv,Rk (b) (N) | AC5: Fv,J,Rk (N) | AD5: nef | AE5: klat | AF5: F45,J,Rk (N) | AG5: Tipo di legno | AH5: Tipo di connettore | AI5: Numero connettori | AJ5: β | AK5: fc,0,k (N/mm2) | AL5: fc,90,k (N/mm2) | AM5: kc,90 | AN5: ALOCK (mm2) | AO5: B (mm) | AP5: bC (mm) | AQ5: fr,k (N/mm2) | AR5: F45,H,Rk (a) (N) | AS5: F45,H,Rk (b) (N) | AT5: F45,H,Rk (c) (N) | AU5: F45,Rk (kN) | AV5: F45,Rk (kN)
C6: ='LOCK-T'!H97 -> LOCK-T 100 290 | D6: =VLOOKUP(VLOOKUP(C6,Data!$AA$4:$AD$24,4,FALSE),Data!$I$4:$S$15,2,FALSE) -> 290 | E6: =IF(OR(C6="Lock-T 80",C6="Lock-T 100",C6="Lock-T 120"),17.5,25) -> 25 | F6: =VLOOKUP(C6,Data!$AA$4:$AF$24,6,FALSE) -> 4 | G6: =E6*F6 -> 100 | H6: =VLOOKUP(C6,Data!$AA$4:$AH$24,8,FALSE) -> 8 | I6: ='LOCK-T'!H85 -> GL22h | J6: ='LOCK-T'!H124 -> LBS Ø 7 x 80 | K6: =VLOOKUP(VLOOKUP(C6,Data!$AA$4:$AD$24,4,FALSE),Data!$I$4:$S$15,5,FALSE)*F6 -> 36 | L6: =VLOOKUP(J6,Screws!$C$6:$J$34,3,FALSE) -> 7 | M6: =VLOOKUP(J6,Screws!$C$6:$J$34,5,FALSE) -> 80 | N6: =VLOOKUP(J6,Screws!$C$6:$J$34,6,FALSE) -> 75 | O6: =VLOOKUP(J6,Screws!$C$6:$J$34,7,FALSE) -> 14174 | P6: =VLOOKUP(J6,Screws!$C$6:$J$34,8,FALSE) -> 19200 | Q6: =VLOOKUP(I6,Data!$B$4:$C$36,2,FALSE) -> 370 | R6: =IF(M13<>0,M13,90) -> 90 | S6: =IF(I6="LVL",K15,IF(I6="CLT",J17,IF(Q6>420,K13,J13))) -> 6.77 | T6: =IF(I6="LVL",0.5,0.3) -> 0.30 | U6: =IF(I6="LVL",0.5,0.7) -> 0.70 | V6: =IF(R6<45,T6+U6*R6/45,1) -> 1.000 | W6: 0 | X6: =IF(I6="LVL",1.5*COS(RADIANS(W6))^2+SIN(RADIANS(W6))^2,1) -> 1 | Y6: =IF(I6="LVL",15,11.7) -> 11.7 | Z6: =IF(I6="CLT",20*L6^(0.8)*MIN(N6,M6-H6)^(0.9),V6*Y6*L6*MIN(N6,(M6-H6))*(Q6/(IF(I6="LVL",500,350)))^(0.8)/X6) -> 6165 | AA6: =0.4*S6*(M6-H6)*L6+MIN(0.4*S6*(M6-H6)*L6,IF(I6="CLT",1,IF(M13=0,5/6,1))*MIN(P6,Z6)/4) -> 2649 | AB6: =1.15*SQRT(2*O6*S6*L6)+MIN(1.15*SQRT(2*O6*S6*L6),IF(I6="CLT",1,IF(M13=0,5/6,1))*MIN(P6,Z6)/4) -> 2617 | AC6: =MIN(AA6,AB6) -> 2617 | AD6: =INDEX(Data!$I$35:$O$46,MATCH(VLOOKUP(C6,Data!$AA$4:$AD$24,4,FALSE),Data!$I$35:$I$46,0),MATCH(F6,Data!$I$35:$O$35,0)) -> 20.9 | AE6: =INDEX(Data!$I$49:$O$60,MATCH(VLOOKUP(C6,Data!$AA$4:$AD$24,4,FALSE),Data!$I$49:$I$60,0),MATCH(F6,Data!$I$49:$O$49,0)) -> 227.0 | AF6: =(nef*AC6)/SQRT(1+(((nef*AC6)/(klat*Z6))^2)) -> 54658 | AG6: ='LOCK-T'!H71 -> GL24h | AH6: ='LOCK-T'!H111 -> LBS Ø 7 x 80 | AI6: =VLOOKUP(VLOOKUP(C6,Data!$AA$4:$AD$24,4,FALSE),Data!$I$4:$S$15,5,FALSE)*F6 -> 36 | AJ6: 0 | AK6: =VLOOKUP(AG6,Data!$B$2:$F$36,3,FALSE) -> 24.0 | AL6: =VLOOKUP(AG6,Data!$B$2:$F$36,4,FALSE) -> 2.5 | AM6: 1.0 | AN6: =VLOOKUP(VLOOKUP(C6,Data!$AA$4:$AD$24,4,FALSE),Data!$I$4:$L$15,4,FALSE) -> 1945 | AO6: =G6 -> 100.0 | AP6: ='LOCK-T'!H70 -> 400.0 | AQ6: =VLOOKUP(AG6,Data!$B$2:$F$36,5,FALSE) -> 1.2 | AR6: =AK6*AN6 -> 46680 | AS6: =AM6*AL6*AN6 -> 4863 | AT6: =((AP6-AO6)*D6*AQ6)/2 -> 52200 | AU6: =MIN(AF8,AR6)/1000 -> 46.68 | AV6: =MIN(AF8,AS6,AT6)/1000 -> 4.86 | BG6: F45,Rk (kN) | BH6: F45,Rd (kN) | BO6: nef | BP6: klat
Z7: Fax,Rk [0°] (N) | AF7: F45,J,Rk (N) | AI7: d (mm) | AJ7: ρk (kg/m3) | BD7: =Translation!B7 -> Entalhe viga principal | BE7: Notch in header beam | BF7: B.4 | BG7: =AU6 -> 46.68 | BH7: =(BG7*'LOCK-T'!$H$47)/'LOCK-T'!$H$50 -> 28.73 | BM7: =Translation!B7 -> Entalhe viga principal | BN7: Notch in header beam | BO7: =IF('LOCK-T'!H99=1,nef,secondo_Lateral!AD12) -> 20.9 | BP7: =IF('LOCK-T'!H99=1,klat,secondo_Lateral!AE12) -> 227.0
H8: =H6 -> 8 | I8: =I6 -> GL22h | J8: LBS Ø 7 x 80 | K8: 36 | L8: 7 | M8: 80 | N8: 75 | O8: 14174.0 | P8: 19200 | Q8: 370 | R8: =M13 -> 0 | S8: 6.77 | T8: 0.30 | U8: 0.70 | V8: =IF(R8<45,T8+U8*R8/45,1) -> 0.3 | W8: 0 | X8: 1 | Y8: 11.7 | Z8: =IF(I8="CLT",20*L8^(0.8)*MIN(N8,M8-H8)^(0.9),V8*Y8*L8*MIN(N8,(M8-H8))*(Q8/(IF(I8="LVL",500,350)))^(0.8)/X8) -> 1849 | AF8: =(nef*AC6)/SQRT(1+(((nef*AC6)/(klat*Z8))^2)) -> 54241 | AI8: =VLOOKUP(AH6,Screws!$C$6:$J$34,3,FALSE) -> 7 | AJ8: =VLOOKUP(AG6,Data!$B$4:$C$36,2,FALSE) -> 385 | BD8: =Translation!B6 -> Entalhe coluna | BE8: Notch in column | BF8: B.5 | BG8: =AV6 -> 4.86 | BH8: =(BG8*'LOCK-T'!$H$47)/'LOCK-T'!$H$50 -> 2.99 | BM8: =Translation!B6 -> Entalhe coluna | BN8: Notch in column | BO8: =IF('LOCK-T'!H99=1,nef,secondo_Lateral!AD12) -> 20.9 | BP8: =IF('LOCK-T'!H99=1,klat,secondo_Lateral!AE12) -> 227.0
BD9: =Translation!B8 -> Entalhe viga secundária | BE9: Notch in joist | BF9: B.6 | BG9: =AZ32 -> 9.73 | BH9: =(BG9*'LOCK-T'!$H$47)/'LOCK-T'!$H$50 -> 5.98 | BM9: =Translation!B8 -> Entalhe viga secundária | BN9: Notch in joist | BO9: =IF('LOCK-T'!H99=1,AD32,secondo_Lateral!AD38) -> 20.9 | BP9: =IF('LOCK-T'!H99=1,AE32,secondo_Lateral!AE38) -> 227.0
BD10: =Translation!B9 -> Parafusos inclinados | BE10: Inclined screw | BF10: B.7 | BG10: =BF83 -> 4.86 | BH10: =(BG10*'LOCK-T'!$H$47)/'LOCK-T'!$H$50 -> 2.99 | BM10: =Translation!B9 -> Parafusos inclinados | BN10: Inclined screw | BO10: =IF('LOCK-T'!H99=1,AD83,secondo_Lateral!AD89) -> 8.8 | BP10: =IF('LOCK-T'!H99=1,AE83,secondo_Lateral!AE89) -> 53.0
I11: embedding strength ETA | AG11: embedding strength ETA | BD11: LOCK STOP | BE11: LOCK STOP | BF11: B.8 | BG11: =BG107 -> 1.55 | BH11: =BG11/'LOCK-T'!H51 -> 1.2432 | BM11: LOCK STOP | BN11: LOCK STOP | BO11: =IF('LOCK-T'!H99=1,AD107,secondo_Lateral!AD113) -> 12.6 | BP11: =IF('LOCK-T'!H99=1,AE107,secondo_Lateral!AE113) -> 61.0
J12: non pre-drilled | K12: pre-drilled | M12: α | AA12: =0.4*S6*(M6-H6)*L6 -> 1364.698404 | AB12: aggiornamento con angolo eliminare possibilità 5/6 | AH12: non pre-drilled | AI12: pre-drilled | AK12: α
I13: SW & HW | J13: =0.082*Q6*L6^(-0.3)/((2.5*COS(RADIANS(M13))^2+SIN(RADIANS(M13))^2)) -> 6.76933732 | K13: =0.082*Q6*(1-0.01*L6)/((2.5*COS(RADIANS(M13))^2+SIN(RADIANS(M13))^2)) -> 11.28648 | M13: =ABS('LOCK-T'!H86) -> 0 | AA13: =+MIN(0.4*S6*(M6-H6)*L6,MIN(P6,Z6)/4) -> 1364.698404 | AG13: SW & HW | AH13: =0.082*AJ8*AI8^(-0.3)/((2.5*COS(RADIANS(AK13))^2+SIN(RADIANS(AK13))^2)) -> 17.60942478 | AI13: =0.082*AJ8*(1-0.01*AI8)/((2.5*COS(RADIANS(AK13))^2+SIN(RADIANS(AK13))^2)) -> 29.3601 | AK13: 90
AA14: =AA12+AA13 -> 2729.396807
I15: LVL | J15: =0.082*Q6*L6^(-0.3)/((2.5*COS(RADIANS(M13))^2+SIN(RADIANS(M13))^2)*(1.5*COS(RADIANS(W6))^2+SIN(RADIANS(W6))^2)) -> 4.512891547 | K15: =0.082*Q6*(1-0.01*L6)/((2.5*COS(RADIANS(M13))^2+SIN(RADIANS(M13))^2)*(1.5*COS(RADIANS(W6))^2+SIN(RADIANS(W6))^2)) -> 7.52432 | AG15: LVL | AH15: =0.082*AJ8*AI8^(-0.3)/((2.5*COS(RADIANS(AK13))^2+SIN(RADIANS(AK13))^2)*(1.5*COS(RADIANS(AJ6))^2+SIN(RADIANS(AJ6))^2)) -> 11.73961652 | AI15: =0.082*AJ8*(1-0.01*AI8)/((2.5*COS(RADIANS(AK13))^2+SIN(RADIANS(AK13))^2)*(1.5*COS(RADIANS(AJ6))^2+SIN(RADIANS(AJ6))^2)) -> 19.5734
I17: CLT | J17: =IF(M13=0,20*L6^(-0.5),0.082*Q6*L6^(-0.3)/((2.5*COS(RADIANS(M13))^2+SIN(RADIANS(M13))^2))) -> 7.55928946 | AA17: =IF(I6="CLT",1,IF(M13=0,5/6,1)) -> 0.8333333333 | AG17: CLT | AH17: =IF(AK13=0,20*AI8^(-0.5),0.082*AJ8*AI8^(-0.3)/((2.5*COS(RADIANS(AK13))^2+SIN(RADIANS(AK13))^2))) -> 17.60942478
AH18: per clt come parete ho considerato come fosse SW
C30: GEOMETRIA LOCK | I30: RESISTENZA TRAVE PRIMARIA | AG30: RESISTENZA TRAVE SECONDARIA | AZ30: RESISTENZA FINALE B.6
C31: Modello Lock | D31: Altezza (mm) | E31: Modulo | F31: Numero di moduli | G31: Larghezza Lock | H31: Spessore Lock (mm) | I31: Tipo di legno | J31: Tipo di connettore | K31: Numero connettori | L31: d (mm) | M31: l (mm) | N31: Filetto b (mm) | O31: My,Rk (Nmm) | P31: ftens,k (N) | Q31: ρk (kg/m3) | R31: α | S31: fh,k (N/mm2) | T31: a | U31: b | V31: kax | W31: β | X31: kβ | Y31: fax,k | Z31: Fax,Rk (N) | AA31: Fv,Rk (a) (N) | AB31: Fv,Rk (b) (N) | AC31: Fv,H,Rk (N) | AD31: nef | AE31: klat | AF31: F45,H,Rk (N) | AG31: Tipo di legno | AH31: Tipo di connettore | AI31: Numero connettori | AJ31: β | AK31: fc,0,k (N/mm2) | AL31: fc,90,k (N/mm2) | AM31: kc,90 | AN31: ALOCK (mm2) | AO31: B (mm) | AP31: bJ (mm) | AQ31: fr,k (N/mm2) | AR31: F45,J,Rk (a) (N) | AS31: fv,k (N/mm2) | AT31: α | AU31: kn | AV31: x | AW31: i | AX31: kv | AY31: F45,J,Rk (b) (N) | AZ31: F45,Rk (kN)
C32: ='LOCK-T'!H97 -> LOCK-T 100 290 | D32: =VLOOKUP(VLOOKUP(C32,Data!$AA$4:$AD$24,4,FALSE),Data!$I$4:$S$15,2,FALSE) -> 290 | E32: =IF(OR(C32="Lock-T 80",C32="Lock-T 100",C32="Lock-T 120"),17.5,25) -> 25 | F32: =VLOOKUP(C32,Data!$AA$4:$AF$24,6,FALSE) -> 4 | G32: =E32*F32 -> 100 | H32: =VLOOKUP(C6,Data!$AA$4:$AH$24,8,FALSE) -> 8 | I32: ='LOCK-T'!H71 -> GL24h | J32: ='LOCK-T'!H111 -> LBS Ø 7 x 80 | K32: =VLOOKUP(VLOOKUP(C32,Data!$AA$4:$AD$24,4,FALSE),Data!$I$4:$S$15,5,FALSE)*F32 -> 36 | L32: =VLOOKUP(J32,Screws!$C$6:$J$34,3,FALSE) -> 7 | M32: =VLOOKUP(J32,Screws!$C$6:$J$34,5,FALSE) -> 80 | N32: =VLOOKUP(J32,Screws!$C$6:$J$34,6,FALSE) -> 75 | O32: =VLOOKUP(J32,Screws!$C$6:$J$34,7,FALSE) -> 14174 | P32: =VLOOKUP(J32,Screws!$C$6:$J$34,8,FALSE) -> 19200 | Q32: =VLOOKUP(I32,Data!$B$4:$C$36,2,FALSE) -> 385 | R32: 90 | S32: =IF('LOCK-T'!H72='LOCK-T'!AA54,IF(I32="LVL",K41,IF(Q32>420,K39,K39)),IF(I32="LVL",K41,IF(I32="CLT",J43,IF(Q32>420,K39,J39)))) -> 17.61 | T32: =IF(I32="LVL",0.5,0.3) -> 0.30 | U32: =IF(I32="LVL",0.5,0.7) -> 0.70 | V32: =IF(R32<45,T32+U32*R32/45,1) -> 1.0 | W32: 0 | X32: =IF(I32="LVL",1.5*COS(RADIANS(W32))^2+SIN(RADIANS(W32))^2,1) -> 1 | Y32: =IF(I32="LVL",15,11.7) -> 11.7 | Z32: =IF(I32="CLT",20*L32^(0.8)*MIN(N32,M32-H32)^(0.9),V32*Y32*L32*MIN(N32,(M32-H32))*(Q32/(IF(I32="LVL",500,350)))^(0.8)/X32) -> 6364 | AA32: =0.4*S32*(M32-H32)*L32+MIN(0.4*S32*(M32-H32)*L32,MIN(P32,Z32)/4) -> 5141 | AB32: =1.15*SQRT(2*O32*S32*L32)+MIN(1.15*SQRT(2*O32*S32*L32),MIN(P32,Z32)/4) -> 3741 | AC32: =MIN(AA32,AB32) -> 3741 | AD32: =INDEX(Data!$I$35:$O$46,MATCH(VLOOKUP(C32,Data!$AA$4:$AD$24,4,FALSE),Data!$I$35:$I$46,0),MATCH(F32,Data!$I$35:$O$35,0)) -> 20.9 | AE32: =INDEX(Data!$I$49:$O$60,MATCH(VLOOKUP(C32,Data!$AA$4:$AD$24,4,FALSE),Data!$I$49:$I$60,0),MATCH(F32,Data!$I$49:$O$49,0)) -> 227.0 | AF32: =(AD32*AC32)/SQRT(1+(((AD32*AC32)/(AE32*Z32))^2)) -> 78067 | AG32: ='LOCK-T'!H85 -> GL22h | AH32: ='LOCK-T'!H124 -> LBS Ø 7 x 80 | AI32: =VLOOKUP(VLOOKUP(C32,Data!$AA$4:$AD$24,4,FALSE),Data!$I$4:$S$15,5,FALSE)*F32 -> 36 | AJ32: 0 | AK32: =VLOOKUP(AG32,Data!$B$2:$F$36,3,FALSE) -> 22.0 | AL32: =VLOOKUP(AG32,Data!$B$2:$F$36,4,FALSE) -> 2.5 | AM32: 1.0 | AN32: =VLOOKUP(VLOOKUP(C32,Data!$AA$4:$AD$24,4,FALSE),Data!$I$4:$L$15,4,FALSE) -> 1945 | AO32: =G32 -> 100.0 | AP32: ='LOCK-T'!H83 -> 240.0 | AQ32: =VLOOKUP(AG32,Data!$B$2:$F$36,5,FALSE) -> 1.2 | AR32: =2*AM32*AL32*AN32 -> 9725 | AS32: =VLOOKUP(AG32,Data!$B$2:$G$36,6,FALSE) -> 3.5 | AT32: =(0.5*(AP32-AO32))/AP32 -> 0.292 | AU32: =VLOOKUP(AG32,$BD$34:$BE$72,2,FALSE) -> 6.5 | AV32: 20 | AW32: 0 | AX32: =MIN(AU32*(1+1.1*AW32^1.5/SQRT(AP32))/(SQRT(AP32)*(SQRT(AT32*(1-AT32))+0.8*(AV32/AP32)*SQRT(1/AT32-AT32^2))),1) -> 0.728 | AY32: =(AX32*AS32*D32*(AP32-AO32))/3 -> 34477 | AZ32: =MIN(AF32,AR32,AY32)/1000 -> 9.73
BD34: Legno | BE34: kn
BD36: GL20h | BE36: 6.5
I37: embedding strength ETA | BD37: GL22h | BE37: 6.5
J38: non pre-drilled | K38: pre-drilled | M38: α | BD38: GL24h | BE38: 6.5
I39: SW & HW | J39: =0.082*$Q$32*$L$32^(-0.3)/((2.5*COS(RADIANS($M$39))^2+SIN(RADIANS($M$39))^2)) -> 17.60942478 | K39: =0.082*$Q$32*(1-0.01*$L$32)/((2.5*COS(RADIANS($M$39))^2+SIN(RADIANS($M$39))^2)) -> 29.3601 | M39: 90 | BD39: GL26h | BE39: 6.5
BD40: GL28h | BE40: 6.5
I41: LVL | J41: =0.082*$Q$32*$L$32^(-0.3)/((2.5*COS(RADIANS($M$39))^2+SIN(RADIANS($M$39))^2)*(1.5*COS(RADIANS($W$32))^2+SIN(RADIANS($W$32))^2)) -> 11.73961652 | K41: =0.082*$Q$32*(1-0.01*$L$32)/((2.5*COS(RADIANS($M$39))^2+SIN(RADIANS($M$39))^2)*(1.5*COS(RADIANS($W$32))^2+SIN(RADIANS($W$32))^2)) -> 19.5734 | BD41: GL30h | BE41: 6.5
BD42: GL32h | BE42: 6.5
I43: CLT | J43: =IF(M39=0,20*L32^(-0.5),0.082*$Q$32*$L$32^(-0.3)/((2.5*COS(RADIANS($M$39))^2+SIN(RADIANS($M$39))^2))) -> 17.60942478
BD44: GL20c | BE44: 6.5
BD45: GL22c | BE45: 6.5
BD46: GL24c | BE46: 6.5
BD47: GL26c | BE47: 6.5
BD48: GL28c | BE48: 6.5
BD49: GL30c | BE49: 6.5
BD50: GL32c | BE50: 6.5
BD52: C14 | BE52: 5.0
BD53: C16 | BE53: 5.0
BD54: C18 | BE54: 5.0
BD55: C20 | BE55: 5.0
BD56: C22 | BE56: 5.0
BD57: C24 | BE57: 5.0
BD58: C27 | BE58: 5.0
BD59: C30 | BE59: 5.0
BD60: C35 | BE60: 5.0
BD61: C40 | BE61: 5.0
BD62: C45 | BE62: 5.0
BD63: C50 | BE63: 5.0
BD65: LVL | BE65: 4.5
BD66: CLT | BE66: 6.5
BD68: USER 1 | BE68: 5.0
BD69: USER 2 | BE69: 5.0
BD70: USER 3 | BE70: 5.0
BD71: USER 4 | BE71: 5.0
BD72: USER 5 | BE72: 5.0
C81: GEOMETRIA LOCK | I81: RESISTENZA TRAVE SECONDARIA | AG81: RESISTENZA TRAVE PRIMARIA | BF81: RESISTENZA FINALE
C82: Modello Lock | D82: Altezza (mm) | E82: Modulo | F82: Numero di moduli | G82: Larghezza Lock | H82: Spessore Lock (mm) | I82: Tipo di legno | J82: Tipo di connettore | K82: Numero connettori | L82: d (mm) | M82: l (mm) | N82: Filetto b (mm) | O82: My,Rk (Nmm) | P82: ftens,k (N) | Q82: ρk (kg/m3) | R82: α | S82: fh,k (N/mm2) | T82: a | U82: b | V82: kax | W82: β | X82: kβ | Y82: fax,k | Z82: Fax,Rk [90°] (N) | AA82: Fv,Rk (a) (N) | AB82: Fv,Rk (b) (N) | AC82: Fv,J,Rk (N) | AD82: nef | AE82: klat | AF82: F45,J,Rk (N) | AG82: Tipo di legno | AH82: Tipo di connettore | AI82: Numero connettori inclinati | AJ82: β | AK82: d (mm) | AL82: l (mm) | AM82: Filetto b (mm) | AN82: My,Rk (Nmm) | AO82: ftens,k (N) | AP82: ρk (kg/m3) | AQ82: α | AR82: fh,k (N/mm2) | AS82: a | AT82: b | AU82: kax | AV82: kβ | AW82: fax,k | AX82: Fax,H,Rk (N) | AY82: Fv,Rk (c) (N) | AZ82: Fv,Rk (d) (N) | BA82: Fv,Rk (e) (N) | BB82: Fv,H,Rk (N) | BC82: Fv,in,Rk (N) | BD82: spessore inclinato | BF82: F2,Rk (KN)
C83: ='LOCK-T'!H97 -> LOCK-T 100 290 | D83: =VLOOKUP(VLOOKUP(C83,Data!$AA$4:$AD$24,4,FALSE),Data!$I$4:$S$15,2,FALSE) -> 290 | E83: =IF(OR(C83="Lock-T 80",C83="Lock-T 100",C83="Lock-T 120"),17.5,25) -> 25 | F83: =VLOOKUP(C83,Data!$AA$4:$AF$24,6,FALSE) -> 4 | G83: =E83*F83 -> 100 | H83: =VLOOKUP(C6,Data!$AA$4:$AH$24,8,FALSE) -> 8 | I83: ='LOCK-T'!H85 -> GL22h | J83: ='LOCK-T'!H124 -> LBS Ø 7 x 80 | K83: =VLOOKUP(VLOOKUP(C83,Data!$AA$4:$AD$24,4,FALSE),Data!$I$4:$S$15,5,FALSE)*F83 -> 36 | L83: =VLOOKUP(J83,Screws!$C$6:$J$34,3,FALSE) -> 7 | M83: =VLOOKUP(J83,Screws!$C$6:$J$34,5,FALSE) -> 80 | N83: =VLOOKUP(J83,Screws!$C$6:$J$34,6,FALSE) -> 75 | O83: =VLOOKUP(J83,Screws!$C$6:$J$34,7,FALSE) -> 14174 | P83: =VLOOKUP(J83,Screws!$C$6:$J$34,8,FALSE) -> 19200 | Q83: =VLOOKUP(I83,Data!$B$4:$C$36,2,FALSE) -> 370 | R83: =IF(M90<>0,M90,90) -> 90 | S83: =IF(I83="LVL",K92,IF(I83="CLT",J94,IF(Q83>420,K90,J90))) -> 6.77 | T83: =IF(I83="LVL",0.5,0.3) -> 0.30 | U83: =IF(I83="LVL",0.5,0.7) -> 0.70 | V83: =IF(R83<45,T83+U83*R83/45,1) -> 1.0 | W83: 0 | X83: =IF(I83="LVL",1.5*COS(RADIANS(W83))^2+SIN(RADIANS(W83))^2,1) -> 1 | Y83: =IF(I83="LVL",15,11.7) -> 11.7 | Z83: =IF(I83="CLT",20*L83^(0.8)*MIN(N83,M83-H83)^(0.9),V83*Y83*L83*MIN(N83,(M83-H83))*(Q83/(IF(I83="LVL",500,350)))^(0.8)/X83) -> 6165 | AA83: =0.4*S83*(M83-H83)*L83+MIN(0.4*S83*(M83-H83)*L83,IF(I83="CLT",1,IF(M90=0,5/6,1))*MIN(P83,Z83)/4) -> 2649 | AB83: =1.15*SQRT(2*O83*S83*L83)+MIN(1.15*SQRT(2*O83*S83*L83),IF(I83="CLT",1,IF(M90=0,5/6,1))*MIN(P83,Z83)/4) -> 2617 | AC83: =MIN(AA83,AB83) -> 2617 | AD83: =INDEX(Data!$I$64:$O$75,MATCH(VLOOKUP(C83,Data!$AA$4:$AD$24,4,FALSE),Data!$I$64:$I$75,0),MATCH(F83,Data!$I$64:$O$64,0)) -> 8.8 | AE83: =INDEX(Data!$I$79:$O$90,MATCH(VLOOKUP(C83,Data!$AA$4:$AD$24,4,FALSE),Data!$I$79:$I$90,0),MATCH(F83,Data!$I$79:$O$79,0)) -> 53.0 | AG83: ='LOCK-T'!H71 -> GL24h | AH83: ='LOCK-T'!H141 -> LBS Ø 5 x 60 | AI83: =VLOOKUP(C83,Data!AA32:AC50,3,FALSE) -> 2 | AJ83: 0 | AK83: =VLOOKUP(AH83,Screws!$C$6:$J$34,3,FALSE) -> 5 | AL83: =VLOOKUP(AH83,Screws!$C$6:$J$34,5,FALSE) -> 60 | AM83: =VLOOKUP(AH83,Screws!$C$6:$J$34,6,FALSE) -> 56 | AN83: =VLOOKUP(AH83,Screws!$C$6:$J$34,7,FALSE) -> 5417.2 | AO83: =VLOOKUP(AH83,Screws!$C$6:$J$34,8,FALSE) -> 7900 | AP83: =VLOOKUP(AG83,Data!$B$4:$C$36,2,FALSE) -> 385 | AQ83: =IF('LOCK-T'!H72='LOCK-T'!AA53,90,45) -> 90 | AR83: =IF('LOCK-T'!H72='LOCK-T'!AA54,IF(AG83="LVL",AI92,IF(AP83>420,AI90,AI90)),IF(AG83="LVL",AI92,IF(AG83="CLT",AH94,IF(AP83>420,AI90,AH90)))) -> 19.48 | AS83: =IF(AG83="LVL",0.5,0.3) -> 0.30 | AT83: =IF(AG83="LVL",0.5,0.7) -> 0.70 | AU83: =IF(AQ83<45,AS83+AT83*AQ83/45,1) -> 1.0 | AV83: =IF(AG83="LVL",1.5*COS(RADIANS(AJ83))^2+SIN(RADIANS(AJ83))^2,1) -> 1 | AW83: =IF(AG83="LVL",15,11.7) -> 11.7 | AX83: =MIN(AO83,AU83*AW83*AK83*MIN(AM83,AL83-BD83)*(AP83/(IF(AG83="LVL",500,350)))^0.8/AV83) -> 3030 | AY83: =AR83*(AL83-BD83)*AK83 -> 4675 | AZ83: =AR83*(AL83-BD83)*AK83*(SQRT(2+(4*AN83)/(AR83*AK83*(AL83-BD83)^2))-1)+MIN(AR83*(AL83-BD83)*AK83*(SQRT(2+(4*AN83)/(AR83*AK83*(AL83-BD83)^2))-1),MIN(AO83,AX83)/4) -> 2852 | BA83: =2.3*SQRT(AN83*AR83*AK83)+MIN(2.3*SQRT(AN83*AR83*AK83),MIN(AO83,AX83)/4) -> 2428 | BB83: =MIN(AY83,AZ83,BA83) -> 2428 | BC83: =AI83*BB83 -> 4857 | BD83: =VLOOKUP(VLOOKUP(C83,Data!$AA$4:$AD$24,4,FALSE),Data!$Q$85:$R$96,2,FALSE) -> 12.0 | BF83: =IF(AH83='LOCK-T'!AB165,,MIN(AF85,BC83)/1000) -> 4.86
Z84: Fax,Rk [0°] (N) | AF84: F45,J,Rk (N) | AI84: =VLOOKUP(VLOOKUP(C83,Data!$AA$4:$AD$24,4,FALSE),Data!$I$4:$U$15,6,FALSE) -> 1 | AQ84: trave 90° | BC84: =(AI83^0.85)*BB83 -> 4377.004068 | BK84: non predrilled | BL84: predrilled
H85: =H83 -> 8 | I85: =I83 -> GL22h | J85: LBS Ø 7 x 80 | K85: 36 | L85: 7 | M85: 80 | N85: 75 | O85: 14174.0 | P85: 19200 | Q85: 370 | R85: =M90 -> 0 | S85: 6.77 | T85: 0.30 | U85: 0.70 | V85: =IF(R85<45,T85+U85*R85/45,1) -> 0.3 | W85: 0 | X85: 1 | Y85: 11.7 | Z85: =IF(I85="CLT",20*L85^(0.8)*MIN(N85,M85-H85)^(0.9),V85*Y85*L85*MIN(N85,(M85-H85))*(Q85/(IF(I85="LVL",500,350)))^(0.8)/X85) -> 1849 | AF85: =(AD83*AC83)/SQRT(1+(((AD83*AC83)/(AE83*Z85))^2)) -> 22421 | AQ85: trave 45° | BJ85: >=14d | BK85: 1 | BL85: 1
AX86: MIN FTENS??? | BJ86: 10d | BK86: 0.85 | BL86: 0.85
BJ87: 7d | BK87: 0.7 | BL87: 0.7
I88: embedding strength ETA | AG88: embedding strength ETA | BJ88: 4d | BK88: - | BL88: 0.5
J89: non pre-drilled | K89: pre-drilled | M89: α | AH89: non pre-drilled | AI89: pre-drilled | AK89: α
I90: SW & HW | J90: =0.082*Q83*L83^(-0.3)/((2.5*COS(RADIANS(M90))^2+SIN(RADIANS(M90))^2)) -> 6.76933732 | K90: =0.082*Q83*(1-0.01*L83)/((2.5*COS(RADIANS(M90))^2+SIN(RADIANS(M90))^2)) -> 11.28648 | M90: =ABS('LOCK-T'!H86) -> 0 | AG90: SW & HW | AH90: =0.082*AP83*AK83^(-0.3)/((2.5*COS(RADIANS(AK90))^2+SIN(RADIANS(AK90))^2)) -> 19.47975905 | AI90: =0.082*AP83*(1-0.01*AK83)/((2.5*COS(RADIANS(AK90))^2+SIN(RADIANS(AK90))^2)) -> 29.9915 | AK90: =AQ83 -> 90
I92: LVL | J92: =0.082*Q83*L83^(-0.3)/((2.5*COS(RADIANS(M90))^2+SIN(RADIANS(M90))^2)*(1.5*COS(RADIANS(W83))^2+SIN(RADIANS(W83))^2)) -> 4.512891547 | K92: =0.082*Q83*(1-0.01*L83)/((2.5*COS(RADIANS(M90))^2+SIN(RADIANS(M90))^2)*(1.5*COS(RADIANS(W83))^2+SIN(RADIANS(W83))^2)) -> 7.52432 | AG92: LVL | AH92: =0.082*AP83*AK83^(-0.3)/((2.5*COS(RADIANS(AK90))^2+SIN(RADIANS(AK90))^2)*(1.5*COS(RADIANS(AJ83))^2+SIN(RADIANS(AJ83))^2)) -> 12.98650603 | AI92: =0.082*AP83*(1-0.01*AK83)/((2.5*COS(RADIANS(AK90))^2+SIN(RADIANS(AK90))^2)*(1.5*COS(RADIANS(AJ83))^2+SIN(RADIANS(AJ83))^2)) -> 19.99433333
I94: CLT | J94: =IF(M90=0,20*L83^(-0.5),0.082*Q83*L83^(-0.3)/((2.5*COS(RADIANS(M90))^2+SIN(RADIANS(M90))^2))) -> 7.55928946 | AG94: CLT | AH94: =IF(AK90=0,20*AK83^(-0.5),0.082*AP83*AK83^(-0.3)/((2.5*COS(RADIANS(AK90))^2+SIN(RADIANS(AK90))^2))) -> 19.47975905
C105: GEOMETRIA LOCK | I105: RESISTENZA TRAVE SECONDARIA | AG105: RESISTENZA TRAVE PRIMARIA | BE105: RESISTENZA LOCK STOP | BG105: RESISTENZA FINALE
C106: Modello Lock | D106: Altezza (mm) | E106: Modulo | F106: Numero di moduli | G106: Larghezza Lock | H106: Spessore Lock (mm) | I106: Tipo di legno | J106: Tipo di connettore | K106: Numero connettori | L106: d (mm) | M106: l (mm) | N106: Filetto b (mm) | O106: My,Rk (Nmm) | P106: ftens,k (N) | Q106: ρk (kg/m3) | R106: α | S106: fh,k (N/mm2) | T106: a | U106: b | V106: kax | W106: β | X106: kβ | Y106: fax,k | Z106: Fax,Rk [90°] (N) | AA106: Fv,Rk (a) (N) | AB106: Fv,Rk (b) (N) | AC106: Fv,J,Rk (N) | AD106: nef | AE106: klat | AF106: F2,J,Rk (N) | AG106: Tipo di legno | AH106: Tipo di connettore | AI106: Numero connettori | AJ106: β | AK106: d (mm) | AL106: l (mm) | AM106: Filetto b (mm) | AN106: My,Rk (Nmm) | AO106: ftens,k (N) | AP106: ρk (kg/m3) | AQ106: α | AR106: fh,k (N/mm2) | AS106: a | AT106: b | AU106: kax | AV106: kβ | AW106: fax,k | AX106: Fax,H,Rk (N) | AY106: Fv,Rk (a) (N) | AZ106: Fv,Rk (b) (N) | BA106: Fv,H,Rk (N) | BB106: nef | BC106: klat | BD106: F2,H,Rk (N) | BE106: LOCK STOP | BF106: FLOCKSTOP,Rk (N) | BG106: F2,Rk (KN)
C107: ='LOCK-T'!H97 -> LOCK-T 100 290 | D107: =VLOOKUP(VLOOKUP(C107,Data!$AA$4:$AD$24,4,FALSE),Data!$I$4:$S$15,2,FALSE) -> 290 | E107: =IF(OR(C107="Lock-T 80",C107="Lock-T 100",C107="Lock-T 120"),17.5,25) -> 25 | F107: =VLOOKUP(C107,Data!$AA$4:$AF$24,6,FALSE) -> 4 | G107: =E107*F107 -> 100 | H107: =VLOOKUP(C6,Data!$AA$4:$AH$24,8,FALSE) -> 8 | I107: ='LOCK-T'!H85 -> GL22h | J107: ='LOCK-T'!H124 -> LBS Ø 7 x 80 | K107: =VLOOKUP(VLOOKUP(C107,Data!$AA$4:$AD$24,4,FALSE),Data!$I$4:$S$15,5,FALSE)*F107 -> 36 | L107: =VLOOKUP(J107,Screws!$C$6:$J$34,3,FALSE) -> 7 | M107: =VLOOKUP(J107,Screws!$C$6:$J$34,5,FALSE) -> 80 | N107: =VLOOKUP(J107,Screws!$C$6:$J$34,6,FALSE) -> 75 | O107: =VLOOKUP(J107,Screws!$C$6:$J$34,7,FALSE) -> 14174 | P107: =VLOOKUP(J107,Screws!$C$6:$J$34,8,FALSE) -> 19200 | Q107: =VLOOKUP(I107,Data!$B$4:$C$36,2,FALSE) -> 370 | R107: =IF(M114<>0,M114,90) -> 90 | S107: =IF(I107="LVL",K116,IF(I107="CLT",J118,IF(Q107>420,K114,J114))) -> 6.77 | T107: =IF(I107="LVL",0.5,0.3) -> 0.30 | U107: =IF(I107="LVL",0.5,0.7) -> 0.70 | V107: =IF(R107<45,T107+U107*R107/45,1) -> 1.0 | W107: 0 | X107: =IF(I107="LVL",1.5*COS(RADIANS(W107))^2+SIN(RADIANS(W107))^2,1) -> 1 | Y107: =IF(I107="LVL",15,11.7) -> 11.7 | Z107: =IF(I107="CLT",20*L107^(0.8)*MIN(N107,M107-H107)^(0.9),V107*Y107*L107*MIN(N107,(M107-H107))*(Q107/(IF(I107="LVL",500,350)))^(0.8)/X107) -> 6165 | AA107: =0.4*S107*(M107-H107)*L107+MIN(0.4*S107*(M107-H107)*L107,IF(I107="CLT",1,IF(M114=0,5/6,1))*MIN(P107,Z107)/4) -> 2649 | AB107: =1.15*SQRT(2*O107*S107*L107)+MIN(1.15*SQRT(2*O107*S107*L107),IF(I107="CLT",1,IF(M114=0,5/6,1))*MIN(P107,Z107)/4) -> 2617 | AC107: =MIN(AA107,AB107) -> 2617 | AD107: =INDEX(Data!$I$103:$O$114,MATCH(VLOOKUP(C107,Data!$AA$4:$AD$24,4,FALSE),Data!$I$103:$I$114,0),MATCH(F107,Data!$I$103:$O$103,0)) -> 12.6 | AE107: =INDEX(Data!$I$117:$O$128,MATCH(VLOOKUP(C107,Data!$AA$4:$AD$24,4,FALSE),Data!$I$117:$I$128,0),MATCH(F107,Data!$I$117:$O$117,0)) -> 61.0 | AG107: ='LOCK-T'!H71 -> GL24h | AH107: ='LOCK-T'!H111 -> LBS Ø 7 x 80 | AI107: =VLOOKUP(VLOOKUP(C107,Data!$AA$4:$AD$24,4,FALSE),Data!$I$4:$S$15,5,FALSE)*F107 -> 36 | AJ107: 0 | AK107: =VLOOKUP(AH107,Screws!$C$6:$J$34,3,FALSE) -> 7 | AL107: =VLOOKUP(AH107,Screws!$C$6:$J$34,5,FALSE) -> 80 | AM107: =VLOOKUP(AH107,Screws!$C$6:$J$34,6,FALSE) -> 75 | AN107: =VLOOKUP(AH107,Screws!$C$6:$J$34,7,FALSE) -> 14174 | AO107: =VLOOKUP(AH107,Screws!$C$6:$J$34,8,FALSE) -> 19200 | AP107: =VLOOKUP(AG107,Data!$B$4:$C$36,2,FALSE) -> 385 | AQ107: 90 | AR107: =IF('LOCK-T'!H72='LOCK-T'!AA54,IF(AG107="LVL",AI116,IF(AP107>420,AI114,AI114)),IF(AG107="LVL",AI116,IF(AG107="CLT",AH118,IF(AP107>420,AI114,AH114)))) -> 17.61 | AS107: =IF(AG107="LVL",0.5,0.3) -> 0.30 | AT107: =IF(AG107="LVL",0.5,0.7) -> 0.70 | AU107: =IF(AQ107<45,AS107+AT107*AQ107/45,1) -> 1.0 | AV107: =IF(AG107="LVL",1.5*COS(RADIANS(AJ107))^2+SIN(RADIANS(AJ107))^2,1) -> 1 | AW107: =IF(AG107="LVL",15,11.7) -> 11.7 | AX107: =AU107*AW107*AK107*MIN(AM107,AL107-H107)*(AP107/(IF(AG107="LVL",500,350)))^0.8/AV107 -> 6364 | AY107: =0.4*AR107*(AL107-H107)*AK107+MIN(AX107,AO107)/4 -> 5141 | AZ107: =1.15*SQRT(2*AN107*AR107*AK107)+MIN(1.15*SQRT(2*AN107*AR107*AK107),MIN(AO107,AX107)/4) -> 3741 | BA107: =MIN(AY107,AZ107) -> 3741 | BB107: =INDEX(Data!$I$103:$O$114,MATCH(VLOOKUP(C107,Data!$AA$4:$AD$24,4,FALSE),Data!$I$103:$I$114,0),MATCH(F107,Data!$I$103:$O$103,0)) -> 12.60 | BC107: =INDEX(Data!$I$117:$O$128,MATCH(VLOOKUP(C107,Data!$AA$4:$AD$24,4,FALSE),Data!$I$117:$I$128,0),MATCH(F107,Data!$I$117:$O$117,0)) -> 61.00 | BD107: =(BB107*BA107)/SQRT(1+(((BB107*BA107)/(BC107*AX107))^2)) -> 46789 | BE107: ='LOCK-T'!H138 -> 2 x LOCKSTOP100 | BF107: =VLOOKUP(VLOOKUP(BE107,Data!BA4:BB16,2,FALSE),Data!$I$133:$L$141,4,FALSE)*VLOOKUP(BE107,Data!BA4:BC16,3,FALSE) -> 1554.00 | BG107: =MIN(AF107,BD107,BF107)/1000 -> 1.55
Z108: Fax,Rk [0°] (N) | AF108: F2,J,Rk (N)
H109: =H107 -> 8 | I109: =I107 -> GL22h | J109: LBS Ø 7 x 80 | K109: 36 | L109: 7 | M109: 80 | N109: 75 | O109: 14174.0 | P109: 19200 | Q109: 370 | R109: =ABS('LOCK-T'!H86) -> 0 | S109: =S107 -> 6.77 | T109: 0.30 | U109: 0.70 | V109: =IF(R109<45,T109+U109*R109/45,1) -> 0.3 | W109: =W107 -> 0 | X109: 1 | Y109: 11.7 | Z109: =IF(I109="CLT",20*L109^(0.8)*MIN(N109,M109-H109)^(0.9),V109*Y109*L109*MIN(N109,(M109-H109))*(Q109/(IF(I109="LVL",500,350)))^(0.8)/X109) -> 1849 | AF109: =(AD107*AC107)/SQRT(1+(((AD107*AC107)/(AE107*Z109))^2)) -> 31652
I112: embedding strength ETA | AG112: embedding strength ETA
J113: non pre-drilled | K113: pre-drilled | M113: α | AH113: non pre-drilled | AI113: pre-drilled | AK113: α
I114: SW & HW | J114: =0.082*Q107*L107^(-0.3)/((2.5*COS(RADIANS(M114))^2+SIN(RADIANS(M114))^2)) -> 6.76933732 | K114: =0.082*Q107*(1-0.01*L107)/((2.5*COS(RADIANS(M114))^2+SIN(RADIANS(M114))^2)) -> 11.28648 | M114: =ABS('LOCK-T'!H86) -> 0 | AG114: SW & HW | AH114: =0.082*AP107*AK107^(-0.3)/((2.5*COS(RADIANS(AK114))^2+SIN(RADIANS(AK114))^2)) -> 17.60942478 | AI114: =0.082*AP107*(1-0.01*AK107)/((2.5*COS(RADIANS(AK114))^2+SIN(RADIANS(AK114))^2)) -> 29.3601 | AK114: 90
I116: LVL | J116: =0.082*Q107*L107^(-0.3)/((2.5*COS(RADIANS(M114))^2+SIN(RADIANS(M114))^2)*(1.5*COS(RADIANS(W107))^2+SIN(RADIANS(W107))^2)) -> 4.512891547 | K116: =0.082*Q107*(1-0.01*L107)/((2.5*COS(RADIANS(M114))^2+SIN(RADIANS(M114))^2)*(1.5*COS(RADIANS(W107))^2+SIN(RADIANS(W107))^2)) -> 7.52432 | AG116: LVL | AH116: =0.082*AP107*AK107^(-0.3)/((2.5*COS(RADIANS(AK114))^2+SIN(RADIANS(AK114))^2)*(1.5*COS(RADIANS(AJ107))^2+SIN(RADIANS(AJ107))^2)) -> 11.73961652 | AI116: =0.082*AP107*(1-0.01*AK107)/((2.5*COS(RADIANS(AK114))^2+SIN(RADIANS(AK114))^2)*(1.5*COS(RADIANS(AJ107))^2+SIN(RADIANS(AJ107))^2)) -> 19.5734
I118: CLT | J118: =IF(M114=0,20*L107^(-0.5),0.082*Q107*L107^(-0.3)/((2.5*COS(RADIANS(M114))^2+SIN(RADIANS(M114))^2))) -> 7.55928946 | AG118: CLT | AH118: =IF(AK114=0,20*AK107^(-0.5),0.082*AP107*AK107^(-0.3)/((2.5*COS(RADIANS(AK114))^2+SIN(RADIANS(AK114))^2))) -> 17.60942478

Sheet secondo_Lateral (hidden)
C2: LOCK-T CALCOLO RESISTENZA CARATTERISTICA
C4: GEOMETRIA LOCK | I4: RESISTENZA TRAVE SECONDARIA | AG4: RESISTENZA TRAVE PRIMARIA | AU4: RESISTENZA FINALE B.4 | AV4: RESISTENZA FINALE B.5
C5: Modello Lock | D5: Altezza (mm) | E5: Modulo | F5: Numero di moduli | G5: Larghezza Lock | H5: Spessore Lock (mm) | I5: Tipo di legno | J5: Tipo di connettore | K5: Numero connettori | L5: d (mm) | M5: l (mm) | N5: Filetto b (mm) | O5: My,Rk (Nmm) | P5: ftens,k (N) | Q5: ρk (kg/m3) | R5: α | S5: fh,k (N/mm2) | T5: a | U5: b | V5: kax | W5: β | X5: kβ | Y5: fax,k | Z5: Fax,Rk [90°] (N) | AA5: Fv,Rk (a) (N) | AB5: Fv,Rk (b) (N) | AC5: Fv,J,Rk (N) | AD5: nef | AE5: klat | AF5: F45,J,Rk (N) | AG5: Tipo di legno | AH5: Tipo di connettore | AI5: Numero connettori | AJ5: β | AK5: fc,0,k (N/mm2) | AL5: fc,90,k (N/mm2) | AM5: kc,90 | AN5: ALOCK (mm2) | AO5: ΣB (mm) | AP5: bC (mm) | AQ5: fr,k (N/mm2) | AR5: F45,H,Rk (a) (N) | AS5: F45,H,Rk (b) (N) | AT5: F45,H,Rk (c) (N) | AU5: F45,Rk (kN) | AV5: F45,Rk (kN)
C6: ='LOCK-T'!H97 -> LOCK-T 100 290 | D6: =VLOOKUP(VLOOKUP(C6,Data!$AA$4:$AD$24,4,FALSE),Data!$I$4:$S$15,2,FALSE) -> 290 | E6: =IF(OR(C6="Lock-T 80",C6="Lock-T 100",C6="Lock-T 120"),17.5,25) -> 25 | F6: =VLOOKUP(C6,Data!$AA$4:$AF$24,6,FALSE) -> 4 | G6: =E6*F6 -> 100 | H6: =VLOOKUP(C6,Data!$AA$4:$AH$24,8,FALSE) -> 8 | I6: ='LOCK-T'!H85 -> GL22h | J6: ='LOCK-T'!H124 -> LBS Ø 7 x 80 | K6: =VLOOKUP(VLOOKUP(C6,Data!$AA$4:$AD$24,4,FALSE),Data!$I$4:$S$15,5,FALSE)*F6 -> 36 | L6: =VLOOKUP(J6,Screws!$C$6:$J$34,3,FALSE) -> 7 | M6: =VLOOKUP(J6,Screws!$C$6:$J$34,5,FALSE) -> 80 | N6: =VLOOKUP(J6,Screws!$C$6:$J$34,6,FALSE) -> 75 | O6: =VLOOKUP(J6,Screws!$C$6:$J$34,7,FALSE) -> 14174 | P6: =VLOOKUP(J6,Screws!$C$6:$J$34,8,FALSE) -> 19200 | Q6: =VLOOKUP(I6,Data!$B$4:$C$36,2,FALSE) -> 370 | R6: =IF(M13<>0,M13,90) -> 90 | S6: =IF(I6="LVL",K15,IF(I6="CLT",J17,IF(Q6>420,K13,J13))) -> 6.77 | T6: =IF(I6="LVL",0.5,0.3) -> 0.30 | U6: =IF(I6="LVL",0.5,0.7) -> 0.70 | V6: =IF(R6<45,T6+U6*R6/45,1) -> 1.0 | W6: 0 | X6: =IF(I6="LVL",1.5*COS(RADIANS(W6))^2+SIN(RADIANS(W6))^2,1) -> 1 | Y6: =IF(I6="LVL",15,11.7) -> 11.7 | Z6: =IF(I6="CLT",20*L6^(0.8)*MIN(N6,M6-H6)^(0.9),V6*Y6*L6*MIN(N6,(M6-H6))*(Q6/(IF(I6="LVL",500,350)))^(0.8)/X6) -> 6165 | AA6: =0.4*S6*(M6-H6)*L6+MIN(0.4*S6*(M6-H6)*L6,IF(I6="CLT",1,IF(M13=0,5/6,1))*MIN(P6,Z6)/4) -> 2649 | AB6: =1.15*SQRT(2*O6*S6*L6)+MIN(1.15*SQRT(2*O6*S6*L6),IF(I6="CLT",1,IF(M13=0,5/6,1))*MIN(P6,Z6)/4) -> 2617 | AC6: =MIN(AA6,AB6) -> 2617 | AD6: =INDEX(Data!$I$35:$O$46,MATCH(VLOOKUP(C6,Data!$AA$4:$AD$24,4,FALSE),Data!$I$35:$I$46,0),MATCH(F6,Data!$I$35:$O$35,0)) -> 20.9 | AE6: =INDEX(Data!$I$49:$O$60,MATCH(VLOOKUP(C6,Data!$AA$4:$AD$24,4,FALSE),Data!$I$49:$I$60,0),MATCH(F6,Data!$I$49:$O$49,0)) -> 227.0 | AF6: =(AD12*AC6)/SQRT(1+(((AD12*AC6)/(AE12*Z6))^2)) -> 61712 | AG6: ='LOCK-T'!H71 -> GL24h | AH6: ='LOCK-T'!H111 -> LBS Ø 7 x 80 | AI6: =VLOOKUP(VLOOKUP(C6,Data!$AA$4:$AD$24,4,FALSE),Data!$I$4:$S$15,5,FALSE)*F6 -> 36 | AJ6: 0 | AK6: =VLOOKUP(AG6,Data!$B$2:$F$36,3,FALSE) -> 24.0 | AL6: =VLOOKUP(AG6,Data!$B$2:$F$36,4,FALSE) -> 2.5 | AM6: 1.0 | AN6: =VLOOKUP(VLOOKUP(C6,Data!$AA$4:$AD$24,4,FALSE),Data!$I$4:$L$15,4,FALSE) -> 1945 | AO6: =G6+F15 -> 150.0 | AP6: ='LOCK-T'!H70 -> 400.0 | AQ6: =VLOOKUP(AG6,Data!$B$2:$F$36,5,FALSE) -> 1.2 | AR6: =AK6*AN6 -> 46680 | AS6: =AM6*AL6*AN6 -> 4863 | AT6: =((AP6-AO6)*D6*AQ6)/2 -> 43500 | AU6: =MIN(AF8,AR6)/1000 -> 46.68 | AV6: =MIN(AF8,AS6,AT6)/1000 -> 4.86 | BG6: F45,Rk (kN) | BH6: F45,Rd (kN)
Z7: Fax,Rk [0°] (N) | AF7: F45,J,Rk (N) | AI7: d (mm) | AJ7: ρk (kg/m3) | BD7: =Translation!B7 -> Entalhe viga principal | BE7: Notch in header beam | BF7: B.4 | BG7: =AU6 -> 46.68 | BH7: =(BG7*'LOCK-T'!$H$47)/'LOCK-T'!$H$50 -> 28.73
H8: =H6 -> 8 | I8: =I6 -> GL22h | J8: LBS Ø 7 x 80 | K8: 36 | L8: 7 | M8: 80 | N8: 75 | O8: 14174.0 | P8: 19200 | Q8: 370 | R8: =M13 -> 0 | S8: 6.77 | T8: 0.30 | U8: 0.70 | V8: =IF(R8<45,T8+U8*R8/45,1) -> 0.3 | W8: 0 | X8: 1 | Y8: 11.7 | Z8: =IF(I8="CLT",20*L8^(0.8)*MIN(N8,M8-H8)^(0.9),V8*Y8*L8*MIN(N8,(M8-H8))*(Q8/(IF(I8="LVL",500,350)))^(0.8)/X8) -> 1849 | AF8: =(AD12*AC6)/SQRT(1+(((AD12*AC6)/(AE12*Z8))^2)) -> 61176 | AI8: =VLOOKUP(AH6,Screws!$C$6:$J$34,3,FALSE) -> 7 | AJ8: =VLOOKUP(AG6,Data!$B$4:$C$36,2,FALSE) -> 385 | BD8: =Translation!B6 -> Entalhe coluna | BE8: Notch in column | BF8: B.5 | BG8: =AV6 -> 4.86 | BH8: =(BG8*'LOCK-T'!$H$47)/'LOCK-T'!$H$50 -> 2.99
BD9: =Translation!B8 -> Entalhe viga secundária | BE9: Notch in joist | BF9: B.6 | BG9: =AZ32 -> 9.73 | BH9: =(BG9*'LOCK-T'!$H$47)/'LOCK-T'!$H$50 -> 5.98
BD10: =Translation!B9 -> Parafusos inclinados | BE10: Inclined screw | BF10: B.7 | BG10: =BF83 -> 6.18 | BH10: =(BG10*'LOCK-T'!$H$47)/'LOCK-T'!$H$50 -> 3.80
C11: Modello Lock | D11: Numero di moduli | E11: Numero connettori | F11: nef | G11: klat | I11: embedding strength ETA | AD11: Σnef | AE11: Σklat | AG11: embedding strength ETA | AN11: ALOCK (mm2) | BD11: LOCK STOP | BE11: LOCK STOP | BF11: B.8 | BG11: =BG107 -> 1.55 | BH11: =BG11/'LOCK-T'!H51 -> 1.2432
C12: ='LOCK-T'!$I$97 -> LOCK-T 50 135 | D12: =VLOOKUP(C12,Data!$AA$4:$AF$24,6,FALSE) -> 2 | E12: =VLOOKUP(VLOOKUP(C12,Data!$AA$4:$AD$24,4,FALSE),Data!$I$4:$S$15,5,FALSE)*D12 -> 6 | F12: =INDEX(Data!$I$35:$O$46,MATCH(VLOOKUP(C12,Data!$AA$4:$AD$24,4,FALSE),Data!$I$35:$I$46,0),MATCH(D12,Data!$I$35:$O$35,0)) -> 2.7 | G12: =INDEX(Data!$I$49:$O$60,MATCH(VLOOKUP(C12,Data!$AA$4:$AD$24,4,FALSE),Data!$I$49:$I$60,0),MATCH(D12,Data!$I$49:$O$49,0)) -> 13.0 | J12: non pre-drilled | K12: pre-drilled | M12: α | AD12: =F12+nef -> 23.6 | AE12: =klat+G12 -> 240.0 | AH12: non pre-drilled | AI12: pre-drilled | AK12: α | AN12: =VLOOKUP(VLOOKUP(C12,Data!$AA$4:$AD$24,4,FALSE),Data!$I$4:$L$15,4,FALSE) -> 924
I13: SW & HW | J13: =0.082*Q6*L6^(-0.3)/((2.5*COS(RADIANS(M13))^2+SIN(RADIANS(M13))^2)) -> 6.76933732 | K13: =0.082*Q6*(1-0.01*L6)/((2.5*COS(RADIANS(M13))^2+SIN(RADIANS(M13))^2)) -> 11.28648 | M13: =ABS('LOCK-T'!H86) -> 0 | AG13: SW & HW | AH13: =0.082*AJ8*AI8^(-0.3)/((2.5*COS(RADIANS(AK13))^2+SIN(RADIANS(AK13))^2)) -> 17.60942478 | AI13: =0.082*AJ8*(1-0.01*AI8)/((2.5*COS(RADIANS(AK13))^2+SIN(RADIANS(AK13))^2)) -> 29.3601 | AK13: 90
D14: Modulo | E14: Numero di moduli | F14: Larghezza Lock
D15: =IF(OR(C12="Lock-T 80",C12="Lock-T 100",C12="Lock-T 120"),17.5,25) -> 25 | E15: =D12 -> 2 | F15: =D15*E15 -> 50 | I15: LVL | J15: =0.082*Q6*L6^(-0.3)/((2.5*COS(RADIANS(M13))^2+SIN(RADIANS(M13))^2)*(1.5*COS(RADIANS(W6))^2+SIN(RADIANS(W6))^2)) -> 4.512891547 | K15: =0.082*Q6*(1-0.01*L6)/((2.5*COS(RADIANS(M13))^2+SIN(RADIANS(M13))^2)*(1.5*COS(RADIANS(W6))^2+SIN(RADIANS(W6))^2)) -> 7.52432 | AG15: LVL | AH15: =0.082*AJ8*AI8^(-0.3)/((2.5*COS(RADIANS(AK13))^2+SIN(RADIANS(AK13))^2)*(1.5*COS(RADIANS(AJ6))^2+SIN(RADIANS(AJ6))^2)) -> 11.73961652 | AI15: =0.082*AJ8*(1-0.01*AI8)/((2.5*COS(RADIANS(AK13))^2+SIN(RADIANS(AK13))^2)*(1.5*COS(RADIANS(AJ6))^2+SIN(RADIANS(AJ6))^2)) -> 19.5734
I17: CLT | J17: =IF(M13=0,20*L6^(-0.5),0.082*Q6*L6^(-0.3)/((2.5*COS(RADIANS(M13))^2+SIN(RADIANS(M13))^2))) -> 7.55928946 | AG17: CLT | AH17: =IF(AK13=0,20*AI8^(-0.5),0.082*AJ8*AI8^(-0.3)/((2.5*COS(RADIANS(AK13))^2+SIN(RADIANS(AK13))^2))) -> 17.60942478
AH18: per clt come parete ho considerato come fosse SW
C30: GEOMETRIA LOCK | I30: RESISTENZA TRAVE PRIMARIA | AG30: RESISTENZA TRAVE SECONDARIA | AZ30: RESISTENZA FINALE B.6
C31: Modello Lock | D31: Altezza (mm) | E31: Modulo | F31: Numero di moduli | G31: Larghezza Lock | H31: Spessore Lock (mm) | I31: Tipo di legno | J31: Tipo di connettore | K31: Numero connettori | L31: d (mm) | M31: l (mm) | N31: Filetto b (mm) | O31: My,Rk (Nmm) | P31: ftens,k (N) | Q31: ρk (kg/m3) | R31: α | S31: fh,k (N/mm2) | T31: a | U31: b | V31: kax | W31: β | X31: kβ | Y31: fax,k | Z31: Fax,Rk (N) | AA31: Fv,Rk (a) (N) | AB31: Fv,Rk (b) (N) | AC31: Fv,H,Rk (N) | AD31: nef | AE31: klat | AF31: F45,H,Rk (N) | AG31: Tipo di legno | AH31: Tipo di connettore | AI31: Numero connettori | AJ31: β | AK31: fc,0,k (N/mm2) | AL31: fc,90,k (N/mm2) | AM31: kc,90 | AN31: ALOCK (mm2) | AO31: B (mm) | AP31: bJ (mm) | AQ31: fr,k (N/mm2) | AR31: F45,J,Rk (a) (N) | AS31: fv,k (N/mm2) | AT31: α | AU31: kn | AV31: x | AW31: i | AX31: kv | AY31: F45,J,Rk (b) (N) | AZ31: F45,Rk (kN)
C32: ='LOCK-T'!H97 -> LOCK-T 100 290 | D32: =VLOOKUP(VLOOKUP(C32,Data!$AA$4:$AD$24,4,FALSE),Data!$I$4:$S$15,2,FALSE) -> 290 | E32: =IF(OR(C32="Lock-T 80",C32="Lock-T 100",C32="Lock-T 120"),17.5,25) -> 25 | F32: =VLOOKUP(C32,Data!$AA$4:$AF$24,6,FALSE) -> 4 | G32: =E32*F32 -> 100 | H32: =VLOOKUP(C6,Data!$AA$4:$AH$24,8,FALSE) -> 8 | I32: ='LOCK-T'!H71 -> GL24h | J32: ='LOCK-T'!H111 -> LBS Ø 7 x 80 | K32: =VLOOKUP(VLOOKUP(C32,Data!$AA$4:$AD$24,4,FALSE),Data!$I$4:$S$15,5,FALSE)*F32 -> 36 | L32: =VLOOKUP(J32,Screws!$C$6:$J$34,3,FALSE) -> 7 | M32: =VLOOKUP(J32,Screws!$C$6:$J$34,5,FALSE) -> 80 | N32: =VLOOKUP(J32,Screws!$C$6:$J$34,6,FALSE) -> 75 | O32: =VLOOKUP(J32,Screws!$C$6:$J$34,7,FALSE) -> 14174 | P32: =VLOOKUP(J32,Screws!$C$6:$J$34,8,FALSE) -> 19200 | Q32: =VLOOKUP(I32,Data!$B$4:$C$36,2,FALSE) -> 385 | R32: 90 | S32: =IF('LOCK-T'!H72='LOCK-T'!AA54,IF(I32="LVL",K41,IF(Q32>420,K39,K39)),IF(I32="LVL",K41,IF(I32="CLT",J43,IF(Q32>420,K39,J39)))) -> 17.61 | T32: =IF(I32="LVL",0.5,0.3) -> 0.30 | U32: =IF(I32="LVL",0.5,0.7) -> 0.70 | V32: =IF(R32<45,T32+U32*R32/45,1) -> 1.0 | W32: 0 | X32: =IF(I32="LVL",1.5*COS(RADIANS(W32))^2+SIN(RADIANS(W32))^2,1) -> 1 | Y32: =IF(I32="LVL",15,11.7) -> 11.7 | Z32: =IF(I32="CLT",20*L32^(0.8)*MIN(N32,M32-H32)^(0.9),V32*Y32*L32*MIN(N32,(M32-H32))*(Q32/(IF(I32="LVL",500,350)))^(0.8)/X32) -> 6364 | AA32: =0.4*S32*(M32-H32)*L32+MIN(0.4*S32*(M32-H32)*L32,MIN(P32,Z32)/4) -> 5141 | AB32: =1.15*SQRT(2*O32*S32*L32)+MIN(1.15*SQRT(2*O32*S32*L32),MIN(P32,Z32)/4) -> 3741 | AC32: =MIN(AA32,AB32) -> 3741 | AD32: =INDEX(Data!$I$35:$O$46,MATCH(VLOOKUP(C32,Data!$AA$4:$AD$24,4,FALSE),Data!$I$35:$I$46,0),MATCH(F32,Data!$I$35:$O$35,0)) -> 20.9 | AE32: =INDEX(Data!$I$49:$O$60,MATCH(VLOOKUP(C32,Data!$AA$4:$AD$24,4,FALSE),Data!$I$49:$I$60,0),MATCH(F32,Data!$I$49:$O$49,0)) -> 227.0 | AF32: =(AD38*AC32)/SQRT(1+(((AD38*AC32)/(AE38*Z32))^2)) -> 88134 | AG32: ='LOCK-T'!H85 -> GL22h | AH32: ='LOCK-T'!H124 -> LBS Ø 7 x 80 | AI32: =VLOOKUP(VLOOKUP(C32,Data!$AA$4:$AD$24,4,FALSE),Data!$I$4:$S$15,5,FALSE)*F32 -> 36 | AJ32: 0 | AK32: =VLOOKUP(AG32,Data!$B$2:$F$36,3,FALSE) -> 22.0 | AL32: =VLOOKUP(AG32,Data!$B$2:$F$36,4,FALSE) -> 2.5 | AM32: 1.0 | AN32: =VLOOKUP(VLOOKUP(C32,Data!$AA$4:$AD$24,4,FALSE),Data!$I$4:$L$15,4,FALSE) -> 1945 | AO32: =G32+F41 -> 150.0 | AP32: ='LOCK-T'!H83 -> 240.0 | AQ32: =VLOOKUP(AG32,Data!$B$2:$F$36,5,FALSE) -> 1.2 | AR32: =2*AM32*AL32*AN32 -> 9725 | AS32: =VLOOKUP(AG32,Data!$B$2:$G$36,6,FALSE) -> 3.5 | AT32: =(0.5*(AP32-AO32))/AP32 -> 0.188 | AU32: =VLOOKUP(AG32,$BD$34:$BE$72,2,FALSE) -> 6.5 | AV32: 20 | AW32: 0 | AX32: =MIN(AU32*(1+1.1*AW32^1.5/SQRT(AP32))/(SQRT(AP32)*(SQRT(AT32*(1-AT32))+0.8*(AV32/AP32)*SQRT(1/AT32-AT32^2))),1) -> 0.772 | AY32: =(AX32*AS32*D32*(AP32-AO32))/3 -> 23495 | AZ32: =MIN(AF32,AR32,AY32)/1000 -> 9.73
BD34: Legno | BE34: kn
BD36: GL20h | BE36: 6.5
C37: Modello Lock | D37: Numero di moduli | E37: Numero connettori | F37: nef | G37: klat | I37: embedding strength ETA | AD37: Σnef | AE37: Σklat | BD37: GL22h | BE37: 6.5
C38: ='LOCK-T'!$I$97 -> LOCK-T 50 135 | D38: =VLOOKUP(C38,Data!$AA$4:$AF$24,6,FALSE) -> 2 | E38: =VLOOKUP(VLOOKUP(C38,Data!$AA$4:$AD$24,4,FALSE),Data!$I$4:$S$15,5,FALSE)*D38 -> 6 | F38: =INDEX(Data!$I$35:$O$46,MATCH(VLOOKUP(C38,Data!$AA$4:$AD$24,4,FALSE),Data!$I$35:$I$46,0),MATCH(D38,Data!$I$35:$O$35,0)) -> 2.7 | G38: =INDEX(Data!$I$49:$O$60,MATCH(VLOOKUP(C38,Data!$AA$4:$AD$24,4,FALSE),Data!$I$49:$I$60,0),MATCH(D38,Data!$I$49:$O$49,0)) -> 13.0 | J38: non pre-drilled | K38: pre-drilled | M38: α | AD38: =F38+AD32 -> 23.6 | AE38: =AE32+G38 -> 240.0 | BD38: GL24h | BE38: 6.5
I39: SW & HW | J39: =0.082*$Q$32*$L$32^(-0.3)/((2.5*COS(RADIANS($M$39))^2+SIN(RADIANS($M$39))^2)) -> 17.60942478 | K39: =0.082*$Q$32*(1-0.01*$L$32)/((2.5*COS(RADIANS($M$39))^2+SIN(RADIANS($M$39))^2)) -> 29.3601 | M39: 90 | BD39: GL26h | BE39: 6.5
D40: Modulo | E40: Numero di moduli | F40: Larghezza Lock | BD40: GL28h | BE40: 6.5
D41: =IF(OR(C38="Lock-T 80",C38="Lock-T 100",C38="Lock-T 120"),17.5,25) -> 25 | E41: =D38 -> 2 | F41: =D41*E41 -> 50 | I41: LVL | J41: =0.082*$Q$32*$L$32^(-0.3)/((2.5*COS(RADIANS($M$39))^2+SIN(RADIANS($M$39))^2)*(1.5*COS(RADIANS($W$32))^2+SIN(RADIANS($W$32))^2)) -> 11.73961652 | K41: =0.082*$Q$32*(1-0.01*$L$32)/((2.5*COS(RADIANS($M$39))^2+SIN(RADIANS($M$39))^2)*(1.5*COS(RADIANS($W$32))^2+SIN(RADIANS($W$32))^2)) -> 19.5734 | BD41: GL30h | BE41: 6.5
BD42: GL32h | BE42: 6.5
I43: CLT | J43: =IF(M39=0,20*L32^(-0.5),0.082*$Q$32*$L$32^(-0.3)/((2.5*COS(RADIANS($M$39))^2+SIN(RADIANS($M$39))^2))) -> 17.60942478
BD44: GL20c | BE44: 6.5
BD45: GL22c | BE45: 6.5
BD46: GL24c | BE46: 6.5
BD47: GL26c | BE47: 6.5
BD48: GL28c | BE48: 6.5
BD49: GL30c | BE49: 6.5
BD50: GL32c | BE50: 6.5
BD52: C14 | BE52: 5.0
BD53: C16 | BE53: 5.0
BD54: C18 | BE54: 5.0
BD55: C20 | BE55: 5.0
BD56: C22 | BE56: 5.0
BD57: C24 | BE57: 5.0
BD58: C27 | BE58: 5.0
BD59: C30 | BE59: 5.0
BD60: C35 | BE60: 5.0
BD61: C40 | BE61: 5.0
BD62: C45 | BE62: 5.0
BD63: C50 | BE63: 5.0
BD65: LVL | BE65: 4.5
BD66: CLT | BE66: 6.5
BD68: USER 1 | BE68: 5.0
BD69: USER 2 | BE69: 5.0
BD70: USER 3 | BE70: 5.0
BD71: USER 4 | BE71: 5.0
BD72: USER 5 | BE72: 5.0
C81: GEOMETRIA LOCK | I81: RESISTENZA TRAVE SECONDARIA | AG81: RESISTENZA TRAVE PRIMARIA | BF81: RESISTENZA FINALE
C82: Modello Lock | D82: Altezza (mm) | E82: Modulo | F82: Numero di moduli | G82: Larghezza Lock | H82: Spessore Lock (mm) | I82: Tipo di legno | J82: Tipo di connettore | K82: Numero connettori | L82: d (mm) | M82: l (mm) | N82: Filetto b (mm) | O82: My,Rk (Nmm) | P82: ftens,k (N) | Q82: ρk (kg/m3) | R82: α | S82: fh,k (N/mm2) | T82: a | U82: b | V82: kax | W82: β | X82: kβ | Y82: fax,k | Z82: Fax,Rk [90°] (N) | AA82: Fv,Rk (a) (N) | AB82: Fv,Rk (b) (N) | AC82: Fv,J,Rk (N) | AD82: nef | AE82: klat | AF82: F45,J,Rk (N) | AG82: Tipo di legno | AH82: Tipo di connettore | AI82: Numero connettori inclinati 1 | AJ82: β | AK82: d (mm) | AL82: l (mm) | AM82: Filetto b (mm) | AN82: My,Rk (Nmm) | AO82: ftens,k (N) | AP82: ρk (kg/m3) | AQ82: α | AR82: fh,k (N/mm2) | AS82: a | AT82: b | AU82: kax | AV82: kβ | AW82: fax,k | AX82: Fax,H,Rk (N) | AY82: Fv,Rk (c) (N) | AZ82: Fv,Rk (d) (N) | BA82: Fv,Rk (e) (N) | BB82: Fv,H,Rk (N) | BC82: Fv,in,Rk (N) | BD82: spessore inclinato | BF82: F2,Rk (KN)
C83: ='LOCK-T'!H97 -> LOCK-T 100 290 | D83: =VLOOKUP(VLOOKUP(C83,Data!$AA$4:$AD$24,4,FALSE),Data!$I$4:$S$15,2,FALSE) -> 290 | E83: =IF(OR(C83="Lock-T 80",C83="Lock-T 100",C83="Lock-T 120"),17.5,25) -> 25 | F83: =VLOOKUP(C83,Data!$AA$4:$AF$24,6,FALSE) -> 4 | G83: =E83*F83 -> 100 | H83: =VLOOKUP(C6,Data!$AA$4:$AH$24,8,FALSE) -> 8 | I83: ='LOCK-T'!H85 -> GL22h | J83: ='LOCK-T'!H124 -> LBS Ø 7 x 80 | K83: =VLOOKUP(VLOOKUP(C83,Data!$AA$4:$AD$24,4,FALSE),Data!$I$4:$S$15,5,FALSE)*F83 -> 36 | L83: =VLOOKUP(J83,Screws!$C$6:$J$34,3,FALSE) -> 7 | M83: =VLOOKUP(J83,Screws!$C$6:$J$34,5,FALSE) -> 80 | N83: =VLOOKUP(J83,Screws!$C$6:$J$34,6,FALSE) -> 75 | O83: =VLOOKUP(J83,Screws!$C$6:$J$34,7,FALSE) -> 14174 | P83: =VLOOKUP(J83,Screws!$C$6:$J$34,8,FALSE) -> 19200 | Q83: =VLOOKUP(I83,Data!$B$4:$C$36,2,FALSE) -> 370 | R83: =IF(M90<>0,M90,90) -> 90 | S83: =IF(I83="LVL",K92,IF(I83="CLT",J94,IF(Q83>420,K90,J90))) -> 6.77 | T83: =IF(I83="LVL",0.5,0.3) -> 0.30 | U83: =IF(I83="LVL",0.5,0.7) -> 0.70 | V83: =IF(R83<45,T83+U83*R83/45,1) -> 1.0 | W83: 0 | X83: =IF(I83="LVL",1.5*COS(RADIANS(W83))^2+SIN(RADIANS(W83))^2,1) -> 1 | Y83: =IF(I83="LVL",15,11.7) -> 11.7 | Z83: =IF(I83="CLT",20*L83^(0.8)*MIN(N83,M83-H83)^(0.9),V83*Y83*L83*MIN(N83,(M83-H83))*(Q83/(IF(I83="LVL",500,350)))^(0.8)/X83) -> 6165 | AA83: =0.4*S83*(M83-H83)*L83+MIN(0.4*S83*(M83-H83)*L83,IF(I83="CLT",1,IF(M90=0,5/6,1))*MIN(P83,Z83)/4) -> 2649 | AB83: =1.15*SQRT(2*O83*S83*L83)+MIN(1.15*SQRT(2*O83*S83*L83),IF(I83="CLT",1,IF(M90=0,5/6,1))*MIN(P83,Z83)/4) -> 2617 | AC83: =MIN(AA83,AB83) -> 2617 | AD83: =INDEX(Data!$I$64:$O$75,MATCH(VLOOKUP(C83,Data!$AA$4:$AD$24,4,FALSE),Data!$I$64:$I$75,0),MATCH(F83,Data!$I$64:$O$64,0)) -> 8.8 | AE83: =INDEX(Data!$I$79:$O$90,MATCH(VLOOKUP(C83,Data!$AA$4:$AD$24,4,FALSE),Data!$I$79:$I$90,0),MATCH(F83,Data!$I$79:$O$79,0)) -> 53.0 | AG83: ='LOCK-T'!H71 -> GL24h | AH83: ='LOCK-T'!H141 -> LBS Ø 5 x 60 | AI83: =VLOOKUP(C83,Data!AA32:AC50,3,FALSE) -> 2 | AJ83: 0 | AK83: =VLOOKUP(AH83,Screws!$C$6:$J$34,3,FALSE) -> 5 | AL83: =VLOOKUP(AH83,Screws!$C$6:$J$34,5,FALSE) -> 60 | AM83: =VLOOKUP(AH83,Screws!$C$6:$J$34,6,FALSE) -> 56 | AN83: =VLOOKUP(AH83,Screws!$C$6:$J$34,7,FALSE) -> 5417.2 | AO83: =VLOOKUP(AH83,Screws!$C$6:$J$34,8,FALSE) -> 7900 | AP83: =VLOOKUP(AG83,Data!$B$4:$C$36,2,FALSE) -> 385 | AQ83: =IF('LOCK-T'!H72='LOCK-T'!AA53,90,45) -> 90 | AR83: =IF('LOCK-T'!H72='LOCK-T'!AA54,IF(AG83="LVL",AI92,IF(AP83>420,AI90,AI90)),IF(AG83="LVL",AI92,IF(AG83="CLT",AH94,IF(AP83>420,AI90,AH90)))) -> 19.48 | AS83: =IF(AG83="LVL",0.5,0.3) -> 0.30 | AT83: =IF(AG83="LVL",0.5,0.7) -> 0.70 | AU83: =IF(AQ83<45,AS83+AT83*AQ83/45,1) -> 1.0 | AV83: =IF(AG83="LVL",1.5*COS(RADIANS(AJ83))^2+SIN(RADIANS(AJ83))^2,1) -> 1 | AW83: =IF(AG83="LVL",15,11.7) -> 11.7 | AX83: =MIN(AO83,AU83*AW83*AK83*MIN(AM83,AL83-BD83)*(AP83/(IF(AG83="LVL",500,350)))^0.8/AV83) -> 3030 | AY83: =AR83*(AL83-BD83)*AK83 -> 4675 | AZ83: =AR83*(AL83-BD83)*AK83*(SQRT(2+(4*AN83)/(AR83*AK83*(AL83-BD83)^2))-1)+MIN(AR83*(AL83-BD83)*AK83*(SQRT(2+(4*AN83)/(AR83*AK83*(AL83-BD83)^2))-1),MIN(AO83,AX83)/4) -> 2852 | BA83: =2.3*SQRT(AN83*AR83*AK83)+MIN(2.3*SQRT(AN83*AR83*AK83),MIN(AO83,AX83)/4) -> 2428 | BB83: =MIN(AY83,AZ83,BA83) -> 2428 | BC83: =AX86*BB83 -> 6178 | BD83: =VLOOKUP(VLOOKUP(C83,Data!$AA$4:$AD$24,4,FALSE),Data!$Q$85:$R$96,2,FALSE) -> 12.0 | BF83: =IF(AH83='LOCK-T'!AB165,,MIN(AF85,BC83)/1000) -> 6.18
Z84: Fax,Rk [0°] (N) | AF84: F45,J,Rk (N) | AI84: =VLOOKUP(VLOOKUP(C83,Data!$AA$4:$AD$24,4,FALSE),Data!$I$4:$U$15,6,FALSE) -> 1 | AQ84: trave 90° | BC84: =(AI83^0.85)*BB83 -> 4377.004068 | BK84: non predrilled | BL84: predrilled
H85: =H83 -> 8 | I85: =I83 -> GL22h | J85: LBS Ø 7 x 80 | K85: 36 | L85: 7 | M85: 80 | N85: 75 | O85: 14174.0 | P85: 19200 | Q85: 370 | R85: =M90 -> 0 | S85: 6.77 | T85: 0.30 | U85: 0.70 | V85: =IF(R85<45,T85+U85*R85/45,1) -> 0.3 | W85: 0 | X85: 1 | Y85: 11.7 | Z85: =IF(I85="CLT",20*L85^(0.8)*MIN(N85,M85-H85)^(0.9),V85*Y85*L85*MIN(N85,(M85-H85))*(Q85/(IF(I85="LVL",500,350)))^(0.8)/X85) -> 1849 | AF85: =(AD89*AC83)/SQRT(1+(((AD89*AC83)/(AE89*Z85))^2)) -> 25879 | AQ85: trave 45° | AX85: Numero connettori^kef | BJ85: >=14d | BK85: 1 | BL85: 1
AX86: =(AI83+D89)^0.85 -> 2.544210652 | BJ86: 10d | BK86: 0.85 | BL86: 0.85
BJ87: 7d | BK87: 0.7 | BL87: 0.7
C88: Modello Lock | D88: Numero connettori inclinati 2 | E88: nef | F88: klat | I88: embedding strength ETA | AD88: Σnef | AE88: Σklat | AG88: embedding strength ETA | BJ88: 4d | BK88: - | BL88: 0.5
C89: ='LOCK-T'!$I$97 -> LOCK-T 50 135 | D89: =VLOOKUP(C89,Data!AA32:AC50,3,FALSE) -> 1 | E89: =INDEX(Data!$I$64:$O$75,MATCH(VLOOKUP(C89,Data!$AA$4:$AD$24,4,FALSE),Data!$I$64:$I$75,0),MATCH(D91,Data!$I$64:$O$64,0)) -> 1.4 | F89: =INDEX(Data!$I$79:$O$90,MATCH(VLOOKUP(C89,Data!$AA$4:$AD$24,4,FALSE),Data!$I$79:$I$90,0),MATCH(D91,Data!$I$79:$O$79,0)) -> 4 | J89: non pre-drilled | K89: pre-drilled | M89: α | AD89: =AD83+E89 -> 10.2 | AE89: =AE83+F89 -> 57.0 | AH89: non pre-drilled | AI89: pre-drilled | AK89: α
D90: Numero di moduli | I90: SW & HW | J90: =0.082*Q83*L83^(-0.3)/((2.5*COS(RADIANS(M90))^2+SIN(RADIANS(M90))^2)) -> 6.76933732 | K90: =0.082*Q83*(1-0.01*L83)/((2.5*COS(RADIANS(M90))^2+SIN(RADIANS(M90))^2)) -> 11.28648 | M90: =ABS('LOCK-T'!H86) -> 0 | AG90: SW & HW | AH90: =0.082*AP83*AK83^(-0.3)/((2.5*COS(RADIANS(AK90))^2+SIN(RADIANS(AK90))^2)) -> 19.47975905 | AI90: =0.082*AP83*(1-0.01*AK83)/((2.5*COS(RADIANS(AK90))^2+SIN(RADIANS(AK90))^2)) -> 29.9915 | AK90: =AQ83 -> 90
D91: =D38 -> 2
I92: LVL | J92: =0.082*Q83*L83^(-0.3)/((2.5*COS(RADIANS(M90))^2+SIN(RADIANS(M90))^2)*(1.5*COS(RADIANS(W83))^2+SIN(RADIANS(W83))^2)) -> 4.512891547 | K92: =0.082*Q83*(1-0.01*L83)/((2.5*COS(RADIANS(M90))^2+SIN(RADIANS(M90))^2)*(1.5*COS(RADIANS(W83))^2+SIN(RADIANS(W83))^2)) -> 7.52432 | AG92: LVL | AH92: =0.082*AP83*AK83^(-0.3)/((2.5*COS(RADIANS(AK90))^2+SIN(RADIANS(AK90))^2)*(1.5*COS(RADIANS(AJ83))^2+SIN(RADIANS(AJ83))^2)) -> 12.98650603 | AI92: =0.082*AP83*(1-0.01*AK83)/((2.5*COS(RADIANS(AK90))^2+SIN(RADIANS(AK90))^2)*(1.5*COS(RADIANS(AJ83))^2+SIN(RADIANS(AJ83))^2)) -> 19.99433333
I94: CLT | J94: =IF(M90=0,20*L83^(-0.5),0.082*Q83*L83^(-0.3)/((2.5*COS(RADIANS(M90))^2+SIN(RADIANS(M90))^2))) -> 7.55928946 | AG94: CLT | AH94: =IF(AK90=0,20*AK83^(-0.5),0.082*AP83*AK83^(-0.3)/((2.5*COS(RADIANS(AK90))^2+SIN(RADIANS(AK90))^2))) -> 19.47975905
C105: GEOMETRIA LOCK | I105: RESISTENZA TRAVE SECONDARIA | AG105: RESISTENZA TRAVE PRIMARIA | BE105: RESISTENZA LOCK STOP | BG105: RESISTENZA FINALE
C106: Modello Lock | D106: Altezza (mm) | E106: Modulo | F106: Numero di moduli | G106: Larghezza Lock | H106: Spessore Lock (mm) | I106: Tipo di legno | J106: Tipo di connettore | K106: Numero connettori | L106: d (mm) | M106: l (mm) | N106: Filetto b (mm) | O106: My,Rk (Nmm) | P106: ftens,k (N) | Q106: ρk (kg/m3) | R106: α | S106: fh,k (N/mm2) | T106: a | U106: b | V106: kax | W106: β | X106: kβ | Y106: fax,k | Z106: Fax,Rk [90°] (N) | AA106: Fv,Rk (a) (N) | AB106: Fv,Rk (b) (N) | AC106: Fv,J,Rk (N) | AD106: nef | AE106: klat | AF106: F2,J,Rk (N) | AG106: Tipo di legno | AH106: Tipo di connettore | AI106: Numero connettori | AJ106: β | AK106: d (mm) | AL106: l (mm) | AM106: Filetto b (mm) | AN106: My,Rk (Nmm) | AO106: ftens,k (N) | AP106: ρk (kg/m3) | AQ106: α | AR106: fh,k (N/mm2) | AS106: a | AT106: b | AU106: kax | AV106: kβ | AW106: fax,k | AX106: Fax,H,Rk (N) | AY106: Fv,Rk (a) (N) | AZ106: Fv,Rk (b) (N) | BA106: Fv,H,Rk (N) | BB106: nef | BC106: klat | BD106: F2,H,Rk (N) | BE106: LOCK STOP | BF106: FLOCKSTOP,Rk (N) | BG106: F2,Rk (KN)
C107: ='LOCK-T'!H97 -> LOCK-T 100 290 | D107: =VLOOKUP(VLOOKUP(C107,Data!$AA$4:$AD$24,4,FALSE),Data!$I$4:$S$15,2,FALSE) -> 290 | E107: =IF(OR(C107="Lock-T 80",C107="Lock-T 100",C107="Lock-T 120"),17.5,25) -> 25 | F107: =VLOOKUP(C107,Data!$AA$4:$AF$24,6,FALSE) -> 4 | G107: =E107*F107 -> 100 | H107: =VLOOKUP(C6,Data!$AA$4:$AH$24,8,FALSE) -> 8 | I107: ='LOCK-T'!H85 -> GL22h | J107: ='LOCK-T'!H124 -> LBS Ø 7 x 80 | K107: =VLOOKUP(VLOOKUP(C107,Data!$AA$4:$AD$24,4,FALSE),Data!$I$4:$S$15,5,FALSE)*F107 -> 36 | L107: =VLOOKUP(J107,Screws!$C$6:$J$34,3,FALSE) -> 7 | M107: =VLOOKUP(J107,Screws!$C$6:$J$34,5,FALSE) -> 80 | N107: =VLOOKUP(J107,Screws!$C$6:$J$34,6,FALSE) -> 75 | O107: =VLOOKUP(J107,Screws!$C$6:$J$34,7,FALSE) -> 14174 | P107: =VLOOKUP(J107,Screws!$C$6:$J$34,8,FALSE) -> 19200 | Q107: =VLOOKUP(I107,Data!$B$4:$C$36,2,FALSE) -> 370 | R107: =IF(M114<>0,M114,90) -> 90 | S107: =IF(I107="LVL",K116,IF(I107="CLT",J118,IF(Q107>420,K114,J114))) -> 6.77 | T107: =IF(I107="LVL",0.5,0.3) -> 0.30 | U107: =IF(I107="LVL",0.5,0.7) -> 0.70 | V107: =IF(R107<45,T107+U107*R107/45,1) -> 1.0 | W107: 0 | X107: =IF(I107="LVL",1.5*COS(RADIANS(W107))^2+SIN(RADIANS(W107))^2,1) -> 1 | Y107: =IF(I107="LVL",15,11.7) -> 11.7 | Z107: =IF(I107="CLT",20*L107^(0.8)*MIN(N107,M107-H107)^(0.9),V107*Y107*L107*MIN(N107,(M107-H107))*(Q107/(IF(I107="LVL",500,350)))^(0.8)/X107) -> 6165 | AA107: =0.4*S107*(M107-H107)*L107+MIN(0.4*S107*(M107-H107)*L107,IF(I107="CLT",1,IF(M114=0,5/6,1))*MIN(P107,Z107)/4) -> 2649 | AB107: =1.15*SQRT(2*O107*S107*L107)+MIN(1.15*SQRT(2*O107*S107*L107),IF(I107="CLT",1,IF(M114=0,5/6,1))*MIN(P107,Z107)/4) -> 2617 | AC107: =MIN(AA107,AB107) -> 2617 | AD107: =INDEX(Data!$I$103:$O$114,MATCH(VLOOKUP(C107,Data!$AA$4:$AD$24,4,FALSE),Data!$I$103:$I$114,0),MATCH(F107,Data!$I$103:$O$103,0)) -> 12.6 | AE107: =INDEX(Data!$I$117:$O$128,MATCH(VLOOKUP(C107,Data!$AA$4:$AD$24,4,FALSE),Data!$I$117:$I$128,0),MATCH(F107,Data!$I$117:$O$117,0)) -> 61.0 | AG107: ='LOCK-T'!H71 -> GL24h | AH107: ='LOCK-T'!H111 -> LBS Ø 7 x 80 | AI107: =VLOOKUP(VLOOKUP(C107,Data!$AA$4:$AD$24,4,FALSE),Data!$I$4:$S$15,5,FALSE)*F107 -> 36 | AJ107: 0 | AK107: =VLOOKUP(AH107,Screws!$C$6:$J$34,3,FALSE) -> 7 | AL107: =VLOOKUP(AH107,Screws!$C$6:$J$34,5,FALSE) -> 80 | AM107: =VLOOKUP(AH107,Screws!$C$6:$J$34,6,FALSE) -> 75 | AN107: =VLOOKUP(AH107,Screws!$C$6:$J$34,7,FALSE) -> 14174 | AO107: =VLOOKUP(AH107,Screws!$C$6:$J$34,8,FALSE) -> 19200 | AP107: =VLOOKUP(AG107,Data!$B$4:$C$36,2,FALSE) -> 385 | AQ107: 90 | AR107: =IF('LOCK-T'!H72='LOCK-T'!AA54,IF(AG107="LVL",AI116,IF(AP107>420,AI114,AI114)),IF(AG107="LVL",AI116,IF(AG107="CLT",AH118,IF(AP107>420,AI114,AH114)))) -> 17.61 | AS107: =IF(AG107="LVL",0.5,0.3) -> 0.30 | AT107: =IF(AG107="LVL",0.5,0.7) -> 0.70 | AU107: =IF(AQ107<45,AS107+AT107*AQ107/45,1) -> 1.0 | AV107: =IF(AG107="LVL",1.5*COS(RADIANS(AJ107))^2+SIN(RADIANS(AJ107))^2,1) -> 1 | AW107: =IF(AG107="LVL",15,11.7) -> 11.7 | AX107: =AU107*AW107*AK107*MIN(AM107,AL107-H107)*(AP107/(IF(AG107="LVL",500,350)))^0.8/AV107 -> 6364 | AY107: =0.4*AR107*(AL107-H107)*AK107+MIN(AX107,AO107)/4 -> 5141 | AZ107: =1.15*SQRT(2*AN107*AR107*AK107)+MIN(1.15*SQRT(2*AN107*AR107*AK107),MIN(AO107,AX107)/4) -> 3741 | BA107: =MIN(AY107,AZ107) -> 3741 | BB107: =INDEX(Data!$I$103:$O$114,MATCH(VLOOKUP(C107,Data!$AA$4:$AD$24,4,FALSE),Data!$I$103:$I$114,0),MATCH(F107,Data!$I$103:$O$103,0)) -> 12.60 | BC107: =INDEX(Data!$I$117:$O$128,MATCH(VLOOKUP(C107,Data!$AA$4:$AD$24,4,FALSE),Data!$I$117:$I$128,0),MATCH(F107,Data!$I$117:$O$117,0)) -> 61.00 | BD107: =(BE113*BA107)/SQRT(1+(((BE113*BA107)/(BF113*AX107))^2)) -> 60696 | BE107: ='LOCK-T'!H138 -> 2 x LOCKSTOP100 | BF107: =VLOOKUP(VLOOKUP(BE107,Data!BA4:BB16,2,FALSE),Data!$I$133:$L$141,4,FALSE)*VLOOKUP(BE107,Data!BA4:BC16,3,FALSE) -> 1554.00 | BG107: =MIN(AF109,BD107,BF107)/1000 -> 1.55
Z108: Fax,Rk [0°] (N) | AF108: F2,J,Rk (N)
H109: =H107 -> 8 | I109: =I107 -> GL22h | J109: LBS Ø 7 x 80 | K109: 36 | L109: 7 | M109: 80 | N109: 75 | O109: 14174.0 | P109: 19200 | Q109: 370 | R109: =M114 -> 0 | S109: =S107 -> 6.77 | T109: 0.30 | U109: 0.70 | V109: =IF(R109<45,T109+U109*R109/45,1) -> 0.3 | W109: =W107 -> 0 | X109: 1 | Y109: 11.7 | Z109: =IF(I109="CLT",20*L109^(0.8)*MIN(N109,M109-H109)^(0.9),V109*Y109*L109*MIN(N109,(M109-H109))*(Q109/(IF(I109="LVL",500,350)))^(0.8)/X109) -> 1849 | AF109: =(AD113*AC107)/SQRT(1+(((AD113*AC107)/(AE113*Z109))^2)) -> 40464
C112: Modello Lock | D112: Numero di moduli | E112: Numero connettori | F112: nef | G112: klat | I112: embedding strength ETA | AD112: Σnef | AE112: Σklat | AG112: embedding strength ETA | BB112: nef | BC112: klat | BE112: Σnef | BF112: Σklat
C113: ='LOCK-T'!$I$97 -> LOCK-T 50 135 | D113: =VLOOKUP(C113,Data!$AA$4:$AF$24,6,FALSE) -> 2 | E113: =VLOOKUP(VLOOKUP(C113,Data!$AA$4:$AD$24,4,FALSE),Data!$I$4:$S$15,5,FALSE)*D113 -> 6 | F113: =INDEX(Data!$I$103:$O$114,MATCH(VLOOKUP(C113,Data!$AA$4:$AD$24,4,FALSE),Data!$I$103:$I$114,0),MATCH(D113,Data!$I$103:$O$103,0)) -> 3.8 | G113: =INDEX(Data!$I$117:$O$128,MATCH(VLOOKUP(C113,Data!$AA$4:$AD$24,4,FALSE),Data!$I$117:$I$128,0),MATCH(D113,Data!$I$117:$O$117,0)) -> 4.6 | J113: non pre-drilled | K113: pre-drilled | M113: α | AD113: =AD107+F113 -> 16.4 | AE113: =AE107+G113 -> 65.6 | AH113: non pre-drilled | AI113: pre-drilled | AK113: α | BB113: =INDEX(Data!$I$103:$O$114,MATCH(VLOOKUP(C113,Data!$AA$4:$AD$24,4,FALSE),Data!$I$103:$I$114,0),MATCH(D113,Data!$I$103:$O$103,0)) -> 3.8 | BC113: =INDEX(Data!$I$117:$O$128,MATCH(VLOOKUP(C113,Data!$AA$4:$AD$24,4,FALSE),Data!$I$117:$I$128,0),MATCH(D113,Data!$I$117:$O$117,0)) -> 4.6 | BE113: =BB107+BB113 -> 16.40 | BF113: =BC107+BC113 -> 65.60
I114: SW & HW | J114: =0.082*Q107*L107^(-0.3)/((2.5*COS(RADIANS(M114))^2+SIN(RADIANS(M114))^2)) -> 6.76933732 | K114: =0.082*Q107*(1-0.01*L107)/((2.5*COS(RADIANS(M114))^2+SIN(RADIANS(M114))^2)) -> 11.28648 | M114: =ABS('LOCK-T'!H86) -> 0 | AG114: SW & HW | AH114: =0.082*AP107*AK107^(-0.3)/((2.5*COS(RADIANS(AK114))^2+SIN(RADIANS(AK114))^2)) -> 17.60942478 | AI114: =0.082*AP107*(1-0.01*AK107)/((2.5*COS(RADIANS(AK114))^2+SIN(RADIANS(AK114))^2)) -> 29.3601 | AK114: 90
D115: Modulo | E115: Numero di moduli | F115: Larghezza Lock
D116: =IF(OR(C113="Lock-T 80",C113="Lock-T 100",C113="Lock-T 120"),17.5,25) -> 25 | E116: =D113 -> 2 | F116: =D116*E116 -> 50 | I116: LVL | J116: =0.082*Q107*L107^(-0.3)/((2.5*COS(RADIANS(M114))^2+SIN(RADIANS(M114))^2)*(1.5*COS(RADIANS(W107))^2+SIN(RADIANS(W107))^2)) -> 4.512891547 | K116: =0.082*Q107*(1-0.01*L107)/((2.5*COS(RADIANS(M114))^2+SIN(RADIANS(M114))^2)*(1.5*COS(RADIANS(W107))^2+SIN(RADIANS(W107))^2)) -> 7.52432 | AG116: LVL | AH116: =0.082*AP107*AK107^(-0.3)/((2.5*COS(RADIANS(AK114))^2+SIN(RADIANS(AK114))^2)*(1.5*COS(RADIANS(AJ107))^2+SIN(RADIANS(AJ107))^2)) -> 11.73961652 | AI116: =0.082*AP107*(1-0.01*AK107)/((2.5*COS(RADIANS(AK114))^2+SIN(RADIANS(AK114))^2)*(1.5*COS(RADIANS(AJ107))^2+SIN(RADIANS(AJ107))^2)) -> 19.5734
I118: CLT | J118: =IF(M114=0,20*L107^(-0.5),0.082*Q107*L107^(-0.3)/((2.5*COS(RADIANS(M114))^2+SIN(RADIANS(M114))^2))) -> 7.55928946 | AG118: CLT | AH118: =IF(AK114=0,20*AK107^(-0.5),0.082*AP107*AK107^(-0.3)/((2.5*COS(RADIANS(AK114))^2+SIN(RADIANS(AK114))^2))) -> 17.60942478

Sheet Uplift (hidden)
B2: LOCK-T CALCOLO RESISTENZA CARATTERISTICA
B4: GEOMETRIA LOCK | H4: RESISTENZA TRAVE SECONDARIA | AD4: RESISTENZA TRAVE PRIMARIA | BB4: RESISTENZA ALLUMINIO | BC4: RESISTENZA FINALE
B5: Modello Lock | C5: Altezza (mm) | D5: Modulo | E5: Numero di moduli | F5: Larghezza Lock | G5: Spessore Lock (mm) | H5: Tipo di legno | I5: Tipo di connettore | J5: Numero connettori | K5: d (mm) | L5: l (mm) | M5: Filetto b (mm) | N5: My,Rk (Nmm) | O5: ftens,k (N) | P5: ρk (kg/m3) | Q5: α | R5: fh,k (N/mm2) | S5: a | T5: b | U5: kax | V5: β | W5: kβ | X5: fax,k | Y5: Fax,Rk [90°] (N) | Z5: Fv,Rk (a) (N) | AA5: Fv,Rk (b) (N) | AB5: Fv,J,Rk (N) | AC5: F3,J,Rk (N) | AD5: Tipo di legno | AE5: Tipo di connettore | AF5: Numero connettori | AG5: β | AH5: d (mm) | AI5: l (mm) | AJ5: Filetto b (mm) | AK5: My,Rk (Nmm) | AL5: ftens,k (N) | AM5: ρk (kg/m3) | AN5: α | AO5: fh,k (N/mm2) | AP5: a | AQ5: b | AR5: kax | AS5: kβ | AT5: fax,k | AU5: Fax,H,Rk (N) | AV5: Fv,Rk (a) (N) | AW5: Fv,Rk (b) (N) | AX5: Fv,H,Rk (N) | AY5: F2,H,Rk (N) | AZ5: kH,2 | BA5: F3,H,Rk (N) | BB5: F2,alu,Rk (N) | BC5: F3,Rk (KN)
B6: ='LOCK-T'!H97 -> LOCK-T 100 290 | C6: =VLOOKUP(VLOOKUP(B6,Data!$AA$4:$AD$24,4,FALSE),Data!$I$4:$S$15,2,FALSE) -> 290 | D6: =IF(OR(B6="Lock-T 80",B6="Lock-T 100",B6="Lock-T 120"),17.5,25) -> 25 | E6: =VLOOKUP(B6,Data!$AA$4:$AF$24,6,FALSE) -> 4 | F6: =D6*E6 -> 100 | G6: =VLOOKUP(B6,Data!$AA$4:$AH$24,8,FALSE) -> 8 | H6: ='LOCK-T'!H85 -> GL22h | I6: ='LOCK-T'!H124 -> LBS Ø 7 x 80 | J6: =VLOOKUP(VLOOKUP(B6,Data!$AA$4:$AD$24,4,FALSE),Data!$I$4:$S$15,5,FALSE)*E6 -> 36 | K6: =VLOOKUP(I6,Screws!$C$6:$J$34,3,FALSE) -> 7 | L6: =VLOOKUP(I6,Screws!$C$6:$J$34,5,FALSE) -> 80 | M6: =VLOOKUP(I6,Screws!$C$6:$J$34,6,FALSE) -> 75 | N6: =VLOOKUP(I6,Screws!$C$6:$J$34,7,FALSE) -> 14174 | O6: =VLOOKUP(I6,Screws!$C$6:$J$34,8,FALSE) -> 19200 | P6: =VLOOKUP(H6,Data!$B$4:$C$36,2,FALSE) -> 370 | Q6: =IF(L13<>0,L13,90) -> 90 | R6: =IF(H6="LVL",J15,IF(H6="CLT",I17,IF(P6>420,J13,I13))) -> 6.77 | S6: =IF(H6="LVL",0.5,0.3) -> 0.30 | T6: =IF(H6="LVL",0.5,0.7) -> 0.70 | U6: =IF(Q6<45,S6+T6*Q6/45,1) -> 1.0 | V6: 0 | W6: =IF(H6="LVL",1.5*COS(RADIANS(V6))^2+SIN(RADIANS(V6))^2,1) -> 1 | X6: =IF(H6="LVL",15,11.7) -> 11.7 | Y6: =IF(H6="CLT",20*K6^(0.8)*MIN(M6,L6-G6)^(0.9),U6*X6*K6*MIN(M6,(L6-G6))*(P6/(IF(H6="LVL",500,350)))^(0.8)/W6) -> 6165 | Z6: =0.4*R6*(L6-G6)*K6+MIN(0.4*R6*(L6-G6)*K6,IF(H6="CLT",1,5/6)*MIN(O6,Y6)/4) -> 2649 | AA6: =1.15*SQRT(2*N6*R6*K6)+MIN(1.15*SQRT(2*N6*R6*K6),IF(H6="CLT",1,5/6)*MIN(O6,Y6)/4) -> 2617 | AB6: =MIN(Z6,AA6) -> 2617 | AC6: =J6*AB6 -> 94219 | AD6: ='LOCK-T'!H71 -> GL24h | AE6: ='LOCK-T'!H141 -> LBS Ø 5 x 60 | AF6: =IF('LOCK-T'!H99=2,Uplift!AG30+Uplift!AG31,Uplift!AG30) -> 3 | AG6: 0 | AH6: =VLOOKUP(AE6,Screws!$C$6:$J$34,3,FALSE) -> 5 | AI6: =VLOOKUP(AE6,Screws!$C$6:$J$34,5,FALSE) -> 60 | AJ6: =VLOOKUP(AE6,Screws!$C$6:$J$34,6,FALSE) -> 56 | AK6: =VLOOKUP(AE6,Screws!$C$6:$J$34,7,FALSE) -> 5417.2 | AL6: =VLOOKUP(AE6,Screws!$C$6:$J$34,8,FALSE) -> 7900 | AM6: =VLOOKUP(AD6,Data!$B$4:$C$36,2,FALSE) -> 385 | AN6: =IF('LOCK-T'!H72='LOCK-T'!AA53,90,45) -> 90 | AO6: =IF('LOCK-T'!H72='LOCK-T'!AA54,IF(AD6="LVL",AF15,IF(AM6>420,AF13,AF13)),IF(AD6="LVL",AF15,IF(AD6="CLT",AE17,IF(AM6>420,AF13,AE13)))) -> 19.48 | AP6: =IF(AD6="LVL",0.5,0.3) -> 0.30 | AQ6: =IF(AD6="LVL",0.5,0.7) -> 0.70 | AR6: =IF(AN6<45,AP6+AQ6*AN6/45,1) -> 1.0 | AS6: =IF(AD6="LVL",1.5*COS(RADIANS(AG6))^2+SIN(RADIANS(AG6))^2,1) -> 1 | AT6: =IF(AD6="LVL",15,11.7) -> 11.7 | AU6: =AR6*AT6*AH6*MIN(AJ6,AI6-(VLOOKUP(VLOOKUP(B6,Data!$AA$4:$AD$24,4,FALSE),Data!Q86:R96,2,FALSE)))*(AM6/(IF(AD6="LVL",500,350)))^0.8/AS6 -> 3030 | AV6: =0.4*AO6*(AI6-G6)*AH6+MIN(AU6,AL6)/4 -> 2784 | AW6: =1.15*SQRT(2*AK6*AO6*AH6)+MIN(1.15*SQRT(2*AK6*AO6*AH6),MIN(AL6,AU6)/4) -> 1939 | AX6: =MIN(AV6,AW6) -> 1939 | AY6: =AF6*AX6 -> 5817 | AZ6: =VLOOKUP(VLOOKUP(B6,Data!$AA$4:$AD$24,4,FALSE),Data!$I$4:$S$15,8,FALSE)*E6 -> 144.00 | BA6: =(MAX(0.9*AF6,AF6^0.9)*1.25*AU6)/SQRT(2) -> 7232 | BB6: =VLOOKUP(VLOOKUP(B6,Data!$AA$4:$AD$24,4,FALSE),Data!$I$4:$S$15,9,FALSE)*1000*(E6) -> 96000 | BC6: =MIN(AC6,BA6,BB6*0.5)/1000 -> 7.23
Y7: Fax,Rk [0°] (N)
G8: =G6 -> 8 | H8: =H6 -> GL22h | I8: LBS Ø 7 x 80 | J8: 36 | K8: 7 | L8: 80 | M8: 75 | N8: 14174 | O8: 19200 | P8: 370 | Q8: =L13 -> 0 | R8: =R6 -> 6.77 | S8: =IF(H8="LVL",0.5,0.3) -> 0.30 | T8: =IF(H8="LVL",0.5,0.7) -> 0.70 | U8: =IF(Q8<45,S8+T8*Q8/45,1) -> 0.3 | V8: 0 | W8: =IF(H8="LVL",1.5*COS(RADIANS(V8))^2+SIN(RADIANS(V8))^2,1) -> 1 | X8: =IF(H8="LVL",15,11.7) -> 11.7 | Y8: =IF(H8="CLT",20*K8^(0.8)*MIN(M8,L8-G8)^(0.9),U8*X8*K8*MIN(M8,(L8-G8))*(P8/(IF(H8="LVL",500,350)))^(0.8)/W8) -> 1849
H11: embedding strength ETA | AD11: embedding strength ETA
I12: non pre-drilled | J12: pre-drilled | L12: α | AE12: non pre-drilled | AF12: pre-drilled | AH12: α
H13: SW & HW | I13: =0.082*P6*K6^(-0.3)/((2.5*COS(RADIANS(L13))^2+SIN(RADIANS(L13))^2)) -> 6.76933732 | J13: =0.082*P6*(1-0.01*K6)/((2.5*COS(RADIANS(L13))^2+SIN(RADIANS(L13))^2)) -> 11.28648 | L13: =ABS('LOCK-T'!H86) -> 0 | AD13: SW & HW | AE13: =0.082*AM6*AH6^(-0.3)/((2.5*COS(RADIANS(AH13))^2+SIN(RADIANS(AH13))^2)) -> 19.47975905 | AF13: =0.082*AM6*(1-0.01*AH6)/((2.5*COS(RADIANS(AH13))^2+SIN(RADIANS(AH13))^2)) -> 29.9915 | AH13: =AN6 -> 90
H15: LVL | I15: =0.082*P6*K6^(-0.3)/((2.5*COS(RADIANS(L13))^2+SIN(RADIANS(L13))^2)*(1.5*COS(RADIANS(V6))^2+SIN(RADIANS(V6))^2)) -> 4.512891547 | J15: =0.082*P6*(1-0.01*K6)/((2.5*COS(RADIANS(L13))^2+SIN(RADIANS(L13))^2)*(1.5*COS(RADIANS(V6))^2+SIN(RADIANS(V6))^2)) -> 7.52432 | AD15: LVL | AE15: =0.082*AM6*AH6^(-0.3)/((2.5*COS(RADIANS(AH13))^2+SIN(RADIANS(AH13))^2)*(1.5*COS(RADIANS(AG6))^2+SIN(RADIANS(AG6))^2)) -> 12.98650603 | AF15: =0.082*AM6*(1-0.01*AH6)/((2.5*COS(RADIANS(AH13))^2+SIN(RADIANS(AH13))^2)*(1.5*COS(RADIANS(AG6))^2+SIN(RADIANS(AG6))^2)) -> 19.99433333
H17: CLT | I17: =IF(L13=0,20*K6^(-0.5),0.082*P6*K6^(-0.3)/((2.5*COS(RADIANS(L13))^2+SIN(RADIANS(L13))^2))) -> 7.55928946 | AD17: CLT | AE17: =IF(AH13=0,20*AH6^(-0.5),0.082*AM6*AH6^(-0.3)/((2.5*COS(RADIANS(AH13))^2+SIN(RADIANS(AH13))^2))) -> 19.47975905
AT23: nin = max(0,9*n; n^0,9)
AG26: doppio lock
AG29: =IF('LOCK-T'!H65="Viti inclinate","Viti inclinate","uplift") -> uplift
AG30: =IF('LOCK-T'!H65='LOCK-T'!AB62,VLOOKUP(B6,Data!AA32:AC50,3,FALSE),VLOOKUP(B6,Data!AA32:AC50,2,FALSE)) -> 3 | AH30: primo lock
AG31: =IF('LOCK-T'!H65='LOCK-T'!AB62,VLOOKUP('LOCK-T'!I97,Data!AA32:AC50,3,FALSE),VLOOKUP('LOCK-T'!I97,Data!AA32:AC50,2,FALSE)) -> 1 | AH31: secondo lock

Sheet secondo_Uplift (hidden)
B2: LOCK-T CALCOLO RESISTENZA CARATTERISTICA
B4: GEOMETRIA LOCK | H4: RESISTENZA TRAVE SECONDARIA | AD4: RESISTENZA TRAVE PRIMARIA | BB4: RESISTENZA ALLUMINIO | BC4: RESISTENZA FINALE
B5: Modello Lock | C5: Altezza (mm) | D5: Modulo | E5: Numero di moduli | F5: Larghezza Lock | G5: Spessore Lock (mm) | H5: Tipo di legno | I5: Tipo di connettore | J5: Numero connettori | K5: d (mm) | L5: l (mm) | M5: Filetto b (mm) | N5: My,Rk (Nmm) | O5: ftens,k (N) | P5: ρk (kg/m3) | Q5: α | R5: fh,k (N/mm2) | S5: a | T5: b | U5: kax | V5: β | W5: kβ | X5: fax,k | Y5: Fax,Rk [90°] (N) | Z5: Fv,Rk (a) (N) | AA5: Fv,Rk (b) (N) | AB5: Fv,J,Rk (N) | AC5: F3,J,Rk (N) | AD5: Tipo di legno | AE5: Tipo di connettore | AF5: Numero connettori | AG5: β | AH5: d (mm) | AI5: l (mm) | AJ5: Filetto b (mm) | AK5: My,Rk (Nmm) | AL5: ftens,k (N) | AM5: ρk (kg/m3) | AN5: α | AO5: fh,k (N/mm2) | AP5: a | AQ5: b | AR5: kax | AS5: kβ | AT5: fax,k | AU5: Fax,H,Rk (N) | AV5: Fv,Rk (a) (N) | AW5: Fv,Rk (b) (N) | AX5: Fv,H,Rk (N) | AY5: F2,H,Rk (N) | AZ5: kH,2 | BA5: F3,H,Rk (N) | BB5: F2,alu,Rk (N) | BC5: F3,Rk (KN)
B6: ='LOCK-T'!I97 -> LOCK-T 50 135 | C6: =VLOOKUP(VLOOKUP(B6,Data!$AA$4:$AD$24,4,FALSE),Data!$I$4:$S$15,2,FALSE) -> 135 | D6: =IF(OR(B6="Lock-T 80",B6="Lock-T 100",B6="Lock-T 120"),17.5,25) -> 25 | E6: =VLOOKUP(B6,Data!$AA$4:$AF$24,6,FALSE) -> 2 | F6: =D6*E6 -> 50 | G6: =VLOOKUP(B6,Data!$AA$4:$AH$24,8,FALSE) -> 7 | H6: ='LOCK-T'!H85 -> GL22h | I6: ='LOCK-T'!I124 -> LBS Ø 7 x 80 | J6: =VLOOKUP(VLOOKUP(B6,Data!$AA$4:$AD$24,4,FALSE),Data!$I$4:$S$15,5,FALSE)*E6 -> 6 | K6: =VLOOKUP(I6,Screws!$C$6:$J$34,3,FALSE) -> 7 | L6: =VLOOKUP(I6,Screws!$C$6:$J$34,5,FALSE) -> 80 | M6: =VLOOKUP(I6,Screws!$C$6:$J$34,6,FALSE) -> 75 | N6: =VLOOKUP(I6,Screws!$C$6:$J$34,7,FALSE) -> 14174 | O6: =VLOOKUP(I6,Screws!$C$6:$J$34,8,FALSE) -> 19200 | P6: =VLOOKUP(H6,Data!$B$4:$C$36,2,FALSE) -> 370 | Q6: =IF(L13<>0,L13,90) -> 90 | R6: =IF(H6="LVL",J15,IF(H6="CLT",I17,IF(P6>420,J13,I13))) -> 6.77 | S6: =IF(H6="LVL",0.5,0.3) -> 0.30 | T6: =IF(H6="LVL",0.5,0.7) -> 0.70 | U6: =IF(Q6<45,S6+T6*Q6/45,1) -> 1.0 | V6: 0 | W6: =IF(H6="LVL",1.5*COS(RADIANS(V6))^2+SIN(RADIANS(V6))^2,1) -> 1 | X6: =IF(H6="LVL",15,11.7) -> 11.7 | Y6: =IF(H6="CLT",20*K6^(0.8)*MIN(M6,L6-G6)^(0.9),U6*X6*K6*MIN(M6,(L6-G6))*(P6/(IF(H6="LVL",500,350)))^(0.8)/W6) -> 6250 | Z6: =0.4*R6*(L6-G6)*K6+MIN(0.4*R6*(L6-G6)*K6,IF(H6="CLT",1,5/6)*MIN(O6,Y6)/4) -> 2686 | AA6: =1.15*SQRT(2*N6*R6*K6)+MIN(1.15*SQRT(2*N6*R6*K6),IF(H6="CLT",1,5/6)*MIN(O6,Y6)/4) -> 2635 | AB6: =MIN(Z6,AA6) -> 2635 | AC6: =J6*AB6 -> 15810 | AD6: ='LOCK-T'!H71 -> GL24h | AE6: ='LOCK-T'!I141 -> LBS Ø 5 x 60 | AF6: =VLOOKUP(B6,Data!AA4:AL24,12,FALSE) -> 1 | AG6: 0 | AH6: =VLOOKUP(AE6,Screws!$C$6:$J$34,3,FALSE) -> 5 | AI6: =VLOOKUP(AE6,Screws!$C$6:$J$34,5,FALSE) -> 60 | AJ6: =VLOOKUP(AE6,Screws!$C$6:$J$34,6,FALSE) -> 56 | AK6: =VLOOKUP(AE6,Screws!$C$6:$J$34,7,FALSE) -> 5417.2 | AL6: =VLOOKUP(AE6,Screws!$C$6:$J$34,8,FALSE) -> 7900 | AM6: =VLOOKUP(AD6,Data!$B$4:$C$36,2,FALSE) -> 385 | AN6: =IF('LOCK-T'!H72='LOCK-T'!AA53,90,45) -> 90 | AO6: =IF('LOCK-T'!H72='LOCK-T'!AA54,IF(AD6="LVL",AF15,IF(AM6>420,AF13,AF13)),IF(AD6="LVL",AF15,IF(AD6="CLT",AE17,IF(AM6>420,AF13,AE13)))) -> 19.48 | AP6: =IF(AD6="LVL",0.5,0.3) -> 0.30 | AQ6: =IF(AD6="LVL",0.5,0.7) -> 0.70 | AR6: =IF(AN6<45,AP6+AQ6*AN6/45,1) -> 1.0 | AS6: =IF(AD6="LVL",1.5*COS(RADIANS(AG6))^2+SIN(RADIANS(AG6))^2,1) -> 1 | AT6: =IF(AD6="LVL",15,11.7) -> 11.7 | AU6: =AR6*AT6*AH6*MIN(AJ6,AI6-(VLOOKUP(VLOOKUP(B6,Data!$AA$4:$AD$24,4,FALSE),Data!Q86:R96,2,FALSE)))*(AM6/(IF(AD6="LVL",500,350)))^0.8/AS6 -> 3030 | AV6: =0.4*AO6*(AI6-G6)*AH6+MIN(AU6,AL6)/4 -> 2822 | AW6: =1.15*SQRT(2*AK6*AO6*AH6)+MIN(1.15*SQRT(2*AK6*AO6*AH6),MIN(AL6,AU6)/4) -> 1939 | AX6: =MIN(AV6,AW6) -> 1939 | AY6: =AF6*AX6 -> 1939 | AZ6: =VLOOKUP(VLOOKUP(B6,Data!$AA$4:$AD$24,4,FALSE),Data!$I$4:$S$15,8,FALSE)*E6 -> 10.60 | BA6: =(MAX(0.9*AF6,AF6^0.9)*1.25*AU6)/SQRT(2) -> 2679 | BB6: =VLOOKUP(VLOOKUP(B6,Data!$AA$4:$AD$24,4,FALSE),Data!$I$4:$S$15,9,FALSE)*1000*(E6) -> 30000 | BC6: =MIN(AC6,BA6,BB6*0.5)/1000 -> 2.68
Y7: Fax,Rk [0°] (N)
G8: =G6 -> 7 | H8: =H6 -> GL22h | I8: LBS Ø 7 x 80 | J8: 6 | K8: 7 | L8: 80 | M8: 75 | N8: 14174 | O8: 19200 | P8: 370 | Q8: =L13 -> 0 | R8: =R6 -> 6.77 | S8: =IF(H8="LVL",0.5,0.3) -> 0.30 | T8: =IF(H8="LVL",0.5,0.7) -> 0.70 | U8: =IF(Q8<45,S8+T8*Q8/45,1) -> 0.3 | V8: 0 | W8: =IF(H8="LVL",1.5*COS(RADIANS(V8))^2+SIN(RADIANS(V8))^2,1) -> 1 | X8: =IF(H8="LVL",15,11.7) -> 11.7 | Y8: =IF(H8="CLT",20*K8^(0.8)*MIN(M8,L8-G8)^(0.9),U8*X8*K8*MIN(M8,(L8-G8))*(P8/(IF(H8="LVL",500,350)))^(0.8)/W8) -> 1875
H11: embedding strength ETA | AD11: embedding strength ETA
I12: non pre-drilled | J12: pre-drilled | L12: α | AE12: non pre-drilled | AF12: pre-drilled | AH12: α
H13: SW & HW | I13: =0.082*P6*K6^(-0.3)/((2.5*COS(RADIANS(L13))^2+SIN(RADIANS(L13))^2)) -> 6.76933732 | J13: =0.082*P6*(1-0.01*K6)/((2.5*COS(RADIANS(L13))^2+SIN(RADIANS(L13))^2)) -> 11.28648 | L13: =ABS('LOCK-T'!H86) -> 0 | AD13: SW & HW | AE13: =0.082*AM6*AH6^(-0.3)/((2.5*COS(RADIANS(AH13))^2+SIN(RADIANS(AH13))^2)) -> 19.47975905 | AF13: =0.082*AM6*(1-0.01*AH6)/((2.5*COS(RADIANS(AH13))^2+SIN(RADIANS(AH13))^2)) -> 29.9915 | AH13: =AN6 -> 90
H15: LVL | I15: =0.082*P6*K6^(-0.3)/((2.5*COS(RADIANS(L13))^2+SIN(RADIANS(L13))^2)*(1.5*COS(RADIANS(V6))^2+SIN(RADIANS(V6))^2)) -> 4.512891547 | J15: =0.082*P6*(1-0.01*K6)/((2.5*COS(RADIANS(L13))^2+SIN(RADIANS(L13))^2)*(1.5*COS(RADIANS(V6))^2+SIN(RADIANS(V6))^2)) -> 7.52432 | AD15: LVL | AE15: =0.082*AM6*AH6^(-0.3)/((2.5*COS(RADIANS(AH13))^2+SIN(RADIANS(AH13))^2)*(1.5*COS(RADIANS(AG6))^2+SIN(RADIANS(AG6))^2)) -> 12.98650603 | AF15: =0.082*AM6*(1-0.01*AH6)/((2.5*COS(RADIANS(AH13))^2+SIN(RADIANS(AH13))^2)*(1.5*COS(RADIANS(AG6))^2+SIN(RADIANS(AG6))^2)) -> 19.99433333
H17: CLT | I17: =IF(L13=0,20*K6^(-0.5),0.082*P6*K6^(-0.3)/((2.5*COS(RADIANS(L13))^2+SIN(RADIANS(L13))^2))) -> 7.55928946 | AD17: CLT | AE17: =IF(AH13=0,20*AH6^(-0.5),0.082*AM6*AH6^(-0.3)/((2.5*COS(RADIANS(AH13))^2+SIN(RADIANS(AH13))^2))) -> 19.47975905
AT23: nin = max(0,9*n; n^0,9)

Sheet Axial (hidden)
B2: LOCK-T CALCOLO RESISTENZA CARATTERISTICA
B4: GEOMETRIA LOCK | H4: RESISTENZA TRAVE SECONDARIA | AC4: RESISTENZA TRAVE PRIMARIA | AZ4: RESISTENZA ALLUMINIO | BA4: RESISTENZA FINALE
B5: Modello Lock | C5: Altezza (mm) | D5: Modulo | E5: Numero di moduli | F5: Larghezza Lock | G5: Spessore Lock (mm) | H5: Tipo di legno | I5: Tipo di connettore | J5: Numero connettori | K5: d (mm) | L5: l (mm) | M5: Filetto b (mm) | N5: My,Rk (Nmm) | O5: ftens,k (N) | P5: ρk (kg/m3) | Q5: α | R5: fh,k (N/mm2) | S5: a | T5: b | U5: kax | V5: β | W5: kβ | X5: fax,k | Y5: Fax,Rk (N) | Z5: kLOCK | AA5: Fax,J,Rk/kLOCK (a) (N) | AB5: Ftens,J,k (N) | AC5: Tipo di legno | AD5: Tipo di connettore | AE5: Numero connettori | AF5: β | AG5: d (mm) | AH5: l (mm) | AI5: Filetto b (mm) | AJ5: My,Rk (Nmm) | AK5: ftens,k (N) | AL5: ρk (kg/m3) | AM5: α | AN5: fh,k (N/mm2) | AO5: a | AP5: b | AQ5: kax | AR5: kβ | AS5: fax,k | AT5: Fax,H,Rk (N) | AU5: kLOCK | AV5: Fax,H,Rk/kLOCK (a) (N) | AW5: Ftens,H,k (N) | AX5: F1,H,Rk primaria (N) | AY5: F1,J,Rk secondaria (N) | AZ5: F1,alu,Rk (N) | BA5: F1,Rk (kN)
B6: ='LOCK-T'!H97 -> LOCK-T 100 290 | C6: =VLOOKUP(VLOOKUP(B6,Data!$AA$4:$AD$24,4,FALSE),Data!$I$4:$S$15,2,FALSE) -> 290 | D6: =IF(OR(B6="Lock-T 80",B6="Lock-T 100",B6="Lock-T 120"),17.5,25) -> 25 | E6: =VLOOKUP(B6,Data!$AA$4:$AF$24,6,FALSE) -> 4 | F6: =D6*E6 -> 100 | G6: =VLOOKUP(B6,Data!$AA$4:$AH$24,8,FALSE) -> 8 | H6: ='LOCK-T'!H85 -> GL22h | I6: ='LOCK-T'!H124 -> LBS Ø 7 x 80 | J6: =VLOOKUP(VLOOKUP(B6,Data!$AA$4:$AD$24,4,FALSE),Data!$I$4:$S$15,5,FALSE)*E6 -> 36 | K6: =VLOOKUP(I6,Screws!$C$6:$J$34,3,FALSE) -> 7 | L6: =VLOOKUP(I6,Screws!$C$6:$J$34,5,FALSE) -> 80 | M6: =VLOOKUP(I6,Screws!$C$6:$J$34,6,FALSE) -> 75 | N6: =VLOOKUP(I6,Screws!$C$6:$J$34,7,FALSE) -> 14174 | O6: =VLOOKUP(I6,Screws!$C$6:$J$34,8,FALSE) -> 19200 | P6: =VLOOKUP(H6,Data!$B$4:$C$36,2,FALSE) -> 370 | Q6: =L13 -> 0 | R6: =IF(H6="LVL",J15,IF(H6="CLT",I17,IF(P6>420,J13,I13))) -> 6.77 | S6: =IF(H6="LVL",0.5,0.3) -> 0.30 | T6: =IF(H6="LVL",0.5,0.7) -> 0.70 | U6: =IF(Q6<45,S6+T6*Q6/45,1) -> 0.3 | V6: 0 | W6: =IF(H6="LVL",1.5*COS(RADIANS(V6))^2+SIN(RADIANS(V6))^2,1) -> 1 | X6: =IF(H6="LVL",15,11.7) -> 11.7 | Y6: =IF(H6="CLT",20*K6^(0.8)*MIN(M6,L6-G6)^(0.9),U6*X6*K6*MIN(M6,(L6-G6))*(P6/(IF(H6="LVL",500,350)))^(0.8)/W6) -> 1849 | Z6: =VLOOKUP(VLOOKUP(B6,Data!$AA$4:$AD$24,4,FALSE),Data!$I$4:$S$15,11,FALSE) -> 0.55 | AA6: =Y6/Z6 -> 3363 | AB6: =VLOOKUP(I6,Screws!$C$6:$J$34,8,FALSE) -> 19200 | AC6: ='LOCK-T'!H71 -> GL24h | AD6: ='LOCK-T'!H111 -> LBS Ø 7 x 80 | AE6: =VLOOKUP(VLOOKUP(B6,Data!$AA$4:$AD$24,4,FALSE),Data!$I$4:$S$15,5,FALSE)*E6 -> 36 | AF6: 0 | AG6: =VLOOKUP(AD6,Screws!$C$6:$J$34,3,FALSE) -> 7 | AH6: =VLOOKUP(AD6,Screws!$C$6:$J$34,5,FALSE) -> 80 | AI6: =VLOOKUP(AD6,Screws!$C$6:$J$34,6,FALSE) -> 75 | AJ6: =VLOOKUP(AD6,Screws!$C$6:$J$34,7,FALSE) -> 14174 | AK6: =VLOOKUP(AD6,Screws!$C$6:$J$34,8,FALSE) -> 19200 | AL6: =VLOOKUP(AC6,Data!$B$4:$C$36,2,FALSE) -> 385 | AM6: 90 | AN6: =IF('LOCK-T'!H72='LOCK-T'!AA54,IF(AC6="LVL",AE15,IF(AL6>420,AE13,AE13)),IF(AC6="LVL",AE15,IF(AC6="CLT",AD17,IF(AL6>420,AE13,AD13)))) -> 17.61 | AO6: =IF(AC6="LVL",0.5,0.3) -> 0.30 | AP6: =IF(AC6="LVL",0.5,0.7) -> 0.70 | AQ6: =IF(AM6<45,AO6+AP6*AM6/45,1) -> 1.0 | AR6: =IF(AC6="LVL",1.5*COS(RADIANS(AF6))^2+SIN(RADIANS(AF6))^2,1) -> 1 | AS6: =IF(AC6="LVL",15,11.7) -> 11.7 | AT6: =AQ6*AS6*AG6*MIN(AI6,AH6-G6)*(AL6/(IF(AC6="LVL",500,350)))^0.8/AR6 -> 6364 | AU6: =VLOOKUP(VLOOKUP(B6,Data!$AA$4:$AD$24,4,FALSE),Data!$I$4:$S$15,11,FALSE) -> 0.55 | AV6: =AT6/AU6 -> 11571 | AW6: =VLOOKUP(AD6,Screws!$C$6:$J$34,8,FALSE) -> 19200 | AX6: =E6*MIN(AV6,AW6) -> 46284 | AY6: =E6*MIN(AA6,AB6) -> 13451 | AZ6: =E6*VLOOKUP(VLOOKUP(B6,Data!$AA$4:$AD$24,4,FALSE),Data!$I$4:$S$15,10,FALSE)*1000 -> 11200 | BA6: =MIN(AZ6,AX6,AY6)/1000 -> 11.20
H11: embedding strength ETA | AC11: embedding strength ETA
I12: non pre-drilled | J12: pre-drilled | L12: α | AD12: non pre-drilled | AE12: pre-drilled | AG12: α
H13: SW & HW | I13: =0.082*P6*K6^(-0.3)/((2.5*COS(RADIANS(L13))^2+SIN(RADIANS(L13))^2)) -> 6.76933732 | J13: =0.082*P6*(1-0.01*K6)/((2.5*COS(RADIANS(L13))^2+SIN(RADIANS(L13))^2)) -> 11.28648 | L13: =ABS('LOCK-T'!H86) -> 0 | AC13: SW & HW | AD13: =0.082*AL6*AG6^(-0.3)/((2.5*COS(RADIANS(AG13))^2+SIN(RADIANS(AG13))^2)) -> 17.60942478 | AE13: =0.082*AL6*(1-0.01*AG6)/((2.5*COS(RADIANS(AG13))^2+SIN(RADIANS(AG13))^2)) -> 29.3601 | AG13: 90
H15: LVL | I15: =0.082*P6*K6^(-0.3)/((2.5*COS(RADIANS(L13))^2+SIN(RADIANS(L13))^2)*(1.5*COS(RADIANS(V6))^2+SIN(RADIANS(V6))^2)) -> 4.512891547 | J15: =0.082*P6*(1-0.01*K6)/((2.5*COS(RADIANS(L13))^2+SIN(RADIANS(L13))^2)*(1.5*COS(RADIANS(V6))^2+SIN(RADIANS(V6))^2)) -> 7.52432 | AC15: LVL | AD15: =0.082*AL6*AG6^(-0.3)/((2.5*COS(RADIANS(AG13))^2+SIN(RADIANS(AG13))^2)*(1.5*COS(RADIANS(AF6))^2+SIN(RADIANS(AF6))^2)) -> 11.73961652 | AE15: =0.082*AL6*(1-0.01*AG6)/((2.5*COS(RADIANS(AG13))^2+SIN(RADIANS(AG13))^2)*(1.5*COS(RADIANS(AF6))^2+SIN(RADIANS(AF6))^2)) -> 19.5734
H17: CLT | I17: =IF(L13=0,20*K6^(-0.5),0.082*P6*K6^(-0.3)/((2.5*COS(RADIANS(L13))^2+SIN(RADIANS(L13))^2))) -> 7.55928946 | AC17: CLT | AD17: =IF(AG13=0,20*AG6^(-0.5),0.082*AL6*AG6^(-0.3)/((2.5*COS(RADIANS(AG13))^2+SIN(RADIANS(AG13))^2))) -> 17.60942478

Sheet secondo_Axial (hidden)
B2: LOCK-T CALCOLO RESISTENZA CARATTERISTICA
B4: GEOMETRIA LOCK | H4: RESISTENZA TRAVE SECONDARIA | AC4: RESISTENZA TRAVE PRIMARIA | AZ4: RESISTENZA ALLUMINIO | BA4: RESISTENZA FINALE
B5: Modello Lock | C5: Altezza (mm) | D5: Modulo | E5: Numero di moduli | F5: Larghezza Lock | G5: Spessore Lock (mm) | H5: Tipo di legno | I5: Tipo di connettore | J5: Numero connettori | K5: d (mm) | L5: l (mm) | M5: Filetto b (mm) | N5: My,Rk (Nmm) | O5: ftens,k (N) | P5: ρk (kg/m3) | Q5: α | R5: fh,k (N/mm2) | S5: a | T5: b | U5: kax | V5: β | W5: kβ | X5: fax,k | Y5: Fax,Rk (N) | Z5: kLOCK | AA5: Fax,J,Rk/kLOCK (a) (N) | AB5: Ftens,J,k (N) | AC5: Tipo di legno | AD5: Tipo di connettore | AE5: Numero connettori | AF5: β | AG5: d (mm) | AH5: l (mm) | AI5: Filetto b (mm) | AJ5: My,Rk (Nmm) | AK5: ftens,k (N) | AL5: ρk (kg/m3) | AM5: α | AN5: fh,k (N/mm2) | AO5: a | AP5: b | AQ5: kax | AR5: kβ | AS5: fax,k | AT5: Fax,H,Rk (N) | AU5: kLOCK | AV5: Fax,H,Rk/kLOCK (a) (N) | AW5: Ftens,H,k (N) | AX5: F1,H,Rk primaria (N) | AY5: F1,J,Rk secondaria (N) | AZ5: F1,alu,Rk (N) | BA5: F1,Rk (kN)
B6: ='LOCK-T'!I97 -> LOCK-T 50 135 | C6: =VLOOKUP(VLOOKUP(B6,Data!$AA$4:$AD$24,4,FALSE),Data!$I$4:$S$15,2,FALSE) -> 135 | D6: =IF(OR(B6="Lock-T 80",B6="Lock-T 100",B6="Lock-T 120"),17.5,25) -> 25 | E6: =VLOOKUP(B6,Data!$AA$4:$AF$24,6,FALSE) -> 2 | F6: =D6*E6 -> 50 | G6: =VLOOKUP(B6,Data!$AA$4:$AH$24,8,FALSE) -> 7 | H6: ='LOCK-T'!H85 -> GL22h | I6: ='LOCK-T'!I124 -> LBS Ø 7 x 80 | J6: =VLOOKUP(VLOOKUP(B6,Data!$AA$4:$AD$24,4,FALSE),Data!$I$4:$S$15,5,FALSE)*E6 -> 6 | K6: =VLOOKUP(I6,Screws!$C$6:$J$34,3,FALSE) -> 7 | L6: =VLOOKUP(I6,Screws!$C$6:$J$34,5,FALSE) -> 80 | M6: =VLOOKUP(I6,Screws!$C$6:$J$34,6,FALSE) -> 75 | N6: =VLOOKUP(I6,Screws!$C$6:$J$34,7,FALSE) -> 14174 | O6: =VLOOKUP(I6,Screws!$C$6:$J$34,8,FALSE) -> 19200 | P6: =VLOOKUP(H6,Data!$B$4:$C$36,2,FALSE) -> 370 | Q6: =L13 -> 0 | R6: =IF(H6="LVL",J15,IF(H6="CLT",I17,IF(P6>420,J13,I13))) -> 6.77 | S6: =IF(H6="LVL",0.5,0.3) -> 0.30 | T6: =IF(H6="LVL",0.5,0.7) -> 0.70 | U6: =IF(Q6<45,S6+T6*Q6/45,1) -> 0.3 | V6: 0 | W6: =IF(H6="LVL",1.5*COS(RADIANS(V6))^2+SIN(RADIANS(V6))^2,1) -> 1 | X6: =IF(H6="LVL",15,11.7) -> 11.7 | Y6: =IF(H6="CLT",20*K6^(0.8)*MIN(M6,L6-G6)^(0.9),U6*X6*K6*MIN(M6,(L6-G6))*(P6/(IF(H6="LVL",500,350)))^(0.8)/W6) -> 1875 | Z6: =VLOOKUP(VLOOKUP(B6,Data!$AA$4:$AD$24,4,FALSE),Data!$I$4:$S$15,11,FALSE) -> 0.65 | AA6: =Y6/Z6 -> 2885 | AB6: =VLOOKUP(I6,Screws!$C$6:$J$34,8,FALSE) -> 19200 | AC6: ='LOCK-T'!H71 -> GL24h | AD6: ='LOCK-T'!I111 -> LBS Ø 7 x 80 | AE6: =VLOOKUP(VLOOKUP(B6,Data!$AA$4:$AD$24,4,FALSE),Data!$I$4:$S$15,5,FALSE)*E6 -> 6 | AF6: 0 | AG6: =VLOOKUP(AD6,Screws!$C$6:$J$34,3,FALSE) -> 7 | AH6: =VLOOKUP(AD6,Screws!$C$6:$J$34,5,FALSE) -> 80 | AI6: =VLOOKUP(AD6,Screws!$C$6:$J$34,6,FALSE) -> 75 | AJ6: =VLOOKUP(AD6,Screws!$C$6:$J$34,7,FALSE) -> 14174 | AK6: =VLOOKUP(AD6,Screws!$C$6:$J$34,8,FALSE) -> 19200 | AL6: =VLOOKUP(AC6,Data!$B$4:$C$36,2,FALSE) -> 385 | AM6: 90 | AN6: =IF('LOCK-T'!H72='LOCK-T'!AA54,IF(AC6="LVL",AE15,IF(AL6>420,AE13,AE13)),IF(AC6="LVL",AE15,IF(AC6="CLT",AD17,IF(AL6>420,AE13,AD13)))) -> 17.61 | AO6: =IF(AC6="LVL",0.5,0.3) -> 0.30 | AP6: =IF(AC6="LVL",0.5,0.7) -> 0.70 | AQ6: =IF(AM6<45,AO6+AP6*AM6/45,1) -> 1.0 | AR6: =IF(AC6="LVL",1.5*COS(RADIANS(AF6))^2+SIN(RADIANS(AF6))^2,1) -> 1 | AS6: =IF(AC6="LVL",15,11.7) -> 11.7 | AT6: =AQ6*AS6*AG6*MIN(AI6,AH6-G6)*(AL6/(IF(AC6="LVL",500,350)))^0.8/AR6 -> 6452 | AU6: =VLOOKUP(VLOOKUP(B6,Data!$AA$4:$AD$24,4,FALSE),Data!$I$4:$S$15,11,FALSE) -> 0.65 | AV6: =AT6/AU6 -> 9927 | AW6: =VLOOKUP(AD6,Screws!$C$6:$J$34,8,FALSE) -> 19200 | AX6: =E6*MIN(AV6,AW6) -> 19854 | AY6: =E6*MIN(AA6,AB6) -> 5770 | AZ6: =E6*VLOOKUP(VLOOKUP(B6,Data!$AA$4:$AD$24,4,FALSE),Data!$I$4:$S$15,10,FALSE)*1000 -> 5400 | BA6: =MIN(AZ6,AX6,AY6)/1000 -> 5.40
H11: embedding strength ETA | AC11: embedding strength ETA
I12: non pre-drilled | J12: pre-drilled | L12: α | AD12: non pre-drilled | AE12: pre-drilled | AG12: α
H13: SW & HW | I13: =0.082*P6*K6^(-0.3)/((2.5*COS(RADIANS(L13))^2+SIN(RADIANS(L13))^2)) -> 6.76933732 | J13: =0.082*P6*(1-0.01*K6)/((2.5*COS(RADIANS(L13))^2+SIN(RADIANS(L13))^2)) -> 11.28648 | L13: =ABS('LOCK-T'!H86) -> 0 | AC13: SW & HW | AD13: =0.082*AL6*AG6^(-0.3)/((2.5*COS(RADIANS(AG13))^2+SIN(RADIANS(AG13))^2)) -> 17.60942478 | AE13: =0.082*AL6*(1-0.01*AG6)/((2.5*COS(RADIANS(AG13))^2+SIN(RADIANS(AG13))^2)) -> 29.3601 | AG13: 90
H15: LVL | I15: =0.082*P6*K6^(-0.3)/((2.5*COS(RADIANS(L13))^2+SIN(RADIANS(L13))^2)*(1.5*COS(RADIANS(V6))^2+SIN(RADIANS(V6))^2)) -> 4.512891547 | J15: =0.082*P6*(1-0.01*K6)/((2.5*COS(RADIANS(L13))^2+SIN(RADIANS(L13))^2)*(1.5*COS(RADIANS(V6))^2+SIN(RADIANS(V6))^2)) -> 7.52432 | AC15: LVL | AD15: =0.082*AL6*AG6^(-0.3)/((2.5*COS(RADIANS(AG13))^2+SIN(RADIANS(AG13))^2)*(1.5*COS(RADIANS(AF6))^2+SIN(RADIANS(AF6))^2)) -> 11.73961652 | AE15: =0.082*AL6*(1-0.01*AG6)/((2.5*COS(RADIANS(AG13))^2+SIN(RADIANS(AG13))^2)*(1.5*COS(RADIANS(AF6))^2+SIN(RADIANS(AF6))^2)) -> 19.5734
H17: CLT | I17: =IF(L13=0,20*K6^(-0.5),0.082*P6*K6^(-0.3)/((2.5*COS(RADIANS(L13))^2+SIN(RADIANS(L13))^2))) -> 7.55928946 | AC17: CLT | AD17: =IF(AG13=0,20*AG6^(-0.5),0.082*AL6*AG6^(-0.3)/((2.5*COS(RADIANS(AG13))^2+SIN(RADIANS(AG13))^2))) -> 17.60942478
